Workbook

Sheet NetWorth
B1: Financial Planning Worksheet | D1: Page 1
B2: Actual | C2: Projected | D2: Remarks | I2: Years | J2: BAH Status | K2: FSGLI | L2: SGLI | M2: MGIB | N2: Paygrade | P2: PayGrade
A3: Name | D3: =TODAY() -> 2020-02-03 | O3: Yes
A4: Age (Required for TSP Calculator) | D4: Age required for dual military FSLGI | I4: <2 | J4: With Dependents | K4: 0 | L4: 0 | M4: 0 | N4: E1 | O4: No | P4: E1
A5: Paygrade (E1, W2, etc) (Select from menu) | I5: 2 | J5: Single | K5: 10000 | L5: 50000 | M5: 100 | N5: E2 | P5: E2
A6: Years in Service (Select from menu) | I6: 3 | J6: Gov't Qtrs | K6: 20000 | L6: 100000 | N6: E3 | P6: E3
A7: Date Reported (Actual)/PRD (Transfer Projected) | I7: 4 | J7: Partial | K7: 30000 | L7: 150000 | N7: E4 | P7: E4
A8: BAH Status (Select from menu) | C8: With Dependents | I8: 6 | J8: Differential | K8: 40000 | L8: 200000 | N8: E5 | P8: E5
A9: Spouse's Name | I9: 8 | K9: 50000 | L9: 250000 | N9: E6 | P9: E6
A10: Spouse's Age (Required for FSGLI) | I10: 10 | K10: 60000 | L10: 300000 | N10: E7 | P10: E7
A11: Spouse's Place of Employment | I11: 12 | K11: 70000 | L11: 350000 | N11: E8 | P11: E8
A12: Children/Ages (Living/w = Act/Away = Proj) | I12: 14 | K12: 80000 | L12: 400000 | N12: E9 | P12: E9
A13: Home Address & Zipcode (5 digits) | D13: =IF(ISERROR("Actual Zip "&F13&" / Projected Zip "&G13),0,"Actual Zip "&F13&" / Projected Zip "&G13) -> 0 | F13: =VALUE(RIGHT(B13,5)) ->  | G13: =VALUE(RIGHT(C13,5)) ->  | I13: 16 | K13: 90000 | N13: W1 | P13: W1
A14: Work Telephone | I14: 18 | K14: 100000 | N14: W2 | P14: W2
A15: Home/Cell Telephone | I15: 20 | N15: W3 | P15: W3
A16: Command & Referred By: (Self, Cmd,etc) | I16: 22 | N16: W4 | P16: W4
A17: Amount of FSGLI Elected (Select from menu) | I17: 24 | N17: W5 | P17: W5
A18: Amount of SGLI Elected (Select from menu) | I18: 26 | N18: O1 | P18: O1
A19: TSP Basepay Contribution (Enter %) | I19: 30 | N19: O1E | P19: O1E
A20: TSP Bonus/Incentive/Special Pay | I20: 34 | N20: O2 | P20: O2
A21: Roth TSP Basepay Contribution (Enter %) | I21: 38 | N21: O2E | P21: O2E
A22: Roth TSP Bonus/Incentive/Special Pay | N22: O3 | P22: O3
A23: MGIB Monthly Contribution (Select from menu) | N23: O3E | P23: O3E
A24: Statement of Net Worth | N24: O4 | P24: O4
A25: Assets | C25: Liabilities | N25: O5 | P25: O5
A26: Cash (On Hand) | C26: Signature Loans (From Indebt page) | D26: =SUMIF(Purps,"Signature",DebtTotal) -> 0 | N26: O6 | P26: O6
A27: Checking Accounts | C27: Auto Loans or Lease | D27: =SUMIF(Purps,"Auto Loan/Lease",DebtTotal) -> 0 | N27: O7 | P27: O7
A28: Saving Accounts | C28: Consolidation Loans | D28: =SUMIF(Purps,"Consolidation",DebtTotal) -> 0 | N28: O8 | P28: O8
A29: Certificates of Deposits | C29: Student Loans | D29: =SUMIF(Purps,"Student",DebtTotal) -> 0 | N29: O9 | P29: O9
A30: Cash value of life insurance | C30: NEX/AAFES (Star Card) | D30: =SUMIF(Purps,"Star Card",DebtTotal) -> 0 | N30: O10 | P30: O10
A31: U.S. Savings Bonds | C31: Dept Store Credit Cards | D31: =SUMIF(Purps,"Dept Store",DebtTotal) -> 0 | P31: E2 1 Drill
A32: Mutual Funds/Money Market | C32: Other Credit Cards | D32: =SUMIF(Purps,"Visa Card",DebtTotal)+SUMIF(Purps,"Major CreditCard",DebtTotal)+SUMIF(Purps,"MasterCard",DebtTotal) -> 0 | P32: E2 4 Drills
A33: Stocks/Bonds | C33: NMCRS (Loan) | D33: =SUMIF(Purps,"NMCRS",DebtTotal) -> 0 | P33: E3 1 Drill
A34: College Funds | C34: Other (Friends, Relatives, etc.) | D34: =SUMIF(Purps,"Other",DebtTotal) -> 0 | P34: E3 4 Drills
A35: 401(k)/403(b)/IRA etc. | C35: Advance/Over Payments | D35: =SUMIF(Purps,"Advance Pmts",DebtTotal)+SUMIF(Purps,"Over Payments",DebtTotal) -> 0 | P35: E4 1 Drill
A36: TSP Balance (Starting balance for Estimator) | B36: 0 | P36: E4 4 Drills
A37: Roth TSP (Starting balance for Estimator) | B37: 0 | P37: E5 1 Drill
A38: Real Estate (Market Value) | C38: Mortgages-Balance Due | P38: E5 4 Drills
A39: Home | C39: Home | P39: E6 1 Drill
A40: Rental Property | C40: Rental Property | P40: E6 4 Drills
A41: Other (Vac Hm/Trailer/Time Share) | C41: Other (Vac Hm/Trailer/Time Share) | P41: E7 1 Drill
A42: Personal Property | P42: E7 4 Drills
A43: Vehicles/Motorcycles/Boats | P43: E8 1 Drill
A44: Furniture | P44: E8 4 Drills
A45: Jewelry | P45: E9 1 Drill
A46: Other (Collectibles, etc.) | P46: E9 4 Drills
A47: Total Assets | B47: =SUM(B26:B46)+SUM('2nd Active'!H26:H27) -> 0 | C47: Total Liabilities | D47: =SUM(D26:D46) -> 0 | P47: W1 1 Drill
P48: W1 4 Drills
P49: W2 1 Drill
A50: Net Worth | B50: =SUM(B47-D47) -> 0 | P50: W2 4 Drills
P51: W3 1 Drill
A52: Counseling Provided By: | P52: W3 4 Drills
P53: W4 1 Drill
A54: Counselor Phone #: | P54: W4 4 Drills
P55: W5 1 Drill
P56: W5 4 Drills
P57: O1E 1 Drill
P58: O1E 4 Drills
P59: O2E 1 Drill
P60: O2E 4 Drills
P61: O3E 1 Drill
P62: O3E 4 Drills
P63: O1 1 Drill
P64: O1 4 Drills
P65: O2 1 Drill
P66: O2 4 Drills
P67: O3 1 Drill
P68: O3 4 Drills
P69: O4 1 Drill
P70: O4 4 Drills
P71: O5 1 Drill
P72: O5 4 Drills
P73: O6 1 Drill
P74: O6 4 Drills
P75: O7 1 Drill
P76: O7 4 Drills

Sheet Income
D1: Monthly Income | H1: Page 2
A2: Entitlements | D2: Actual | F2: Projected | H2: Remarks | P2: Sea | Q2: Sub
A3: Base Pay | D3: =IF(ISERROR(VLOOKUP(APG,BASEPAY,IF(AYR="<2",2,AYR+1),FALSE)),0,(VLOOKUP(APG,BASEPAY,IF(AYR="<2",2,AYR+1),FALSE))) -> 0 | F3: =IF(ISERROR(VLOOKUP(PPG,BASEPAY,IF(PYR="<2",2,PYR+1),FALSE)),0,(VLOOKUP(PPG,BASEPAY,IF(PYR="<2",2,PYR+1),FALSE))) -> 0 | L3: None | M3: With Dependents | N3: Yes | O3: 0 | P3: None | Q3: None
A4: Basic Allowance for Housing (Select from menu of NetWorth) | D4: =IF(ISERROR(VLOOKUP(APG,ABAH,IF(LEFT(E4,1)="W",2,IF(LEFT(E4,1)="S",3,IF(LEFT(E4,1)="P",4,IF(LEFT(E4,1)="D",5,0)))),FALSE)),0,VLOOKUP(APG,ABAH,IF(LEFT(E4,1)="W",2,IF(LEFT(E4,1)="S",3,IF(LEFT(E4,1)="P",4,IF(LEFT(E4,1)="D",5,0)))),FALSE)) -> 0 | E4: =NetWorth!B8 -> 0 | F4: =IF(ISERROR(VLOOKUP(PPG,PBAH,IF(LEFT(G4,1)="W",2,IF(LEFT(G4,1)="S",3,IF(LEFT(G4,1)="P",4,IF(LEFT(G4,1)="D",5,0)))),FALSE)),0,VLOOKUP(PPG,PBAH,IF(LEFT(G4,1)="W",2,IF(LEFT(G4,1)="S",3,IF(LEFT(G4,1)="P",4,IF(LEFT(G4,1)="D",5,0)))),FALSE)) -> 0 | G4: =NetWorth!C8 -> With Dependents | L4: Standard | M4: Single | N4: No | O4: 1 | P4: 0 | Q4: <2
A5: Overseas Housing Allowance (OHA) | F5: 0 | L5: Partial | M5: Gov't Qtrs | O5: 2 | P5: 1 | Q5: 2
A6: Basic Allowance for Subsistence (BAS) (Select from menu) | D6: =IF(OR(LEFT(APG,1)="W",LEFT(APG,1)="O"),OFFICER,IF(LEFT(E6,1)="N",0,STANDARD)) -> 0 | E6: None | F6: =IF(OR(LEFT(PPG,1)="W",LEFT(PPG,1)="O"),OFFICER,IF(LEFT(G6,1)="N",0,STANDARD)) -> 0 | G6: None | L6: Rations not Avail | M6: Partial | O6: 3 | P6: 2 | Q6: 3
A7: Family Separation Allowance (FSA) (Select Yes or No) | D7: =IF(E7="Yes",FSA,0) -> 0 | E7: No | F7: =IF(G7="Yes",FSA,0) -> 0 | G7: No | M7: Differential | O7: 4 | P7: 3 | Q7: 4
A8: Flight Pay/Diving Pay/Flight Deck Pay | D8: 0 | F8: 0 | O8: 5 | P8: 4 | Q8: 6
A9: Submarine Pay (None or select qualified years) | D9: =IF(E9<>"None",VLOOKUP(APG,SUBPAY,IF(E9="<2",2,E9+1),FALSE),0) -> 0 | E9: None | F9: =IF(G9<>"None",VLOOKUP(PPG,SUBPAY,IF(G9="<2",2,G9+1),FALSE),0) -> 0 | G9: None | L9: Single | M9: Single | O9: 6 | P9: 5 | Q9: 8
A10: Other Hazardous Duty Pay | D10: 0 | F10: 0 | L10: Married | M10: Family | O10: 7 | P10: 6 | Q10: 10
A11: Sea Pay (None or select qualified years) | D11: =IF(E11<>"None",VLOOKUP(APG,SEAPAY,E11+2,FALSE),0) -> 0 | E11: None | F11: =IF(G11<>"None",VLOOKUP(PPG,SEAPAY,G11+2,FALSE),0) -> 0 | G11: None | L11: Exempt | M11: None | O11: 8 | P11: 7 | Q11: 12
A12: Taxable COLA | D12: 0 | F12: 0 | O12: 9 | P12: 8 | Q12: 14
A13: Other (tax exempt/allowance eg. COLA/FSSA) | D13: 0 | F13: 0 | O13: 10 | P13: 9 | Q13: 16
A14: Total Military Compensation (A) | D14: =SUM(D3:D13) -> 0 | F14: =SUM(F3:F13) -> 0 | P14: 10 | Q14: 18
A15: Taxable pay (Excludes PreTax for TSP/MGIB) | D15: =D14-D4-D5-D6-D7-D13-D26-D28 -> 0 | F15: =F14-F4-F5-F6-F7-F13-F26-F28 -> 0 | P15: 11 | Q15: 20
A16: Deductions: (Use CheckBox to include allotment in Spending Plan) | L16: Allotment Formulas | P16: 12 | Q16: 22
A17: Allotment (a) (Use remarks for description and end date) | D17: 0 | F17: 0 | L17: =IF(M17=TRUE,$D$17,0) -> 0 | M17: FALSE | N17: =IF(O17=TRUE,$F$17,0) -> 0 | O17: FALSE | P17: 13 | Q17: 24
A18: Allotment (b) | D18: 0 | F18: 0 | L18: =IF(M18=TRUE,$D$18,0) -> 0 | M18: FALSE | N18: =IF(O18=TRUE,$F$18,0) -> 0 | O18: FALSE | P18: 14 | Q18: 26
A19: Allotment (c) | D19: 0 | F19: 0 | L19: =IF(M19=TRUE,$D$19,0) -> 0 | M19: FALSE | N19: =IF(O19=TRUE,$F$19,0) -> 0 | O19: FALSE | P19: 16 | Q19: 30
A20: Allotment (d) | D20: 0 | F20: 0 | L20: =IF(M20=TRUE,$D$20,0) -> 0 | M20: FALSE | N20: =IF(O20=TRUE,$F$20,0) -> 0 | O20: FALSE | P20: 18 | Q20: 34
A21: Allotment (e) | F21: 0 | L21: =IF(M21=TRUE,$D$21,0) -> 0 | M21: FALSE | N21: =IF(O21=TRUE,$F$21,0) -> 0 | O21: FALSE | P21: 20 | Q21: 38
A22: Allotment (f ) | D22: 0 | F22: 0 | L22: =IF(M22=TRUE,$D$22,0) -> 0 | M22: FALSE | N22: =IF(O22=TRUE,$F$22,0) -> 0 | O22: FALSE | P22: 22
A23: Meal Collection Deduction | D23: 0 | F23: 0 | L23: =SUM(L17:L22) -> 0 | N23: =SUM(N17:N22) -> 0 | P23: 24
A24: Family SGLI (For Spouses) (From NetWorth) | D24: =FSGLI(NetWorth!B10,NetWorth!B17) -> 0 | F24: =FSGLI(NetWorth!C10,NetWorth!C17) -> 0 | P24: 26
A25: Servicemen's Group Life Insurance (SGLI) (From NetWorth) | D25: =IF(APG="",0,IF(ASGLI="0",0,NetWorth!$B$18/1000*FACTOR)+1) -> 0 | F25: =IF(PPG="",0,IF(PSGLI="0",0,NetWorth!$C$18/1000*FACTOR)+1) -> 0 | P25: 28
A26: Uniform Services TSP (From NetWorth) | D26: =ROUND(D3*NetWorth!B19,2)+NetWorth!B20 -> 0 | F26: =ROUND(F3*NetWorth!C19,2)+NetWorth!C20 -> 0 | P26: 30
A27: Uniform Services Roth TSP (From NetWorth) | D27: =ROUND(D3*NetWorth!B21,2)+NetWorth!B22 -> 0 | F27: =ROUND(F3*NetWorth!C21,2)+NetWorth!C22 -> 0 | L27: Actual Status | M27: Exemptions | N27: Projected Status | O27: Exemptions | P27: 34
A28: MGIB (From NetWorth) | D28: =VALUE(NetWorth!B23) -> 0 | F28: =VALUE(NetWorth!C23) -> 0 | L28: =B29 -> Married | M28: =C29 -> 0 | N28: =I29 -> Married | O28: =J29 -> 0 | P28: 38
A29: FITW Filing Status Actual: | B29: Married | D29: 0 | F29: 0 | H29: Proj Status: | I29: Married
A30: FICA (Social Security) (Base Pay only Excludes MGIB) | D30: =ROUND((D3-D28)*0.062,2) -> 0 | F30: =ROUND((F3-F28)*0.062,2) -> 0
A31: FICA (Medicare) (Base Pay only Excludes MGIB) | D31: =ROUND((D3-D28)*0.0145,2) -> 0 | F31: =ROUND((F3-F28)*0.0145,2) -> 0
A32: State Income Tax (Use Remarks to indicate State) | D32: 0 | F32: 0
A33: AFRH (Armed Forces Retirement Home) | D33: =IF(OR(LEFT(APG,1)="E",LEFT(APG,1)="W",RIGHT(APG,1)="E"),AFRH,0) -> 0 | F33: =IF(OR(LEFT(PPG,1)="E",LEFT(PPG,1)="W",RIGHT(PPG,1)="E"),AFRH,0) -> 0
A34: Tricare Dental Plan (TDP) (Select None, Single or Family) | D34: =IF(E34="None",0,IF(E34="Single",IF(TODAY()>=43585,SINGDENTFEB,SINGDENT),IF(E34="Family",IF(TODAY()>=43585,FAMDENTFEB,FAMDENT),0))) -> 0 | E34: None | F34: =IF(G34="None",0,IF(G34="Single",IF(TODAY()>=43585,SINGDENTFEB,SINGDENT),IF(G34="Family",IF(TODAY()>=43585,FAMDENTFEB,FAMDENT),0))) -> 0 | G34: None | H34: ="Actual = "&E34&" / Projected = "&G34 -> Actual = None / Projected = None
A35: Advance Payments (Use Remarks to indicate end Date) | D35: 0 | F35: 0
A36: Over Payments (Use Remarks to indicate end Date) | D36: 0 | F36: 0
A37: Total Deductions (B) | D37: =SUM(D17:D36) -> 0 | F37: =SUM(F17:F36) -> 0
A38: Calculate Net Income
A39: Servicemember's Take Home Pay (A-B) | D39: =D14-D37 -> 0 | F39: =F14-F37 -> 0 | H39: ="Actual $"&ROUND(D39/2,2)&"/ Projected $"&ROUND(F39/2,2) -> Actual $0/ Projected $0
A40: Spouse's Earnings (less taxes) (From 2nd Income) | D40: ='2ndIncome'!D29 -> 0 | F40: ='2ndIncome'!F29 -> 0 | H40: Enter monthly income or
A41: Member's 2nd Income (less taxes) (From 2nd Income) | D41: ='2ndIncome'!D59 -> 0 | F41: ='2ndIncome'!F59 -> 0 | H41: use 2nd Income page.
A42: =A17 -> Allotment (a) (Use remarks for description and end date) | D42: 0 | F42: =F17 -> 0
A43: Allotment (b) | D43: 0 | F43: 0
A44: Allotment (c) | D44: 0 | F44: 0
A45: Allotment (d) | D45: 0 | F45: 0
A46: Allotment (e) | D46: 0 | F46: 0
A47: Allotment (f ) | D47: 0 | F47: 0
A48: Meal Collection Deduction | D48: =D23 -> 0 | F48: 0
A49: Family SGLI (For Spouses) | D49: 0 | F49: 0
A50: Servicemen's Group Life Insurance (SGLI) | D50: 0 | F50: 0
A51: Uniform Services TSP | D51: 0 | F51: 0
A52: Uniform Services Roth TSP | D52: 0 | F52: 0
A53: MGIB | D53: 0 | F53: 0
A54: Tricare Dental Plan (TDP) | D54: =D34 -> 0 | F54: =F34 -> 0
A55: Advance Payments | D55: =D35 -> 0 | F55: =F35 -> 0
A56: Over Payments | D56: =D36 -> 0 | F56: =F36 -> 0
A57: Child Support/Alimony (Received/Income) | D57: 0 | F57: 0
A58: Other Income (e.g. SSI, Rental Income) | D58: 0 | F58: 0
A59: Total Net Monthly Income | D59: =SUM(D39:D58) -> 0 | F59: =SUM(F39:F58) -> 0
A60: =IF(OR('2nd Active'!D57>0,'2nd Active'!F57>0),"Dual Military Total Net Monthly Income","") ->  | D60: =IF('2nd Active'!D57>0,D59+'2nd Active'!D57,"") ->  | F60: =IF('2nd Active'!F57>0,F59+'2nd Active'!F57,"") -> 

Sheet 2nd Active
D1: Monthly Income | H1: Page 2B | L1: =B3 -> 0 | M1: =C3 -> 0 | N1: =H3 -> 0 | O1: =I3 -> 0 | P1: =H4 -> 0 | Q1: =H4 -> 0 | U1: =I24 -> 0 | V1: =I25 -> 0
A2: Entitlements | D2: Actual | F2: Projected | H2: Remarks | P2: Sea | Q2: Sub | U2: FSGLI | V2: SGLI
A3: Base Pay | D3: =IF(ISERROR(VLOOKUP(L1,BASEPAY,IF(M1="<2",2,M1+1),FALSE)),0,(VLOOKUP(L1,BASEPAY,IF(M1="<2",2,M1+1),FALSE))) -> 0 | F3: =IF(ISERROR(VLOOKUP(N1,BASEPAY,IF(O1="<2",2,O1+1),FALSE)),0,(VLOOKUP(N1,BASEPAY,IF(O1="<2",2,O1+1),FALSE))) -> 0 | L3: None | M3: With Dependents | N3: Yes | O3: 0 | P3: None | Q3: None
A4: Basic Allowance for Housing (Enter Zipcode in Remarks) | D4: =IF(ISERROR(VLOOKUP(L1,ABAH,IF(LEFT(E4,1)="W",6,IF(LEFT(E4,1)="S",7,IF(LEFT(E4,1)="P",4,IF(LEFT(E4,1)="D",5,0)))),FALSE)),0,VLOOKUP(L1,ABAH,IF(LEFT(E4,1)="W",6,IF(LEFT(E4,1)="S",7,IF(LEFT(E4,1)="P",4,IF(LEFT(E4,1)="D",5,0)))),FALSE)) -> 0 | E4: With Dependents | F4: =IF(ISERROR(VLOOKUP(N1,PBAH,IF(LEFT(G4,1)="W",6,IF(LEFT(G4,1)="S",7,IF(LEFT(G4,1)="P",4,IF(LEFT(G4,1)="D",5,0)))),FALSE)),0,VLOOKUP(N1,PBAH,IF(LEFT(G4,1)="W",6,IF(LEFT(G4,1)="S",7,IF(LEFT(G4,1)="P",4,IF(LEFT(G4,1)="D",5,0)))),FALSE)) -> 0 | G4: With Dependents | L4: Standard | M4: Single | N4: No | O4: 1 | P4: 0 | Q4: <2 | R4: <2 | U4: 0 | V4: 0
A5: Overseas Housing Allowance (OHA) | F5: 0 | L5: Partial | M5: Gov't Qtrs | O5: 2 | P5: 1 | Q5: 2 | R5: 2 | U5: 10000 | V5: 50000
A6: Basic Allowance for Subsistence (BAS) (Select from menu) | D6: =IF(OR(LEFT(L1,1)="W",LEFT(L1,1)="O"),OFFICER,IF(LEFT(E6,1)="N",0,STANDARD)) -> 0 | E6: None | F6: =IF(OR(LEFT(N1,1)="W",LEFT(N1,1)="O"),OFFICER,IF(LEFT(G6,1)="N",0,STANDARD)) -> 0 | G6: None | L6: Rations not Avail | M6: Partial | O6: 3 | P6: 2 | Q6: 3 | R6: 3 | U6: 20000 | V6: 100000
A7: Family Separation Allowance (FSA) (Select Yes or No) | D7: =IF(E7="Yes",FSA,0) -> 0 | E7: No | F7: =IF(G7="Yes",FSA,0) -> 0 | G7: No | M7: Differential | O7: 4 | P7: 3 | Q7: 4 | R7: 4 | U7: 30000 | V7: 150000
A8: Flight Pay/Diving Pay/Flight Deck Pay | D8: 0 | F8: 0 | O8: 5 | P8: 4 | Q8: 6 | R8: 6 | U8: 40000 | V8: 200000
A9: Submarine Pay (None or select qualified years) | D9: =IF(E9<>"None",VLOOKUP(L1,SUBPAY,IF(E9="<2",2,E9+1),FALSE),0) -> 0 | E9: None | F9: =IF(G9<>"None",VLOOKUP(N1,SUBPAY,IF(G9="<2",2,G9+1),FALSE),0) -> 0 | G9: None | L9: Single | M9: Single | O9: 6 | P9: 5 | Q9: 8 | R9: 8 | U9: 50000 | V9: 250000
A10: Other Hazardous Duty Pay | D10: 0 | F10: 0 | L10: Married | M10: Family | O10: 7 | P10: 6 | Q10: 10 | R10: 10 | U10: 60000 | V10: 300000
A11: Sea Pay (None or select qualified years) | D11: =IF(E11<>"None",VLOOKUP(L1,SEAPAY,E11+2,FALSE),0) -> 0 | E11: None | F11: =IF(G11<>"None",VLOOKUP(N1,SEAPAY,G11+2,FALSE),0) -> 0 | G11: None | L11: Exempt | M11: None | O11: 8 | P11: 7 | Q11: 12 | R11: 12 | U11: 70000 | V11: 350000
A12: Taxable COLA | D12: 0 | F12: 0 | O12: 9 | P12: 8 | Q12: 14 | R12: 14 | U12: 80000 | V12: 400000
A13: Other (tax exempt/allowance eg. COLA/FSSA) | D13: 0 | F13: 0 | O13: 10 | P13: 9 | Q13: 16 | R13: 16 | U13: 90000
A14: Total Military Compensation (A) | D14: =SUM(D3:D13) -> 0 | F14: =SUM(F3:F13) -> 0 | P14: 10 | Q14: 18 | R14: 18 | U14: 100000
A15: Taxable pay (Excludes PreTax for TSP/MGIB) | D15: =D14-D4-D5-D6-D7-D13-D26-D28 -> 0 | F15: =F14-F4-F5-F6-F7-F13-F26-F28 -> 0 | P15: 11 | Q15: 20 | R15: 20
A16: Deductions: (Use CheckBox to include allotment in Spending Plan) | L16: Allotment Formulas | P16: 12 | Q16: 22 | R16: 22
A17: Allotment (a) (Use remarks for description and end date) | D17: 0 | F17: 0 | L17: =IF(M17=TRUE,$D$17,0) -> 0 | M17: FALSE | N17: =IF(O17=TRUE,$F$17,0) -> 0 | O17: FALSE | P17: 13 | Q17: 24 | R17: 24
A18: Allotment (b) | D18: 0 | F18: 0 | L18: =IF(M18=TRUE,$D$18,0) -> 0 | M18: FALSE | N18: =IF(O18=TRUE,$F$18,0) -> 0 | O18: FALSE | P18: 14 | Q18: 26 | R18: 26
A19: Allotment (c) | D19: 0 | F19: 0 | L19: =IF(M19=TRUE,$D$19,0) -> 0 | M19: FALSE | N19: =IF(O19=TRUE,$F$19,0) -> 0 | O19: FALSE | P19: 16 | Q19: 30 | R19: 30
A20: Allotment (d) | D20: 0 | F20: 0 | L20: =IF(M20=TRUE,$D$20,0) -> 0 | M20: FALSE | N20: =IF(O20=TRUE,$F$20,0) -> 0 | O20: FALSE | P20: 18 | Q20: 34 | R20: 34
A21: Allotment (e) | D21: 0 | F21: 0 | L21: =IF(M21=TRUE,$D$21,0) -> 0 | M21: FALSE | N21: =IF(O21=TRUE,$F$21,0) -> 0 | O21: FALSE | P21: 20 | Q21: 38 | R21: 38
A22: Allotment (f ) | D22: 0 | F22: 0 | L22: =IF(M22=TRUE,$D$22,0) -> 0 | M22: FALSE | N22: =IF(O22=TRUE,$F$22,0) -> 0 | O22: FALSE | P22: 22
A23: Meal Collection Deduction | D23: 0 | F23: 0 | L23: =SUM(L17:L22) -> 0 | N23: =SUM(N17:N22) -> 0 | P23: 24
A24: Family SGLI (For Spouses) | D24: =IF(E24<17,0,FSGLI(E24,U1)) -> 0 | E24: =NetWorth!B4 -> 0 | F24: =IF(G24<17,0,FSGLI(G24,U1)) -> 0 | G24: =NetWorth!C4 -> 0 | H24: Elected Coverage of | P24: 26
A25: Servicemen's Group Life Insurance (SGLI) | D25: =IF(D3=0,0,IF(L1="",0,IF(V1="0",0,V1/1000*FACTOR)+1)) -> 0 | F25: =IF(F3=0,0,IF(N1="",0,IF(V1="0",0,V1/1000*FACTOR)+1)) -> 0 | H25: Elected Coverage of | P25: 28
A26: Uniform Services TSP (Enter Percentage in "E26" & "G26") | D26: =ROUND(D3*E26,2) -> 0 | E26: 0 | F26: =ROUND(F3*G26,2) -> 0 | G26: 0 | H26: Enter Starting Balance | P26: 30
A27: Uniform Services Roth TSP (Enter Percentage in "E27" & "G27") | D27: =ROUND(D3*E27,2) -> 0 | E27: 0 | F27: =ROUND(F3*G27,2) -> 0 | G27: 0 | H27: Enter Starting Balance | L27: Actual Status | M27: Exemptions | N27: Projected Status | O27: Exemptions | P27: 34
A28: MGIB (Select Yes or No) | D28: =IF(E28="yes",100,0) -> 0 | E28: No | F28: =IF(G28="Yes",100,0) -> 0 | G28: No | L28: =B29 -> Married | M28: =C29 -> 0 | N28: =I29 -> Married | O28: =J29 -> 0 | P28: 38
A29: FITW Filing Status Actual: | B29: Married | D29: 0 | F29: 0 | H29: Projected Status: | I29: Married
A30: FICA (Social Security) (Base Pay only Excludes MGIB) | D30: =ROUND((D3-D28)*0.062,2) -> 0 | F30: =ROUND((F3-F28)*0.062,2) -> 0
A31: FICA (Medicare) (Base Pay only Excludes MGIB) | D31: =ROUND((D3-D28)*0.0145,2) -> 0 | F31: =ROUND((F3-F28)*0.0145,2) -> 0
A32: State Income Tax (Use Remarks to indicate State) | D32: 0 | F32: 0
A33: AFRH (Armed Forces Retirement Home) | D33: =IF(OR(LEFT(L1,1)="E",LEFT(L1,1)="W",RIGHT(L1,1)="E"),AFRH,0) -> 0 | F33: =IF(OR(LEFT(N1,1)="E",LEFT(N1,1)="W",RIGHT(N1,1)="E"),AFRH,0) -> 0
A34: Tricare Dental Plan (TDP) (Select None, Single or Family) | D34: =IF(E34="None",0,IF(E34="Single",IF(TODAY()>=43585,SINGDENTFEB,SINGDENT),IF(E34="Family",IF(TODAY()>=43585,FAMDENTFEB,FAMDENT),0))) -> 0 | E34: None | F34: =IF(G34="None",0,IF(G34="Single",IF(TODAY()>=43585,SINGDENTFEB,SINGDENT),IF(G34="Family",IF(TODAY()>=43585,FAMDENTFEB,FAMDENT),0))) -> 0 | G34: None | H34: ="Actual = "&E34&" / Projected = "&G34 -> Actual = None / Projected = None
A35: Advance Payments (Use Remarks to indicate end Date) | D35: 0 | F35: 0
A36: Over Payments (Use Remarks to indicate end Date) | D36: 0 | F36: 0
A37: Total Deductions (B) | D37: =SUM(D17:D36) -> 0 | F37: =SUM(F17:F36) -> 0
A38: Calculate Net Income
A39: Servicemember's Take Home Pay (A-B) | D39: =D14-D37 -> 0 | F39: =F14-F37 -> 0 | H39: ="Actual $"&ROUND(D39/2,2)&"/ Projected $"&ROUND(F39/2,2) -> Actual $0/ Projected $0
A40: =A17 -> Allotment (a) (Use remarks for description and end date) | D40: 0 | F40: =F17 -> 0
A41: Allotment (b) | D41: 0 | F41: 0
A42: Allotment (c) | D42: 0 | F42: 0
A43: Allotment (d) | D43: 0 | F43: 0
A44: Allotment (e) | D44: 0 | F44: 0
A45: Allotment (f ) | D45: 0 | F45: 0
A46: Meal Collection Deduction | D46: 0 | F46: 0
A47: Family SGLI (For Spouses) | D47: =D24 -> 0 | F47: 0
A48: Servicemen's Group Life Insurance (SGLI) | D48: 0 | F48: 0
A49: Uniform Services TSP | D49: 0 | F49: 0
A50: Uniform Services Roth TSP | D50: =D27 -> 0 | F50: =F27 -> 0
A51: MGIB | D51: =D28 -> 0 | F51: =F28 -> 0
A52: Tricare Dental Plan (TDP) | D52: =D34 -> 0 | F52: =F34 -> 0
A53: Advance Payments | D53: =D35 -> 0 | F53: =F35 -> 0
A54: Over Payments | D54: =D36 -> 0 | F54: =F36 -> 0
A55: Child Support/Alimony (Received/Income) | D55: 0 | F55: 0
A56: Other Income (e.g. SSI, Rental Income) | D56: 0 | F56: 0
A57: Total Net Monthly Income | D57: =SUM(D39:D56) -> 0 | F57: =SUM(F39:F56) -> 0

Sheet 2ndIncome
D1: Spouse's Earnings | H1: Page 2A
A2: Entitlements | D2: Actual | F2: Projected | H2: Remarks
A3: Hourly Rate | D3: 0 | F3: 0
A4: Total Regular Hours | B4: BiWeekly | D4: 0 | F4: 0 | H4: BiWeekly
A5: Annual Leave Hours | D5: 0 | F5: 0
A6: Sick Leave Hours | D6: 0 | F6: 0
A7: Overtime Hours | D7: 0 | F7: 0
A8: Bonus | D8: 0 | F8: 0
A9: Other (tax exempt income) | D9: 0 | F9: 0
A10: Total Pay Period Wage (A) | D10: =(D3*D4)+(D3*D5)+(D3*D6)+((D3*1.5)*D7)+D8 -> 0 | F10: =(F3*F4)+(F3*F5)+(F3*F6)+((F3*1.5)*F7)+F8 -> 0
A11: Taxable pay (Excludes pretax deductions) | D11: =D10-D9-D16-D18 -> 0 | F11: =F10-F9-F16-F18 -> 0
A12: Deductions:
A13: Allotment (a) (Use remarks for description and end date) | D13: 0 | F13: 0 | L13: Retirement Funds
A14: Allotment (b) | D14: 0 | F14: 0 | L14: =IF(LEFT($L17,1)="W",SUM(D17:D18)*52/12,IF(LEFT($L17,1)="B",SUM(D17:D18)*26/12,IF(LEFT($L17,1)="S", SUM(D17:D18)*24/12,SUM(D17:D18)))) -> 0 | M14: =IF(LEFT($M17,1)="W",SUM(F17:F18)*52/12,IF(LEFT($M17,1)="B",SUM(F17:F18)*26/12,IF(LEFT($M17,1)="S", SUM(F17:F18)*24/12,SUM(F17:F18)))) -> 0 | P14: Weekly
A15: Life Insurance (Taxable) | D15: 0 | F15: 0 | P15: BiWeekly
A16: Health and Dental Care Plans (PreTax except FICA) | D16: 0 | F16: 0 | P16: Semi-Monthly
A17: Retirement Fund (Taxable) | D17: 0 | F17: 0 | L17: =B4 -> BiWeekly | M17: =H4 -> BiWeekly | P17: Monthly | Q17: 0
A18: 401k/403b/Retirement Fund (PreTax) | D18: 0 | F18: 0 | L18: Actual Status | M18: Exemptions | N18: Projected Status | O18: Exemptions | P18: Married | Q18: 1
A19: Additional Federal Withholding | D19: 0 | F19: 0 | L19: =B20 -> Married | M19: =C20 -> 0 | N19: =I20 -> Married | O19: =J20 -> 0 | P19: Single | Q19: 2
A20: FITW Filing Status Actual: | B20: Married | D20: 0 | F20: 0 | H20: Projected Status: | I20: Married | P20: Exempt | Q20: 3
A21: FICA (Social Security) | D21: =ROUND((D10-D16)*0.062,2) -> 0 | F21: =ROUND((F10-F16)*0.062,2) -> 0 | Q21: 4
A22: FICA (Medicare) | D22: =ROUND((D10-D16)*0.0145,2) -> 0 | F22: =ROUND((F10-F16)*0.0145,2) -> 0 | Q22: 5
A23: State Income Tax (Use Remarks to indicate State) | D23: 0 | F23: 0 | Q23: 6
A24: Total Deductions (B) | D24: =SUM(D13:D23)-D19 -> 0 | F24: =SUM(F13:F23)-F19 -> 0 | Q24: 7
A25: Calculate Net Income | Q25: 8
A26: 2nd Income's Take Home Pay (A-B) | D26: =D10-D24 -> 0 | F26: =F10-F24 -> 0 | Q26: 9
A27: =A13 -> Allotment (a) (Use remarks for description and end date) | D27: =D13 -> 0 | F27: =F13 -> 0 | Q27: 10
A28: =A14 -> Allotment (b) | D28: =D14 -> 0 | F28: =F14 -> 0
A29: Total Net Monthly Income | D29: =IF(LEFT($L17,1)="W",SUM(D26:D28,D15:D18)*52/12,IF(LEFT($L17,1)="B",SUM(D26:D28,D15:D18)*26/12,IF(LEFT($L17,1)="S", SUM(D26:D28,D15:D18)*24/12,SUM(D26:D28,D15:D18)))) -> 0 | F29: =IF(LEFT($M17,1)="W",SUM(F26:F28,F15:F18)*52/12,IF(LEFT($M17,1)="B",SUM(F26:F28,F15:F18)*26/12,IF(LEFT($M17,1)="S", SUM(F26:F28,F15:F18)*24/12,SUM(F26:F28,F15:F18)))) -> 0
D31: Sevicemember's 2nd Income
A32: Entitlements | D32: Actual | F32: Projected | H32: Remarks
A33: Hourly Rate | D33: 0 | F33: 0
A34: Total Regular Hours | B34: BiWeekly | D34: 0 | F34: 0 | H34: BiWeekly
A35: Annual Leave Hours | D35: 0 | F35: 0
A36: Sick Leave Hours | D36: 0 | F36: 0
A37: Overtime Hours | D37: 0 | F37: 0
A38: Bonus | D38: 0 | F38: 0
A39: Other (tax exempt income) | D39: 0 | F39: 0
A40: Total Pay Period Wage (A) | D40: =(D33*D34)+(D33*D35)+(D33*D36)+((D33*1.5)*D37)+D38 -> 0 | F40: =(F33*F34)+(F33*F35)+(F33*F36)+((F33*1.5)*F37)+F38 -> 0
A41: Taxable pay (Excludes pretax deductions) | D41: =D40-D39-D46-D48 -> 0 | F41: =F40-F39-F46-F48 -> 0
A42: Deductions:
A43: Allotment (a) (Use remarks for description and end date) | D43: 0 | F43: 0 | L43: Retirement Funds
A44: Allotment (b) | D44: 0 | F44: 0 | L44: =IF(LEFT($L49,1)="W",SUM(D47:D48)*52/12,IF(LEFT($L49,1)="B",SUM(D47:D48)*26/12,IF(LEFT($L49,1)="S", SUM(D47:D48)*24/12,SUM(D47:D48)))) -> 0 | M44: =IF(LEFT($M49,1)="W",SUM(F47:F48)*52/12,IF(LEFT($M49,1)="B",SUM(F47:F48)*26/12,IF(LEFT($M49,1)="S", SUM(F47:F48)*24/12,SUM(F47:F48)))) -> 0
A45: Life Insurance (Taxable) | D45: 0 | F45: 0
A46: Health and Dental Care Plans (PreTax except FICA) | D46: 0 | F46: 0
A47: Retirement Fund (Taxable) | D47: 0 | F47: 0
A48: 401k/403b/Retirement Fund (PreTax) | D48: 0 | F48: 0
A49: Additional Federal Withholding | D49: 0 | F49: 0 | L49: =B34 -> BiWeekly | M49: =H34 -> BiWeekly
A50: FITW Filing Status Actual: | B50: Married | D50: 0 | F50: 0 | H50: Projected Status: | I50: Married | L50: =B50 -> Married | M50: =C50 -> 0 | N50: =I50 -> Married | O50: =J50 -> 0
A51: FICA (Social Security) | D51: =ROUND((D40-D46)*0.062,2) -> 0 | F51: =ROUND((F40-F46)*0.062,2) -> 0
A52: FICA (Medicare) | D52: =ROUND((D40-D46)*0.0145,2) -> 0 | F52: =ROUND((F40-F46)*0.0145,2) -> 0
A53: State Income Tax (Use Remarks to indicate State) | D53: 0 | F53: 0
A54: Total Deductions (B) | D54: =SUM(D43:D53)-D49 -> 0 | F54: =SUM(F43:F53)-F49 -> 0
A55: Calculate Net Income
A56: Members 2nd Income's Take Home Pay (A-B) | D56: =D40-D54 -> 0 | F56: =F40-F54 -> 0
A57: =A43 -> Allotment (a) (Use remarks for description and end date) | D57: =D43 -> 0 | F57: =F43 -> 0
A58: =A44 -> Allotment (b) | D58: =D44 -> 0 | F58: =F44 -> 0
A59: Total Net Monthly Income | D59: =IF(LEFT($L49,1)="W",SUM(D56:D58,D45:D48)*52/12,IF(LEFT($L49,1)="B",SUM(D56:D58,D45:D48)*26/12,IF(LEFT($L49,1)="S",SUM(D56:D58,D45:D48)*24/12,SUM(D56:D58,D45:D48)))) -> 0 | F59: =IF(LEFT($M49,1)="W",SUM(F56:F58,F45:F48)*52/12,IF(LEFT($M49,1)="B",SUM(F56:F58,F45:F48)*26/12,IF(LEFT($M49,1)="S",SUM(F56:F58,F45:F48)*24/12,SUM(F56:F58,F45:F48)))) -> 0

Sheet LivingExp
C1: MONTHLY SAVINGS AND LIVING EXPENSES | H1: Page 3
A2: Note: Actual or Projected Figures are carried forward to spending plan.
A3: Savings | D3: Actual | F3: Projected | H3: Remarks
A4: SAVINGS | C4: Emergency Fund (1-3 Months) (Monthly Amount)
A5: 10% Minimum | C5: Reserve Fund (Monthly Amount)
C6: "Goal Getter" Fund (Monthly Amount)
A7: Actual | B7: Projected | C7: Investments/IRAs/etc. (Monthly Amount)
A8: =(Income!D59+'2nd Active'!D57)*0.1 -> 0 | B8: =(Income!F59+'2nd Active'!F57)*0.1 -> 0 | C8: TSP/401k/403b (From Income pages) | D8: =SUM(Income!D26:D27)+'2ndIncome'!L14+'2ndIncome'!L44+SUM('2nd Active'!D26:D27) -> 0 | F8: =SUM(Income!F26:F27)+'2ndIncome'!M14+'2ndIncome'!M44+SUM('2nd Active'!F26:F27) -> 0
A9: Total Savings & Investments (10%) | D9: =SUM(D4:D8) -> 0 | F9: =SUM(F4:F8) -> 0 | H9: ="Actual: "&IF(ISERROR(D9/(Income!D59+'2nd Active'!D57))=TRUE,"",ROUND((D9/(Income!D59+'2nd Active'!D57)*100),2)&"% Projected: "&IF(ISERROR(F9/(Income!F59+'2nd Active'!F57))=TRUE,"",ROUND((F9/(Income!F59+'2nd Active'!D57)*100),2)&"%")) -> Actual:
A10: Living Expenses | D10: Actual | F10: Projected | H10: Remarks
A11: Household | C11: Furnishings | D11: 0 | F11: 0
C12: Maintenance/Repairs/Storage Fees
C13: Mortgage/Rent | D13: 0 | F13: 0
C14: Taxes/Fees/Homeowners Assoc Fees
A15: Food | C15: Dining Out/Dinners | D15: 0 | F15: 0
C16: Food/Supplies (Commissary & other stores) | D16: 0 | F16: 0
C17: Lunches (Include school and work lunches) | D17: 0 | F17: 0
C18: Coffee/Gedunk/Vending Machines/Treats | D18: 0 | F18: 0
C19: Meal Deductions | D19: =Income!D23+'2nd Active'!D23 -> 0 | F19: =Income!F23+'2nd Active'!F23 -> 0
A20: Utilities | C20: Cable/Satellite TV | D20: 0 | F20: 0
C21: Cellular/Pagers/Phone Cards | D21: 0 | F21: 0
C22: Electricity | D22: 0 | F22: 0
C23: Internet Service | D23: 0 | F23: 0
C24: Natural Gas/Propane | D24: 0 | F24: 0
C25: Telephone | D25: 0 | F25: 0 | H25: Local = $________Long Distance = $ ________
C26: Water/Garbage/Sewage
A27: Child Care | C27: Allowances (AD/Spouse/Children)
C28: Daycare/Private School Tuition
C29: Support (Include other dependant care)
A30: Automobile | C30: Gasoline | D30: 0 | F30: 0
C31: Maintenance/Repairs
C32: Other (Plates, Registration, taxes, etc) | D32: 0 | F32: 0
A33: Clothing | C33: Laundry/Dry Cleaning
C34: Purchases (Estimate $50 Monthly per Person)
A35: Insurance | C35: Automobile
C36: Health/Life (add additional insurance here)
C37: Homeowners/Renters
C38: SGLI/FSGLI (From Income deductions) | D38: =SUM(Income!D24:D25)+SUM('2nd Active'!D24:D25) -> 0 | F38: =SUM(Income!F24:F25)+SUM('2nd Active'!F24:F25) -> 0
C39: Tricare Dental | D39: =Income!D34+'2nd Active'!D34 -> 0 | F39: =Income!F34+'2nd Active'!F34 -> 0
A40: Healthcare | C40: Dental
C41: Eye Care | D41: 0 | F41: 0
C42: Hospital/Physician
C43: Prescriptions/Vitamins/Supplements
A44: Education | C44: Books | D44: 0 | F44: 0
C45: Fees (Other/Room & Board)
C46: Tuition | D46: 0 | F46: 0
C47: Montgomery GI Bill (MGIB from Income pages) | D47: =Income!D28+'2nd Active'!D28 -> 0 | F47: =Income!F28+'2nd Active'!F28 -> 0
A48: Contributions | C48: Charities (CFC/NMCRS)
C49: Club Dues/Association Fees | D49: 0 | F49: 0
C50: Religious
A51: Leisure | C51: Athletic Events/Sporting Goods (Event Tickets) | D51: 0 | F51: 0
C52: Books & Magazines/eBooks | D52: 0 | F52: 0
C53: Computer Products (Software/Hardware/Supplies)
C54: DVD/Blue Ray/Video Games Rentals/Memberships
C55: Purchase DVD's/CD's/Apps & ITunes
C56: Entertainment/Entertaining/Movies
C57: Lessons (Dance, Music, Self-Defense, etc) | D57: 0 | F57: 0
C58: Toys & Games
C59: Travel/Lodging | D59: 0 | F59: 0
A60: Gifts | C60: Holidays
C61: Birthdays/Anniversaries
A62: Personal Care | C62: Barber/Beauty Shop (Hair/Nails) | D62: 0 | F62: 0
C63: Beer/Liquor/Wine (ABC, Package Store, etc)
C64: Other (Fitness Center/Tanning/Massage) | D64: 0 | F64: 0
C65: Tobacco Products (including anti-smoking)
A66: Pet Care | C66: Food/Supplies
C67: Veterinarian/Service (Boarding/Grooming) | D67: 0 | F67: 0
A68: Job Expense | C68: Non-Reimbursed
C69: Reimbursed | D69: 0 | F69: 0
A70: Miscellaneous | C70: ATM Fees/Stamps/etc…
C71: Other (Recommended $50-$150 Buffer)
A72: Total Monthly Living Expenses (70%) | D72: =SUM(D11:D71) -> 0 | F72: =SUM(F11:F71) -> 0 | H72: ="Actual: "&IF(ISERROR(D72/(Income!D59+'2nd Active'!D57))=TRUE,"",ROUND((D72/(Income!D59+'2nd Active'!D57)*100),2)&"% Projected: "&IF(ISERROR(F72/(Income!F59+'2nd Active'!F57))=TRUE,"",ROUND((F72/(Income!F59+'2nd Active'!F57)*100),2)&"%")) -> Actual:

Sheet Indebt
B1: Indebtedness (20%) | H1: Page 4
B2: Creditor (Account #/Phone #) | C2: Purpose | D2: Min Mo. Payment | E2: Balance | F2: Pro Payment | G2: Remarks (Mos Behind, Paid by Allotment, etc.) | H2: APR (%)
A3: 1 | B3: US Govt. | C3: Advance Pmts | D3: =Income!D35+'2nd Active'!D35 -> 0 | F3: =Income!F35+'2nd Active'!F35 -> 0 | G3: Automatic Deduction | I3: Advance Pmts
A4: 2 | B4: Gov't Credit Card | C4: Over Payments | D4: =Income!D36+'2nd Active'!D36 -> 0 | F4: =Income!F36+'2nd Active'!F36 -> 0 | G4: Automatic Deduction | I4: Auto Loan/Lease
A5: 3 | I5: Consolidation
A6: 4 | I6: Dept Store
A7: 5 | I7: Major CreditCard
A8: 6 | I8: MasterCard
A9: 7 | I9: NMCRS
A10: 8 | I10: Other
A11: 9 | I11: Over Payments
A12: 10 | I12: Signature
A13: 11 | I13: Star Card
A14: 12 | I14: Student
A15: 13 | I15: Visa Card
A16: 14
A17: 15
A18: 16
A19: 17
A20: 18
A21: 19
A22: 20
A23: 21
A24: 22
A25: 23
A26: 24
A27: 25
C28: Total | D28: =SUM(D3:D27) -> 0 | E28: =SUM(E3:E27) -> 0 | F28: =SUM(F3:F27) -> 0 | H28: Actual
H29: Projected
C30: Actual | D30: Projected | H30: Projected
B31: Net Income (Bottom of Page 2 & 2B) | C31: =Income!D59+'2nd Active'!D57 -> 0 | D31: =Income!F59+'2nd Active'!F57 -> 0 | E31: =IF(LEFT($H$30,1)="A",C31,D31) -> 0 | F31: Income
B32: Savings and Investments (Near Top of Page 3) | C32: =LivingExp!D9 -> 0 | D32: =LivingExp!F9 -> 0 | E32: 0 | F32: Savings
B33: Living Expenses (Bottom of Page 3) | C33: =LivingExp!D72 -> 0 | D33: =LivingExp!F72 -> 0 | E33: 0 | F33: Living Expenses
B34: Amount Left to Pay Debts | C34: =C31-C32-C33 -> 0 | D34: =D31-D32-D33 -> 0 | E34: 0
B35: Debts (Bottom of Page 4) | C35: =D28 -> 0 | D35: =F28 -> 0 | E35: 0 | F35: Debts
B36: Extra Steam (Bottom Page 9) | C36: =FullSteam!monext -> 0 | D36: =FullSteam!monext -> 0 | E36: =IF(LEFT($H$30,1)="A",C37,D37) -> 0 | F36: Surplus
B37: Surplus or Deficit | C37: =C34-C35-C36 -> 0 | D37: =D34-D35-D36 -> 0
B39: Debt to Income Ratio | C39: =IF(ISERROR(C35/C31)=TRUE, "",C35/C31) ->  | D39: =IF(ISERROR(D35/D31)=TRUE, "",D35/D31) -> 

Sheet Action
B1: Action Plan | H1: Page 5
B3: Proposed Options
C5: Increase Income
C6: 1.
C7: 2.
C8: 3.
C9: 4.
C10: 5.
C11: 6.
C13: Decrease Living Expenses
C14: 1.
C15: 2.
C16: 3.
C17: 4.
C18: 5.
C19: 6.
C21: Decrease Indebtedness
C22: 1.
C23: 2.
C24: 3.
C25: 4.
C26: 5.
C27: 6.
B30: Referrals/Recommended Training
C32: 1.
C33: 2.
C34: 3.
C35: 4.
C36: 5.
C37: 6.
B40: Setting Your Goals
B41: (Short Term & Long Term)
D43: Goal | E43: Cost | F43: / Date Wanted | G43: = Monthly Savings to Reach Goal
C44: 1.
C45: 2.
C46: 3.
C47: 4.
C48: 5.
C49: 6.

Sheet Spending
A1: Use Take Home/Actual | C1: Spending Plan | N1: Page 6
A2: =IF(A1="Use Net/Projected","Projected Net Pay",IF(A1="Use Net/Actual","Actual Net Pay",IF(A1="Use Take Home/Projected","Projected Take Home Pay", "Actual Take Home Pay"))) -> Actual Take Home Pay | B2: =IF(LEFT(A1,9)="Use Net/A",Income!D59+'2nd Active'!D57,IF(LEFT(A1,9)="Use Net/P",Income!F59+'2nd Active'!F57,IF(LEFT(A1,15)="Use Take Home/P",SUM(Income!F39:F41)+'2nd Active'!F39+SUM(Income!F57:F58)+SUM('2nd Active'!F55:F56)+Income!N23+'2nd Active'!N23,SUM(Income!D39:D41)+'2nd Active'!D39+SUM(Income!D57:D58)+SUM('2nd Active'!D55:D56)+Income!L23+'2nd Active'!L23))) -> 0 | C2: Month | G2: Month | K2: Month
A3: By Payday | C3: 1ST | D3: =IF(LEFT(A1,9)="Use Net/A",(B2-SUM(Income!D42:D56)-SUM('2nd Active'!D40:D54))/2+SUM(Income!D42:D56)+SUM('2nd Active'!D40:D54),IF(LEFT(A1,9)="Use Net/P",(B2-SUM(Income!F42:F56)-SUM('2nd Active'!F40:F54))/2+SUM(Income!F42:F56)+SUM('2nd Active'!F40:F54),IF(LEFT(A1,15)="Use Take Home/A",(B2-Income!L23-'2nd Active'!L23)/2+Income!L23+'2nd Active'!L23,(B2-Income!N23-'2nd Active'!N23)/2+Income!N23+'2nd Active'!N23))) -> 0 | E3: 15TH | F3: =B2-D3 -> 0 | G3: 1ST | H3: =D3 -> 0 | I3: 15TH | J3: =F3 -> 0 | K3: 1ST | L3: =D3 -> 0 | M3: 15TH | N3: =F3 -> 0
A4: P=Planned/A=Actual | C4: P | D4: A | E4: P | F4: A | G4: P | H4: A | I4: P | J4: A | K4: P | L4: A | M4: P | N4: A | Q4: Use Take Home/Actual
A5: Living Expenses | B5: Note: If using Take Home Pay, Subtract all savings or living expenses deducted from pay (e.g. TSP) or paid by allotment. | Q5: Use Take Home/Projected
A6: Savings and Investments | B6: =IF(LEFT(A1,9)="Use Net/A",LivingExp!D9,IF(LEFT(A1,9)="Use Net/P",LivingExp!F9,IF(LEFT(A1,15)="Use Take Home/P",LivingExp!F9-(Income!D26+Income!D27)-('2nd Active'!D26+'2nd Active'!D27),LivingExp!D9-(Income!B26+Income!B27)-('2nd Active'!B26+'2nd Active'!B27)))) -> 0 | C6: =IF(LEFT(A1,9)="Use Net/A",((B6-(Income!B26+Income!B27)-('2nd Active'!B26+'2nd Active'!B27))/2+(Income!B26+Income!B27)+('2nd Active'!B26+'2nd Active'!B27)),IF(LEFT(A1,9)="Use Net/P",((B6-(Income!D26+Income!D27)-('2nd Active'!D26+'2nd Active'!D27))/2+(Income!D26+Income!D27)+('2nd Active'!B26+'2nd Active'!B27)),B6/2)) -> 0 | D6: 0 | E6: =B6-C6 -> 0 | F6: 0 | G6: =C6 -> 0 | H6: 0 | I6: =E6 -> 0 | J6: 0 | K6: =G6 -> 0 | L6: 0 | M6: =I6 -> 0 | N6: 0 | Q6: Use Net/Actual
A7: =LivingExp!A11 -> Household | B7: =IF(RIGHT(A1,1)="d",SUM(LivingExp!F11:F14),SUM(LivingExp!D11:D14)) -> 0 | C7: =B7/2 -> 0 | D7: 0 | E7: 0 | F7: 0 | G7: 0 | H7: 0 | I7: 0 | J7: 0 | K7: 0 | L7: 0 | M7: 0 | N7: 0 | Q7: Use Net/Projected
A8: =LivingExp!A15 -> Food | B8: =IF(LEFT(A1,9)="Use Net/A",SUM(LivingExp!D15:D19),IF(LEFT(A1,9)="Use Net/P",SUM(LivingExp!F15:F19),IF(LEFT(A1,15)="Use Take Home/P",SUM(LivingExp!F15:F19)-Income!D23-'2nd Active'!D23,SUM(LivingExp!D15:D19)-Income!B23-'2nd Active'!B23))) -> 0 | C8: =IF(LEFT(A1,9)="Use Net/A",((B8-Income!B23-'2nd Active'!B23)/2+Income!B23+'2nd Active'!B23),IF(LEFT(A1,9)="Use Net/P",((B8-Income!D23-'2nd Active'!D23)/2+Income!D23+'2nd Active'!D23),B8/2)) -> 0 | D8: 0 | E8: 0 | F8: 0 | G8: 0 | H8: 0 | I8: 0 | J8: 0 | K8: 0 | L8: 0 | M8: 0 | N8: 0
A9: =LivingExp!A20 -> Utilities | B9: =IF(RIGHT(A1,1)="d",SUM(LivingExp!F20:F26),SUM(LivingExp!D20:D26)) -> 0 | C9: =B9/2 -> 0 | D9: 0 | E9: 0 | F9: 0 | G9: 0 | H9: 0 | I9: 0 | J9: 0 | K9: 0 | L9: 0 | M9: 0 | N9: 0
A10: =LivingExp!A27 -> Child Care | B10: =IF(RIGHT(A1,1)="d",SUM(LivingExp!F27:F29),SUM(LivingExp!D27:D29)) -> 0 | C10: =B10/2 -> 0 | D10: 0 | E10: 0 | F10: 0 | G10: 0 | H10: 0 | I10: 0 | J10: 0 | K10: 0 | L10: 0 | M10: 0 | N10: 0
A11: =LivingExp!A30 -> Automobile | B11: =IF(RIGHT(A1,1)="d",SUM(LivingExp!F30:F32),SUM(LivingExp!D30:D32)) -> 0 | C11: =B11/2 -> 0 | D11: 0 | E11: 0 | F11: 0 | G11: 0 | H11: 0 | I11: 0 | J11: 0 | K11: 0 | L11: 0 | M11: 0 | N11: 0
A12: =LivingExp!A33 -> Clothing | B12: =IF(RIGHT(A1,1)="d",SUM(LivingExp!F33:F34),SUM(LivingExp!D33:D34)) -> 0 | C12: =B12/2 -> 0 | D12: 0 | E12: 0 | F12: 0 | G12: 0 | H12: 0 | I12: 0 | J12: 0 | K12: 0 | L12: 0 | M12: 0 | N12: 0
A13: =LivingExp!A35 -> Insurance | B13: =IF(LEFT(A1,9)="Use Net/A",SUM(LivingExp!D35:D39),IF(LEFT(A1,9)="Use Net/P",SUM(LivingExp!F35:F39),IF(LEFT(A1,15)="Use Take Home/P",SUM(LivingExp!F35:F37),SUM(LivingExp!D35:D37)))) -> 0 | C13: =IF(LEFT(A1,9)="Use Net/A",((B13-SUM(LivingExp!D38:D39))/2+SUM(LivingExp!D38:D39)),IF(LEFT(A1,9)="Use Net/P",((B13-SUM(LivingExp!F38:F39))/2+SUM(LivingExp!F38:F39)),B13/2)) -> 0 | D13: 0 | E13: 0 | F13: 0 | G13: 0 | H13: 0 | I13: 0 | J13: 0 | K13: 0 | L13: 0 | M13: 0 | N13: 0
A14: =LivingExp!A40 -> Healthcare | B14: =IF(RIGHT(A1,1)="d",SUM(LivingExp!F40:F43),SUM(LivingExp!D40:D43)) -> 0 | C14: =B14/2 -> 0 | D14: 0 | E14: 0 | F14: 0 | G14: 0 | H14: 0 | I14: 0 | J14: 0 | K14: 0 | L14: 0 | M14: 0 | N14: 0
A15: =LivingExp!A44 -> Education | B15: =IF(LEFT(A1,9)="Use Net/A",SUM(LivingExp!D44:D47),IF(LEFT(A1,9)="Use Net/P",SUM(LivingExp!F44:F47),IF(LEFT(A1,15)="Use Take Home/P",SUM(LivingExp!F44:F46),SUM(LivingExp!D44:D46)))) -> 0 | C15: =IF(LEFT(A1,9)="Use Net/A",((B15-Income!B28-'2nd Active'!B28)/2+Income!B28+'2nd Active'!B28),IF(LEFT(A1,9)="Use Net/P",((B15-Income!D28-'2nd Active'!D28)/2+Income!D28+'2nd Active'!D28),B15/2)) -> 0 | D15: 0 | E15: 0 | F15: 0 | G15: 0 | H15: 0 | I15: 0 | J15: 0 | K15: 0 | L15: 0 | M15: 0 | N15: 0
A16: =LivingExp!A48 -> Contributions | B16: =IF(RIGHT(A1,1)="d",SUM(LivingExp!F48:F50),SUM(LivingExp!D48:D50)) -> 0 | C16: =B16/2 -> 0 | D16: 0 | E16: 0 | F16: 0 | G16: 0 | H16: 0 | I16: 0 | J16: 0 | K16: 0 | L16: 0 | M16: 0 | N16: 0
A17: =LivingExp!A51 -> Leisure | B17: =IF(RIGHT(A1,1)="d",SUM(LivingExp!F51:F59),SUM(LivingExp!D51:D59)) -> 0 | C17: 0 | D17: 0 | E17: 0 | F17: 0 | G17: 0 | H17: 0 | I17: 0 | J17: 0 | K17: 0 | L17: 0 | M17: 0 | N17: 0
A18: =LivingExp!A60 -> Gifts | B18: =IF(RIGHT(A1,1)="d",SUM(LivingExp!F60:F61),SUM(LivingExp!D60:D61)) -> 0 | C18: 0 | D18: 0 | E18: 0 | F18: 0 | G18: 0 | H18: 0 | I18: 0 | J18: 0 | K18: 0 | L18: 0 | M18: 0 | N18: 0
A19: =LivingExp!A62 -> Personal Care | B19: =IF(RIGHT(A1,1)="d",SUM(LivingExp!F62:F65),SUM(LivingExp!D62:D65)) -> 0 | C19: 0 | D19: 0 | E19: 0 | F19: 0 | G19: 0 | H19: 0 | I19: 0 | J19: 0 | K19: 0 | L19: 0 | M19: 0 | N19: 0
A20: =LivingExp!A66 -> Pet Care | B20: =IF(RIGHT(A1,1)="d",SUM(LivingExp!F66:F67),SUM(LivingExp!D66:D67)) -> 0 | C20: 0 | D20: 0 | E20: 0 | F20: 0 | G20: 0 | H20: 0 | I20: 0 | J20: 0 | K20: 0 | L20: 0 | M20: 0 | N20: 0
A21: =LivingExp!A68 -> Job Expense | B21: =IF(RIGHT(A1,1)="d",SUM(LivingExp!F68:F69),SUM(LivingExp!D68:D69)) -> 0 | C21: 0 | D21: 0 | E21: 0 | F21: 0 | G21: 0 | H21: 0 | I21: 0 | J21: 0 | K21: 0 | L21: 0 | M21: 0 | N21: 0
A22: =LivingExp!A70 -> Miscellaneous | B22: =IF(RIGHT(A1,1)="d",SUM(LivingExp!F70:F71),SUM(LivingExp!D70:D71)) -> 0 | C22: 0 | D22: 0 | E22: 0 | F22: 0 | G22: 0 | H22: 0 | I22: 0 | J22: 0 | K22: 0 | L22: 0 | M22: 0 | N22: 0
A23: Creditors: | B23: If using Take Home Pay, Do not include creditors paid by Allotment (Use CheckBox to delete creditors paid by allotment)
A24: =IF(LEFT(A1,5)="Use N","Adv/Over Pmts","") ->  | B24: =IF(LEFT(A1,9)="Use Net/A",SUM(Indebt!D3:D4),IF(LEFT(A1,9)="Use Net/P",SUM(Indebt!F3:F4),0)) -> 0 | C24: =B24 -> 0 | D24: 0 | E24: =B24-C24 -> 0 | G24: =C24 -> 0 | I24: =E24 -> 0 | J24: 0 | K24: =G24 -> 0 | L24: 0 | M24: =I24 -> 0 | N24: 0
A25: =PROPER(Indebt!B5) ->  | B25: =IF(P25=TRUE,0,IF(RIGHT(A1,1)="d",Indebt!F5,Indebt!D5)) -> 0 | C25: 0 | D25: 0 | E25: =B25-C25 -> 0 | F25: 0 | G25: =C25 -> 0 | H25: 0 | I25: =E25 -> 0 | J25: 0 | K25: =G25 -> 0 | L25: 0 | M25: =I25 -> 0 | N25: 0 | P25: FALSE
A26: =PROPER(Indebt!B6) ->  | B26: =IF(P26=TRUE,0,IF(RIGHT(A1,1)="d",Indebt!F6,Indebt!D6)) -> 0 | C26: 0 | D26: 0 | E26: =B26-C26 -> 0 | F26: 0 | G26: =C26 -> 0 | H26: 0 | I26: =E26 -> 0 | J26: 0 | K26: =G26 -> 0 | L26: 0 | M26: =I26 -> 0 | N26: 0 | P26: FALSE
A27: =PROPER(Indebt!B7) ->  | B27: =IF(P27=TRUE,0,IF(RIGHT(A1,1)="d",Indebt!F7,Indebt!D7)) -> 0 | C27: 0 | D27: 0 | E27: 0 | F27: 0 | G27: 0 | H27: 0 | I27: =E27 -> 0 | J27: 0 | K27: 0 | L27: 0 | M27: 0 | N27: 0 | P27: FALSE
A28: =PROPER(Indebt!B8) ->  | B28: =IF(P28=TRUE,0,IF(RIGHT(A1,1)="d",Indebt!F8,Indebt!D8)) -> 0 | C28: 0 | D28: 0 | E28: 0 | F28: 0 | G28: 0 | H28: 0 | I28: 0 | J28: 0 | K28: 0 | L28: 0 | M28: 0 | N28: 0 | P28: FALSE
A29: =PROPER(Indebt!B9) ->  | B29: =IF(P29=TRUE,0,IF(RIGHT(A1,1)="d",Indebt!F9,Indebt!D9)) -> 0 | C29: 0 | D29: 0 | E29: 0 | F29: 0 | G29: 0 | H29: 0 | I29: 0 | J29: 0 | K29: 0 | L29: 0 | M29: 0 | N29: 0 | P29: FALSE
A30: =PROPER(Indebt!B10) ->  | B30: =IF(P30=TRUE,0,IF(RIGHT(A1,1)="d",Indebt!F10,Indebt!D10)) -> 0 | C30: 0 | D30: 0 | E30: 0 | F30: 0 | G30: 0 | H30: 0 | I30: 0 | J30: 0 | K30: 0 | L30: 0 | M30: 0 | N30: 0 | P30: FALSE
A31: =PROPER(Indebt!B11) ->  | B31: =IF(P31=TRUE,0,IF(RIGHT(A1,1)="d",Indebt!F11,Indebt!D11)) -> 0 | C31: 0 | D31: 0 | E31: 0 | F31: 0 | G31: 0 | H31: 0 | I31: 0 | J31: 0 | K31: 0 | L31: 0 | M31: 0 | N31: 0 | P31: FALSE
A32: =PROPER(Indebt!B12) ->  | B32: =IF(P32=TRUE,0,IF(RIGHT(A1,1)="d",Indebt!F12,Indebt!D12)) -> 0 | C32: 0 | D32: 0 | E32: 0 | F32: 0 | G32: 0 | H32: 0 | I32: 0 | J32: 0 | K32: 0 | L32: 0 | M32: 0 | N32: 0 | P32: FALSE
A33: =PROPER(Indebt!B13) ->  | B33: =IF(P33=TRUE,0,IF(RIGHT(A1,1)="d",Indebt!F13,Indebt!D13)) -> 0 | C33: 0 | D33: 0 | E33: 0 | F33: 0 | G33: 0 | H33: 0 | I33: 0 | J33: 0 | K33: 0 | L33: 0 | M33: 0 | N33: 0 | P33: FALSE
A34: =PROPER(Indebt!B14) ->  | B34: =IF(P34=TRUE,0,IF(RIGHT(A1,1)="d",Indebt!F14,Indebt!D14)) -> 0 | C34: 0 | D34: 0 | E34: 0 | F34: 0 | G34: 0 | H34: 0 | I34: 0 | J34: 0 | K34: 0 | L34: 0 | M34: 0 | N34: 0 | P34: FALSE
A35: =PROPER(Indebt!B15) ->  | B35: =IF(P35=TRUE,0,IF(RIGHT(A1,1)="d",Indebt!F15,Indebt!D15)) -> 0 | C35: 0 | D35: 0 | E35: 0 | F35: 0 | G35: 0 | H35: 0 | I35: 0 | J35: 0 | K35: 0 | L35: 0 | M35: 0 | N35: 0 | P35: FALSE
A36: =PROPER(Indebt!B16) ->  | B36: =IF(P36=TRUE,0,IF(RIGHT(A1,1)="d",Indebt!F16,Indebt!D16)) -> 0 | C36: 0 | D36: 0 | E36: 0 | F36: 0 | G36: 0 | H36: 0 | I36: 0 | J36: 0 | K36: 0 | L36: 0 | M36: 0 | N36: 0 | P36: FALSE
A37: =PROPER(Indebt!B17) ->  | B37: =IF(P37=TRUE,0,IF(RIGHT(A1,1)="d",Indebt!F17,Indebt!D17)) -> 0 | C37: 0 | D37: 0 | E37: 0 | F37: 0 | G37: 0 | H37: 0 | I37: 0 | J37: 0 | K37: 0 | L37: 0 | M37: 0 | N37: 0 | P37: FALSE
A38: =PROPER(Indebt!B18) ->  | B38: =IF(P38=TRUE,0,IF(RIGHT(A1,1)="d",Indebt!F18,Indebt!D18)) -> 0 | C38: 0 | D38: 0 | E38: 0 | F38: 0 | G38: 0 | H38: 0 | I38: 0 | J38: 0 | K38: 0 | L38: 0 | M38: 0 | N38: 0 | P38: FALSE
A39: =PROPER(Indebt!B19) ->  | B39: =IF(P39=TRUE,0,IF(RIGHT(A1,1)="d",Indebt!F19,Indebt!D19)) -> 0 | C39: 0 | D39: 0 | E39: 0 | F39: 0 | G39: 0 | H39: 0 | I39: 0 | J39: 0 | K39: 0 | L39: 0 | M39: 0 | N39: 0 | P39: FALSE
A40: =PROPER(Indebt!B20) ->  | B40: =IF(P40=TRUE,0,IF(RIGHT(A1,1)="d",Indebt!F20,Indebt!D20)) -> 0 | C40: 0 | D40: 0 | E40: 0 | F40: 0 | G40: 0 | H40: 0 | I40: 0 | J40: 0 | K40: 0 | L40: 0 | M40: 0 | N40: 0 | P40: FALSE
A41: =PROPER(Indebt!B21) ->  | B41: =IF(P41=TRUE,0,IF(RIGHT(A1,1)="d",Indebt!F21,Indebt!D21)) -> 0 | C41: 0 | D41: 0 | E41: 0 | F41: 0 | G41: 0 | H41: 0 | I41: 0 | J41: 0 | K41: 0 | L41: 0 | M41: 0 | N41: 0 | P41: FALSE
A42: =PROPER(Indebt!B22) ->  | B42: =IF(P42=TRUE,0,IF(RIGHT(A1,1)="d",Indebt!F22,Indebt!D22)) -> 0 | C42: 0 | D42: 0 | E42: 0 | F42: 0 | G42: 0 | H42: 0 | I42: 0 | J42: 0 | K42: 0 | L42: 0 | M42: 0 | N42: 0 | P42: FALSE
A43: =PROPER(Indebt!B23) ->  | B43: =IF(P43=TRUE,0,IF(RIGHT(A1,1)="d",Indebt!F23,Indebt!D23)) -> 0 | C43: 0 | D43: 0 | E43: 0 | F43: 0 | G43: 0 | H43: 0 | I43: 0 | J43: 0 | K43: 0 | L43: 0 | M43: 0 | N43: 0 | P43: FALSE
A44: =PROPER(Indebt!B24) ->  | B44: =IF(P44=TRUE,0,IF(RIGHT(A1,1)="d",Indebt!F24,Indebt!D24)) -> 0 | C44: 0 | D44: 0 | E44: 0 | F44: 0 | G44: 0 | H44: 0 | I44: 0 | J44: 0 | K44: 0 | L44: 0 | M44: 0 | N44: 0 | P44: FALSE
A45: =PROPER(Indebt!B25) ->  | B45: =IF(P45=TRUE,0,IF(RIGHT(A1,1)="d",Indebt!F25,Indebt!D25)) -> 0 | C45: 0 | D45: 0 | E45: 0 | F45: 0 | G45: 0 | H45: 0 | I45: 0 | J45: 0 | K45: 0 | L45: 0 | M45: 0 | N45: 0 | P45: FALSE
A46: =PROPER(Indebt!B26) ->  | B46: =IF(P46=TRUE,0,IF(RIGHT(A1,1)="d",Indebt!F26,Indebt!D26)) -> 0 | C46: 0 | D46: 0 | E46: 0 | F46: 0 | G46: 0 | H46: 0 | I46: 0 | J46: 0 | K46: 0 | L46: 0 | M46: 0 | N46: 0 | P46: FALSE
A47: =PROPER(Indebt!B27) ->  | B47: =IF(P47=TRUE,0,IF(RIGHT(A1,1)="d",Indebt!F27,Indebt!D27)) -> 0 | C47: 0 | D47: 0 | E47: 0 | F47: 0 | G47: 0 | H47: 0 | I47: 0 | J47: 0 | K47: 0 | L47: 0 | M47: 0 | N47: 0 | P47: FALSE
A48: Totals: | B48: =SUM(B6:B47) -> 0 | C48: =SUM(C6:C47) -> 0 | D48: =SUM(D6:D47) -> 0 | E48: 0 | F48: 0 | G48: 0 | H48: 0 | I48: 0 | J48: 0 | K48: 0 | L48: 0 | M48: 0 | N48: 0

Sheet Record
A1: Monthly Spending Record | H1: Page 7
A2: Keep track of your daily spending for two weeks
A3: Keep a record of how you spend your money for the next two weeks. The secret is to record it when you spend it. Using a "stickie" note in your wallet or purse will help you track your expenditures. When you go for your money make a note on your on your "stickie": (put the amount and what you spent your money on). At the end of the day, transfer the recorded amounts to this record. Be sure to include bills paid, along with sodas, lunches, etc.
A5: Remember this is for tracking your take home pay, don't include allotments.
A7: Take Home Pay for Two Weeks | F7: Dates
A9: Date: | C9: Date: | E9: Date: | G9: Date:
A10: Item | B10: Amount | C10: Item | D10: Amount | E10: Item | F10: Amount | G10: Item | H10: Amount
A20: Date: | C20: Date: | E20: Date: | G20: Date:
A21: Item | B21: Amount | C21: Item | D21: Amount | E21: Item | F21: Amount | G21: Item | H21: Amount
A31: Date: | C31: Date: | E31: Date: | G31: Date:
A32: Item | B32: Amount | C32: Item | D32: Amount | E32: Item | F32: Amount | G32: Item | H32: Amount
A42: Date: | C42: Date: | E42: Date: | G42: Take
A43: Item | B43: Amount | C43: Item | D43: Amount | E43: Item | F43: Amount | G43: Home Pay +$
G45: Amount
G46: Spent -$
G48: Balance $
H49: (+ or -)
A54: Monthly Spending Record | H54: Page 8
A56: Keep a daily record like you did for the first two weeks. Remember to count ALL spending.
A58: Take Home Pay For Two Weeks | F58: Dates
A60: Date: | C60: Date: | E60: Date: | G60: Date:
A61: Item | B61: Amount | C61: Item | D61: Amount | E61: Item | F61: Amount | G61: Item | H61: Amount
A71: Date: | C71: Date: | E71: Date: | G71: Date:
A72: Item | B72: Amount | C72: Item | D72: Amount | E72: Item | F72: Amount | G72: Item | H72: Amount
A82: Date: | C82: Date: | E82: Date: | G82: Date:
A83: Item | B83: Amount | C83: Item | D83: Amount | E83: Item | F83: Amount | G83: Item | H83: Amount
A93: Date: | C93: Date: | E93: Date: | G93: Take
A94: Item | B94: Amount | C94: Item | D94: Amount | E94: Item | F94: Amount | G94: Home Pay +$
G96: Amount
G97: Spent -$
G99: Balance $
H100: (+ or -)

Sheet FullSteam
B1: Minimum Payment | C1: FullSteam: Debt Reduction through use of Power Payments | H1: Page 9 | N1: RePayment Schedule | AM1: =l1n -> 0 | AP1: Balance | AQ1: 0 | AR1: 0 | AS1: 1 | AT1: =l2n -> 0 | AW1: Balance | AX1: 0 | AY1: 0 | AZ1: 0 | BA1: =l3n -> 0 | BD1: Balance | BH1: =l4n -> 0 | BK1: Balance | BO1: =l5n -> 0 | BR1: Balance | BV1: =l6n -> 0 | BY1: Balance | CC1: =l7n -> 0 | CF1: Balance | CJ1: =l8n -> 0 | CM1: Balance | CQ1: =l9n -> 0 | CT1: Balance | CX1: =l10n -> 0 | DA1: Balance | DE1: =l11n -> 0 | DH1: Balance | DL1: =l12n -> 0 | DO1: Balance | DS1: =l13n -> 0 | DV1: Balance | DZ1: =l14n -> 0 | EC1: Balance | EG1: =l15n -> 0 | EJ1: Balance | EN1: =l16n -> 0 | EQ1: Balance | EU1: =l17n -> 0 | EX1: Balance | FB1: =l18n -> 0 | FE1: Balance | FI1: =l19n -> 0 | FL1: Balance | FP1: =l20n -> 0 | FS1: Balance | FW1: =l21n -> 0 | FZ1: Balance | GD1: =l22n -> 0 | GG1: Balance | GK1: =l23n -> 0 | GN1: Balance
B2: Balance | C2: Payment | D2: Rate | E2: # of Pmts | F2: Account | G2: #ofPMT w/o | H2: # of Pmts with FS | M2: 0 | N2: =l1n -> 0 | O2: =l2n -> 0 | P2: =l3n -> 0 | Q2: =l4n -> 0 | R2: =l5n -> 0 | S2: =l6n -> 0 | T2: =l7n -> 0 | U2: =l8n -> 0 | V2: =l9n -> 0 | W2: =l10n -> 0 | X2: =l11n -> 0 | Y2: =l12n -> 0 | Z2: =l13n -> 0 | AA2: =l14n -> 0 | AB2: =l15n -> 0 | AC2: =l16n -> 0 | AD2: =l17n -> 0 | AE2: =l18n -> 0 | AF2: =l19n -> 0 | AG2: =l20n -> 0 | AH2: =l21n -> 0 | AI2: =l22n -> 0 | AJ2: =l23n -> 0 | AM2: Payment | AN2: Principal | AO2: Interest | AP2: =l1b -> 0 | AQ2: 0 | AR2: 0 | AS2: 0 | AT2: Payment | AU2: Principal | AV2: Interest | AW2: =l2b -> 0 | AX2: 0 | AY2: 0 | AZ2: 0 | BA2: Payment | BB2: Principal | BC2: Interest | BD2: =l3b -> 0 | BE2: 0 | BF2: 0 | BG2: 0 | BH2: Payment | BI2: Principal | BJ2: Interest | BK2: =l4b -> 0 | BL2: 0 | BM2: 0 | BN2: 0 | BO2: Payment | BP2: Principal | BQ2: Interest | BR2: =l5b -> 0 | BS2: 0 | BT2: 0 | BU2: 0 | BV2: Payment | BW2: Principal | BX2: Interest | BY2: =l6b -> 0 | BZ2: 0 | CA2: 0 | CB2: 0 | CC2: Payment | CD2: Principal | CE2: Interest | CF2: =l7b -> 0 | CG2: 0 | CH2: 0 | CI2: 0 | CJ2: Payment | CK2: Principal | CL2: Interest | CM2: =l8b -> 0 | CN2: 0 | CO2: 0 | CP2: 0 | CQ2: Payment | CR2: Principal | CS2: Interest | CT2: =l9b -> 0 | CU2: 0 | CV2: 0 | CW2: 0 | CX2: Payment | CY2: Principal | CZ2: Interest | DA2: =l10b -> 0 | DB2: 0 | DC2: 0 | DD2: 0 | DE2: Payment | DF2: Principal | DG2: Interest | DH2: =l11b -> 0 | DI2: 0 | DJ2: 0 | DK2: 0 | DL2: Payment | DM2: Principal | DN2: Interest | DO2: =l12b -> 0 | DP2: 0 | DQ2: 0 | DR2: 0 | DS2: Payment | DT2: Principal | DU2: Interest | DV2: =l13b -> 0 | DW2: 0 | DX2: 0 | DY2: 0 | DZ2: Payment | EA2: Principal | EB2: Interest | EC2: =l14b -> 0 | ED2: 0 | EE2: 0 | EF2: 0 | EG2: Payment | EH2: Principal | EI2: Interest | EJ2: =l15b -> 0 | EK2: 0 | EL2: 0 | EM2: 0 | EN2: Payment | EO2: Principal | EP2: Interest | EQ2: =l16b -> 0 | ER2: 0 | ES2: 0 | ET2: 0 | EU2: Payment | EV2: Principal | EW2: Interest | EX2: =l17b -> 0 | EY2: 0 | EZ2: 0 | FA2: 0 | FB2: Payment | FC2: Principal | FD2: Interest | FE2: =l18b -> 0 | FF2: 0 | FG2: 0 | FH2: 0 | FI2: Payment | FJ2: Principal | FK2: Interest | FL2: =l19b -> 0 | FM2: 0 | FN2: 0 | FO2: 0 | FP2: Payment | FQ2: Principal | FR2: Interest | FS2: =l20b -> 0 | FT2: 0 | FU2: 0 | FV2: 0 | FW2: Payment | FX2: Principal | FY2: Interest | FZ2: =l21b -> 0 | GA2: 0 | GB2: 0 | GC2: 0 | GD2: Payment | GE2: Principal | GF2: Interest | GG2: =l22b -> 0 | GH2: 0 | GI2: 0 | GJ2: 0 | GK2: Payment | GL2: Principal | GM2: Interest | GN2: =l23b -> 0 | GO2: 0 | GP2: 0
A3: 1 | B3: =Indebt!E5 -> 0 | C3: =IF(LEFT($B$1,1)="M",Indebt!D5,Indebt!F5) -> 0 | D3: =Indebt!H5 -> 0 | E3: =myformula(G3) -> 0 Yrs -1 Mths | F3: =Indebt!B5 -> 0 | G3: =IF(ISERROR(NPER(D3/12,-C3,B3))=TRUE,"-1",ROUNDUP(NPER(D3/12,-C3,B3),0)) -> -1 | H3: =myformula(I3) -> 0 Yrs 0 Mths | I3: =COUNTIF(AM:AM,">0") -> 0 | J3: =IF(ISERROR(NPER(D3/12,-C3,B3))=TRUE,,NPER(D3/12,-C3,B3)*C3) -> 0
A4: 2 | B4: =Indebt!E6 -> 0 | C4: =IF(LEFT($B$1,1)="M",Indebt!D6,Indebt!F6) -> 0 | D4: =Indebt!H6 -> 0 | E4: 0 Yrs -1 Mths | F4: =Indebt!B6 -> 0 | G4: -1 | H4: 0 Yrs 0 Mths | I4: =COUNTIF(AT:AT,">0") -> 0 | J4: 0
A5: 3 | B5: =Indebt!E7 -> 0 | C5: =IF(LEFT($B$1,1)="M",Indebt!D7,Indebt!F7) -> 0 | D5: =Indebt!H7 -> 0 | E5: 0 Yrs -1 Mths | F5: =Indebt!B7 -> 0 | G5: -1 | H5: 0 Yrs 0 Mths | I5: =COUNTIF(BA:BA,">0") -> 0 | J5: 0
A6: 4 | B6: =Indebt!E8 -> 0 | C6: =IF(LEFT($B$1,1)="M",Indebt!D8,Indebt!F8) -> 0 | D6: =Indebt!H8 -> 0 | E6: 0 Yrs -1 Mths | F6: =Indebt!B8 -> 0 | G6: -1 | H6: 0 Yrs 0 Mths | I6: =COUNTIF(BH:BH,">0") -> 0 | J6: 0
A7: 5 | B7: =Indebt!E9 -> 0 | C7: =IF(LEFT($B$1,1)="M",Indebt!D9,Indebt!F9) -> 0 | D7: =Indebt!H9 -> 0 | E7: 0 Yrs -1 Mths | F7: =Indebt!B9 -> 0 | G7: -1 | H7: 0 Yrs 0 Mths | I7: =COUNTIF(BO:BO,">0") -> 0 | J7: 0
A8: 6 | B8: =Indebt!E10 -> 0 | C8: =IF(LEFT($B$1,1)="M",Indebt!D10,Indebt!F10) -> 0 | D8: =Indebt!H10 -> 0 | E8: 0 Yrs -1 Mths | F8: =Indebt!B10 -> 0 | G8: -1 | H8: 0 Yrs 0 Mths | I8: =COUNTIF(BV:BV,">0") -> 0 | J8: 0
A9: 7 | B9: =Indebt!E11 -> 0 | C9: =IF(LEFT($B$1,1)="M",Indebt!D11,Indebt!F11) -> 0 | D9: =Indebt!H11 -> 0 | E9: 0 Yrs -1 Mths | F9: =Indebt!B11 -> 0 | G9: -1 | H9: 0 Yrs 0 Mths | I9: =COUNTIF(CC:CC,">0") -> 0 | J9: 0
A10: 8 | B10: =Indebt!E12 -> 0 | C10: =IF(LEFT($B$1,1)="M",Indebt!D12,Indebt!F12) -> 0 | D10: =Indebt!H12 -> 0 | E10: 0 Yrs -1 Mths | F10: =Indebt!B12 -> 0 | G10: -1 | H10: 0 Yrs 0 Mths | I10: =COUNTIF(CJ:CJ,">0") -> 0 | J10: 0
A11: 9 | B11: =Indebt!E13 -> 0 | C11: =IF(LEFT($B$1,1)="M",Indebt!D13,Indebt!F13) -> 0 | D11: =Indebt!H13 -> 0 | E11: 0 Yrs -1 Mths | F11: =Indebt!B13 -> 0 | G11: -1 | H11: 0 Yrs 0 Mths | I11: =COUNTIF(CQ:CQ,">0") -> 0 | J11: 0
A12: 10 | B12: =Indebt!E14 -> 0 | C12: =IF(LEFT($B$1,1)="M",Indebt!D14,Indebt!F14) -> 0 | D12: =Indebt!H14 -> 0 | E12: 0 Yrs -1 Mths | F12: =Indebt!B14 -> 0 | G12: -1 | H12: 0 Yrs 0 Mths | I12: =COUNTIF(CX:CX,">0") -> 0 | J12: 0
A13: 11 | B13: =Indebt!E15 -> 0 | C13: =IF(LEFT($B$1,1)="M",Indebt!D15,Indebt!F15) -> 0 | D13: =Indebt!H15 -> 0 | E13: 0 Yrs -1 Mths | F13: =Indebt!B15 -> 0 | G13: -1 | H13: 0 Yrs 0 Mths | I13: =COUNTIF(DE:DE,">0") -> 0 | J13: 0
A14: 12 | B14: =Indebt!E16 -> 0 | C14: =IF(LEFT($B$1,1)="M",Indebt!D16,Indebt!F16) -> 0 | D14: =Indebt!H16 -> 0 | E14: 0 Yrs -1 Mths | F14: =Indebt!B16 -> 0 | G14: -1 | H14: 0 Yrs 0 Mths | I14: =COUNTIF(DL:DL,">0") -> 0 | J14: 0
A15: 13 | B15: =Indebt!E17 -> 0 | C15: =IF(LEFT($B$1,1)="M",Indebt!D17,Indebt!F17) -> 0 | D15: =Indebt!H17 -> 0 | E15: 0 Yrs -1 Mths | F15: =Indebt!B17 -> 0 | G15: -1 | H15: 0 Yrs 0 Mths | I15: =COUNTIF(DS:DS,">0") -> 0 | J15: 0
A16: 14 | B16: =Indebt!E18 -> 0 | C16: =IF(LEFT($B$1,1)="M",Indebt!D18,Indebt!F18) -> 0 | D16: =Indebt!H18 -> 0 | E16: 0 Yrs -1 Mths | F16: =Indebt!B18 -> 0 | G16: -1 | H16: 0 Yrs 0 Mths | I16: =COUNTIF(DZ:DZ,">0") -> 0 | J16: 0
A17: 15 | B17: =Indebt!E19 -> 0 | C17: =IF(LEFT($B$1,1)="M",Indebt!D19,Indebt!F19) -> 0 | D17: =Indebt!H19 -> 0 | E17: 0 Yrs -1 Mths | F17: =Indebt!B19 -> 0 | G17: -1 | H17: 0 Yrs 0 Mths | I17: =COUNTIF(EG:EG,">0") -> 0 | J17: 0
A18: 16 | B18: =Indebt!E20 -> 0 | C18: =IF(LEFT($B$1,1)="M",Indebt!D20,Indebt!F20) -> 0 | D18: =Indebt!H20 -> 0 | E18: 0 Yrs -1 Mths | F18: =Indebt!B20 -> 0 | G18: -1 | H18: 0 Yrs 0 Mths | I18: =COUNTIF(EN:EN,">0") -> 0 | J18: 0
A19: 17 | B19: =Indebt!E21 -> 0 | C19: =IF(LEFT($B$1,1)="M",Indebt!D21,Indebt!F21) -> 0 | D19: =Indebt!H21 -> 0 | E19: 0 Yrs -1 Mths | F19: =Indebt!B21 -> 0 | G19: -1 | H19: 0 Yrs 0 Mths | I19: =COUNTIF(EU:EU,">0") -> 0 | J19: 0
A20: 18 | B20: =Indebt!E22 -> 0 | C20: =IF(LEFT($B$1,1)="M",Indebt!D22,Indebt!F22) -> 0 | D20: =Indebt!H22 -> 0 | E20: 0 Yrs -1 Mths | F20: =Indebt!B22 -> 0 | G20: -1 | H20: 0 Yrs 0 Mths | I20: =COUNTIF(FB:FB,">0") -> 0 | J20: 0
A21: 19 | B21: =Indebt!E23 -> 0 | C21: =IF(LEFT($B$1,1)="M",Indebt!D23,Indebt!F23) -> 0 | D21: =Indebt!H23 -> 0 | E21: 0 Yrs -1 Mths | F21: =Indebt!B23 -> 0 | G21: -1 | H21: 0 Yrs 0 Mths | I21: =COUNTIF(FI:FI,">0") -> 0 | J21: 0
A22: 20 | B22: =Indebt!E24 -> 0 | C22: =IF(LEFT($B$1,1)="M",Indebt!D24,Indebt!F24) -> 0 | D22: =Indebt!H24 -> 0 | E22: 0 Yrs -1 Mths | F22: =Indebt!B24 -> 0 | G22: -1 | H22: 0 Yrs 0 Mths | I22: =COUNTIF(FP:FP,">0") -> 0 | J22: 0
A23: 21 | B23: =Indebt!E25 -> 0 | C23: =IF(LEFT($B$1,1)="M",Indebt!D25,Indebt!F25) -> 0 | D23: =Indebt!H25 -> 0 | E23: 0 Yrs -1 Mths | F23: =Indebt!B25 -> 0 | G23: -1 | H23: 0 Yrs 0 Mths | I23: =COUNTIF(FW:FW,">0") -> 0 | J23: 0
A24: 22 | B24: =Indebt!E26 -> 0 | C24: =IF(LEFT($B$1,1)="M",Indebt!D26,Indebt!F26) -> 0 | D24: =Indebt!H26 -> 0 | E24: 0 Yrs -1 Mths | F24: =Indebt!B26 -> 0 | G24: -1 | H24: 0 Yrs 0 Mths | I24: =COUNTIF(GD:GD,">0") -> 0 | J24: 0
A25: 23 | B25: =Indebt!E27 -> 0 | C25: =IF(LEFT($B$1,1)="M",Indebt!D27,Indebt!F27) -> 0 | D25: =Indebt!H27 -> 0 | E25: 0 Yrs -1 Mths | F25: =Indebt!B27 -> 0 | G25: -1 | H25: =myformula(I25) -> 0 Yrs 0 Mths | I25: =COUNTIF(GK:GK,">0") -> 0 | J25: 0
B26: Total Balance | C26: =SUM(B3:B25) -> 0
B27: Total Payments | C27: =IF(E27=E28,C28,G27) -> 0 | D27: W/O FullSteam | E27: =myformula(J31) -> 0 Yrs 0 Mths | G27: =SUM(J3:J25) -> 0
B28: FullSteamPayments | C28: =SUM(AM:AM,AT:AT,BA:BA,BH:BH,BO:BO,BV:BV,CC:CC,CJ:CJ,CQ:CQ,CX:CX,DE:DE,DL:DL,DS:DS,DZ:DZ,EG:EG,EN:EN,EU:EU,FB:FB,FI:FI,FP:FP,FW:FW,GD:GD,GK:GK) -> 0 | D28: FullSteam Time | E28: =myformula(J30) -> 0 Yrs 0 Mths | J28: =COUNTIF(C3:C25,">0") -> 0
B29: Total Savings | C29: =IF(E28=0,0,IF(E27=E28,0,C27-C28)) -> 0 | D29: Time Saved | E29: =IF(J30=0,myformula(0),myformula(J31-J30)) -> 0 Yrs 0 Mths | J29: =COUNTIF(B3:B25,">0") -> 0
J30: =MAX(I3:I25) -> 0
B31: Total Interest | C31: =IF(E27=E28,C32,G54) -> 0 | G31: =J3-B3 -> 0 | J31: =MAX(G3:G25) -> 0
B32: FullSteamInterest | C32: =SUM(AO:AO,AV:AV,BC:BC,BJ:BJ,BQ:BQ,BX:BX,CE:CE,CL:CL,CS:CS,CZ:CZ,DG:DG,DN:DN,DU:DU,EB:EB,EI:EI,EP:EP,EW:EW,FD:FD,FK:FK,FR:FR,FY:FY,GF:GF,GM:GM) -> 0 | G32: 0
B33: Interest Savings | C33: =IF(E28=0,0,IF(E27=E28,0,C31-C32)) -> 0 | G33: 0 | J33: 0
G34: 0
B35: Extra Steam | C35: 0 | D35: =IF(OR(AND(B1="Minimum Payment",Indebt!C37<0),AND(B1="Projected Payment",Indebt!D37<0)),"No Surplus for Extra Steam ",IF(B1="Minimum Payment","$"&ROUND(Indebt!C37,2)&" in Surplus is available for Extra Steam","$"&ROUND(Indebt!D37,2)&" in Surplus is available for Extra Steam")) -> $0 in Surplus is available for Extra Steam | G35: 0
B36: 1st Blast of Steam | D36: in Month/Year | G36: 0
B37: 2nd Blast of Steam | D37: in Month/Year | G37: 0
B38: 3rd Blast of Steam | D38: in Month/Year | G38: 0
G39: 0
G40: 0
G41: 0
G42: 0
G43: 0
G44: 0
G45: 0
G46: 0
G47: 0
G48: 0
G49: 0
G50: 0
G51: 0
G52: 0
G53: 0
G54: =SUM(G31:G53) -> 0

Sheet TSP
A1: TSP Investments | F1: Page 10
A2: Use Actual | EF2: 123394.26
A3: BRS Matching
V4: =(C7*GFUND/12) -> 0
E5: =IF(LEFT(A2,5)="Use A","Current Roth TSP Contribution","Projected Roth TSP Contribution") -> Current Roth TSP Contribution | F5: =IF(RIGHT(A2,1)="L",Income!D27,Income!F27) -> 0 | V5: =(C8*FFUND/12) -> 0
A6: Average Since Inception | C6: Contribution Percentage | E6: =IF(LEFT(A2,5)="Use A","Current TSP Contribution","Projected TSP Contribution") -> Current TSP Contribution | F6: =IF(RIGHT(A2,1)="L",Income!D26,Income!F26)+F15 -> 0 | V6: =(C9*CFUND/12) -> 0
A7: ="Government Securities" -> Government Securities | B7: =GFUND -> 0.0503 | E7: Current Age | F7: =IF(RIGHT(A2,1)="l",NetWorth!B4,NetWorth!C4) -> 0 | V7: =(C10*SFUND/12) -> 0
A8: ="Fixed Income Index" -> Fixed Income Index | B8: =FFUND -> 0.0604 | E8: Years left to Contribute | V8: =(C11*IFUND/12) -> 0
A9: ="Common Stock Index" -> Common Stock Index | B9: =CFUND -> 0.1001 | E9: ="Investment Yrs until "&PayScale!I125 -> Investment Yrs until 62.5 | F9: =DEADDATE-F7-F8 -> 62.5 | V9: =(C12*LINCOME/12) -> 0
A10: ="Small Cap. Stock Index" -> Small Cap. Stock Index | B10: =SFUND -> 0.0821 | E10: Total Contributions | F10: =(F6+F5)*12*F8 -> 0 | V10: =(C13*FUND2020/12) -> 0
A11: ="International Stock Index" -> International Stock Index | B11: =IFUND -> 0.0409 | E11: Interest Earned on Investment | F11: =F12-F10 -> 75990.3 | V11: =(C14*FUND2030/12) -> 0
A12: ="L Income" -> L Income | B12: =LINCOME -> 0.0389 | E12: ="TSP Balance @ age "&DEADDATE -> TSP Balance @ age 62.5 | F12: 75990.3 | V12: =(C15*FUND2040/12) -> 0.00485
A13: ="L 2020" -> L 2020 | B13: =FUND2020 -> 0.0511 | F13: =IF(RIGHT(A2,1)="L",NetWorth!B19+NetWorth!B21,NetWorth!C19+NetWorth!C21) -> 0 | V13: =(C16*FUND2050/12) -> 0
A14: ="L 2030" -> L 2030 | B14: =FUND2030 -> 0.0554 | E14: Matching Percentage (if applicable) | F14: =IF(F13=0,0.01,IF(F13=0.01,0.02,IF(F13=0.02,0.03,IF(F13=0.03,0.04,IF(F13=0.04,0.035,IF(F13>=0.05,0.05)))))) -> 0.01 | V14: =(C17*FLAT/12) -> 0
A15: ="L 2040" -> L 2040 | B15: =FUND2040 -> 0.0582 | C15: 1 | E15: Matching Amount (if applicable) | F15: =IF(LEFT(A3,1)="N",0,IF(RIGHT(A2,1)="L",Income!D3*F14,Income!F3*F14)) -> 0 | V15: =SUM(V4:V14)+1 -> 1.00485
A16: ="L 2050" -> L 2050 | B16: =FUND2050 -> 0.0797 | E16: Use Actual
A17: 10% Example | B17: =FLAT -> 0.1 | C17: 0 | E17: Use Projected
A18: Total Distribution | C18: =IF(SUM(C7:C17)>1,SUM(C7:C17),SUM(C7:C17)) -> 1 | E18: BRS Matching
E19: No Matching

Sheet TSP2
A1: TSP Investments | F1: Page 10A | R1: 2018-02-01 | S1: 0 | T1: 0
A2: Use Actual | R2: 2018-03-01 | S2: 0 | T2: 0 | EF2: 123394.26
A3: BRS Matching | R3: 2018-04-01 | S3: 0 | T3: 0
R4: 2018-05-01 | S4: 0 | T4: 0 | V4: =(C7*GFUND/12) -> 0
E5: =IF(LEFT(A2,5)="Use A","Current Roth TSP Contribution","Projected Roth TSP Contribution") -> Current Roth TSP Contribution | F5: =IF(RIGHT(A2,1)="L",'2nd Active'!D27,'2nd Active'!F27) -> 0 | R5: 2018-06-01 | S5: 0 | T5: 0 | V5: =(C8*FFUND/12) -> 0
A6: Average Since Inception | C6: Contribution Percentage | E6: =IF(LEFT(A2,5)="Use A","Current TSP Contribution","Projected TSP Contribution") -> Current TSP Contribution | F6: =IF(RIGHT(A2,1)="L",'2nd Active'!D26,'2nd Active'!F26)+F15 -> 0 | R6: 2018-07-01 | S6: 0 | T6: 0 | V6: =(C9*CFUND/12) -> 0
A7: ="Government Securities" -> Government Securities | B7: =GFUND -> 0.0503 | E7: Current Age | F7: =IF(RIGHT(A2,1)="l",NetWorth!B10,NetWorth!C10) -> 0 | R7: 2018-08-01 | S7: 0 | T7: 0 | V7: =(C10*SFUND/12) -> 0
A8: ="Fixed Income Index" -> Fixed Income Index | B8: =FFUND -> 0.0604 | E8: Years left to Contribute | R8: 2018-09-01 | S8: 0 | T8: 0 | V8: =(C11*IFUND/12) -> 0
A9: ="Common Stock Index" -> Common Stock Index | B9: =CFUND -> 0.1001 | E9: ="Investment Yrs until "&DEADDATE -> Investment Yrs until 62.5 | F9: =DEADDATE-F7-F8 -> 62.5 | R9: 2018-10-01 | S9: 0 | T9: 0 | V9: =(C12*LINCOME/12) -> 0
A10: ="Small Cap. Stock Index" -> Small Cap. Stock Index | B10: =SFUND -> 0.0821 | E10: Total Contributions | F10: =(F6+F5)*12*F8 -> 0 | R10: 2018-11-01 | S10: 0 | T10: 0 | V10: =(C13*FUND2020/12) -> 0
A11: ="International Stock Index" -> International Stock Index | B11: =IFUND -> 0.0409 | E11: Interest Earned on Investment | F11: =F12-F10 -> 465400.86 | R11: 2018-12-01 | S11: 0 | T11: 0 | V11: =(C14*FUND2030/12) -> 0
A12: ="L Income" -> L Income | B12: =LINCOME -> 0.0389 | E12: ="TSP Balance @ age "&DEADDATE -> TSP Balance @ age 62.5 | F12: 465400.86 | R12: 2019-01-01 | S12: 0 | T12: 0 | V12: =(C15*FUND2040/12) -> 0
A13: ="L 2020" -> L 2020 | B13: =FUND2020 -> 0.0511 | F13: =IF(RIGHT(A2,1)="L",'2nd Active'!E26+'2nd Active'!E27,'2nd Active'!G26+'2nd Active'!G27) -> 0 | R13: 2019-02-01 | T13: 0 | V13: =(C16*FUND2050/12) -> 0
A14: ="L 2030" -> L 2030 | B14: =FUND2030 -> 0.0554 | E14: Matching Percentage (if applicable) | F14: =IF(F13=0,0.01,IF(F13=0.01,0.02,IF(F13=0.02,0.03,IF(F13=0.03,0.04,IF(F13=0.04,0.035,IF(F13>=0.05,0.05)))))) -> 0.01 | R14: 2019-03-01 | T14: 0 | V14: =(C17*FLAT/12) -> 0.008333333333
A15: ="L 2040" -> L 2040 | B15: =FUND2040 -> 0.0582 | E15: Matching Amount (if applicable) | F15: =IF(LEFT(A3,1)="N",0,IF(RIGHT(A2,1)="L",'2nd Active'!D3*F14,'2nd Active'!F3*F14)) -> 0 | R15: 2019-04-01 | T15: 0 | V15: =SUM(V4:V14)+1 -> 1.008333333
A16: ="L 2050" -> L 2050 | B16: =FUND2050 -> 0.0797 | E16: Use Actual | R16: 2019-05-01 | T16: 0
A17: 10% Example | B17: =FLAT -> 0.1 | C17: 1 | E17: Use Projected | R17: 2019-06-01 | T17: 0
A18: Total Distribution | C18: =IF(SUM(C7:C17)>1,SUM(C7:C17),SUM(C7:C17)) -> 1 | E18: BRS Matching | R18: 2019-07-01 | T18: 0
E19: No Matching | R19: 2019-08-01 | T19: 0
R20: 2019-09-01 | T20: 0
R21: 2019-10-01 | T21: 0
R22: 2019-11-01 | T22: 0
R23: 2019-12-01 | T23: 0
R24: 2020-01-01 | T24: 0
R25: 2020-02-01 | T25: 0
R26: 2020-03-01 | T26: 0
R27: 2020-04-01 | T27: 0
R28: 2020-05-01 | T28: 0
R29: 2020-06-01 | T29: 0
R30: 2020-07-01 | T30: 0
R31: 2020-08-01 | T31: 0
R32: 2020-09-01 | T32: 0
R33: 2020-10-01 | T33: 0
R34: 2020-11-01 | T34: 0
R35: 2020-12-01 | T35: 0
R36: 2021-01-01 | T36: 0
R37: 2021-02-01 | T37: 0
R38: 2021-03-01 | T38: 0
R39: 2021-04-01 | T39: 0
R40: 2021-05-01 | T40: 0
R41: 2021-06-01 | T41: 0
R42: 2021-07-01 | T42: 0
R43: 2021-08-01 | T43: 0
R44: 2021-09-01 | T44: 0
R45: 2021-10-01 | T45: 0
R46: 2021-11-01 | T46: 0
R47: 2021-12-01 | T47: 0
R48: 2022-01-01 | T48: 0
R49: 2022-02-01 | T49: 0
R50: 2022-03-01 | T50: 0
R51: 2022-04-01 | T51: 0
R52: 2022-05-01 | T52: 0
R53: 2022-06-01 | T53: 0
R54: 2022-07-01 | T54: 0
R55: 2022-08-01 | T55: 0
R56: 2022-09-01 | T56: 0
R57: 2022-10-01 | T57: 0
R58: 2022-11-01 | T58: 0
R59: 2022-12-01 | T59: 0
R60: 2023-01-01 | T60: 0
R61: 2023-02-01 | T61: 0
R62: 2023-03-01 | T62: 0
R63: 2023-04-01 | T63: 0
R64: 2023-05-01 | T64: 0
R65: 2023-06-01 | T65: 0
R66: 2023-07-01 | T66: 0
R67: 2023-08-01 | T67: 0
R68: 2023-09-01 | T68: 0
R69: 2023-10-01 | T69: 0
R70: 2023-11-01 | T70: 0
R71: 2023-12-01 | T71: 0
R72: 2024-01-01 | T72: 0
R73: 2024-02-01 | T73: 0
R74: 2024-03-01 | T74: 0
R75: 2024-04-01 | T75: 0
R76: 2024-05-01 | T76: 0
R77: 2024-06-01 | T77: 0
R78: 2024-07-01 | T78: 0
R79: 2024-08-01 | T79: 0
R80: 2024-09-01 | T80: 0
R81: 2024-10-01 | T81: 0
R82: 2024-11-01 | T82: 0
R83: 2024-12-01 | T83: 0
R84: 2025-01-01 | T84: 0
R85: 2025-02-01 | T85: 0
R86: 2025-03-01 | T86: 0
R87: 2025-04-01 | T87: 0
R88: 2025-05-01 | T88: 0
R89: 2025-06-01 | T89: 0
R90: 2025-07-01 | T90: 0
R91: 2025-08-01 | T91: 0
R92: 2025-09-01 | T92: 0
R93: 2025-10-01 | T93: 0
R94: 2025-11-01 | T94: 0
R95: 2025-12-01 | T95: 0
R96: 2026-01-01 | T96: 0
R97: 2026-02-01 | T97: 0
R98: 2026-03-01 | T98: 0
R99: 2026-04-01 | T99: 0
R100: 2026-05-01 | T100: 0
R101: 2026-06-01 | T101: 0
R102: 2026-07-01 | T102: 0
R103: 2026-08-01 | T103: 0
R104: 2026-09-01 | T104: 0
R105: 2026-10-01 | T105: 0
R106: 2026-11-01 | T106: 0
R107: 2026-12-01 | T107: 0
R108: 2027-01-01 | T108: 0
R109: 2027-02-01 | T109: 0
R110: 2027-03-01 | T110: 0
R111: 2027-04-01 | T111: 0
R112: 2027-05-01 | T112: 0
R113: 2027-06-01 | T113: 0
R114: 2027-07-01 | T114: 0
R115: 2027-08-01 | T115: 0
R116: 2027-09-01 | T116: 0
R117: 2027-10-01 | T117: 0
R118: 2027-11-01 | T118: 0
R119: 2027-12-01 | T119: 0
R120: 2028-01-01 | T120: 0
R121: 2028-02-01 | T121: 0
R122: 2028-03-01 | T122: 0
R123: 2028-04-01 | T123: 0
R124: 2028-05-01 | T124: 0
R125: 2028-06-01 | T125: 0
R126: 2028-07-01 | T126: 0
R127: 2028-08-01 | T127: 0
R128: 2028-09-01 | T128: 0
R129: 2028-10-01 | T129: 0
R130: 2028-11-01 | T130: 0
R131: 2028-12-01 | T131: 0
R132: 2029-01-01 | T132: 0
R133: 2029-02-01 | T133: 0
R134: 2029-03-01 | T134: 0
R135: 2029-04-01 | T135: 0
R136: 2029-05-01 | T136: 0
R137: 2029-06-01 | T137: 0
R138: 2029-07-01 | T138: 0
R139: 2029-08-01 | T139: 0
R140: 2029-09-01 | T140: 0
R141: 2029-10-01 | T141: 0
R142: 2029-11-01 | T142: 0
R143: 2029-12-01 | T143: 0
R144: 2030-01-01 | T144: 0
R145: 2030-02-01 | T145: 0
R146: 2030-03-01 | T146: 0
R147: 2030-04-01 | T147: 0
R148: 2030-05-01 | T148: 0
R149: 2030-06-01 | T149: 0
R150: 2030-07-01 | T150: 0
R151: 2030-08-01 | T151: 0
R152: 2030-09-01 | T152: 0
R153: 2030-10-01 | T153: 0
R154: 2030-11-01 | T154: 0
R155: 2030-12-01 | T155: 0
R156: 2031-01-01 | T156: 0
R157: 2031-02-01 | T157: 0
R158: 2031-03-01 | T158: 0
R159: 2031-04-01 | T159: 0
R160: 2031-05-01 | T160: 0
R161: 2031-06-01 | T161: 0
R162: 2031-07-01 | T162: 0
R163: 2031-08-01 | T163: 0
R164: 2031-09-01 | T164: 0
R165: 2031-10-01 | T165: 0
R166: 2031-11-01 | T166: 0
R167: 2031-12-01 | T167: 0
R168: 2032-01-01 | T168: 0
R169: 2032-02-01 | T169: 0
R170: 2032-03-01 | T170: 0
R171: 2032-04-01 | T171: 0
R172: 2032-05-01 | T172: 0
R173: 2032-06-01 | T173: 0
R174: 2032-07-01 | T174: 0
R175: 2032-08-01 | T175: 0
R176: 2032-09-01 | T176: 0
R177: 2032-10-01 | T177: 0
R178: 2032-11-01 | T178: 0
R179: 2032-12-01 | T179: 0
R180: 2033-01-01 | T180: 0
R181: 2033-02-01 | T181: 0
R182: 2033-03-01 | T182: 0
R183: 2033-04-01 | T183: 0
R184: 2033-05-01 | T184: 0
R185: 2033-06-01 | T185: 0
R186: 2033-07-01 | T186: 0
R187: 2033-08-01 | T187: 0
R188: 2033-09-01 | T188: 0
R189: 2033-10-01 | T189: 0
R190: 2033-11-01 | T190: 0
R191: 2033-12-01 | T191: 0
R192: 2034-01-01 | T192: 0
R193: 2034-02-01 | T193: 0
R194: 2034-03-01 | T194: 0
R195: 2034-04-01 | T195: 0
R196: 2034-05-01 | T196: 0
R197: 2034-06-01 | T197: 0
R198: 2034-07-01 | T198: 0
R199: 2034-08-01 | T199: 0
R200: 2034-09-01 | T200: 0
... 550 more rows

Sheet PayScale
B1: PAY AND ALLOWANCES JAN 2020 SeaPay updated 15 May 2014 | DX1: 2020-01-03
B2: =YEAR(NOW()) -> 2020
B3: PayGrade | C3: 2 or less | D3: Over 2 | E3: Over 3 | F3: Over 4 | G3: 5 | H3: Over 6 | I3: 7 | J3: Over 8 | K3: 9 | L3: Over 10 | M3: 11 | N3: Over 12 | O3: 13 | P3: Over 14 | Q3: 15 | R3: Over 16 | S3: 17 | T3: Over 18 | U3: 19 | V3: Over 20 | W3: 21 | X3: Over 22 | Y3: 23 | Z3: Over 24 | AA3: 25 | AB3: Over 26 | AC3: 27 | AD3: Over 28 | AE3: 29 | AF3: Over 30 | AG3: 31 | AH3: Over 32 | AI3: 33 | AJ3: Over 34 | AK3: 35 | AL3: Over 36 | AM3: 37 | AN3: Over 38 | AO3: 39 | AP3: Over 40 | AT3: Sea Pay | AU3: 0 | AV3: 1 | AW3: 2 | AX3: 3 | AY3: 4 | AZ3: 5 | BA3: 6 | BB3: 7 | BC3: 8 | BD3: 9 | BE3: 10 | BF3: 11 | BG3: 12 | BH3: 13 | BI3: 14 | BJ3: 15 | BK3: 16 | BL3: 17 | BM3: 18 | BN3: 19 | BO3: 20 | BP3: 21 | BQ3: 22 | BR3: 23 | BS3: 24 | BT3: 25 | BU3: 26 | BV3: 27 | BW3: 28 | BX3: 29 | BY3: 30 | BZ3: 31 | CA3: 32 | CB3: 33 | CC3: 34 | CD3: 35 | CE3: 36 | CF3: 37 | CG3: 38 | CJ3: SUB PAY | CK3: <2 | CL3: 2 | CM3: 3 | CN3: 4 | CP3: 6 | CR3: 8 | CT3: 10 | CV3: 12 | CX3: 14 | CZ3: 16 | DB3: 18 | DD3: 20 | DF3: 22 | DH3: 24 | DJ3: 26 | DN3: 30 | DR3: 34 | DV3: 38 | DX3: BAH W | DY3: E1 | DZ3: E2 | EA3: E3 | EB3: E4 | EC3: E5 | ED3: E6 | EE3: E7 | EF3: E8 | EG3: E9 | EH3: CWO1 | EI3: CWO2 | EJ3: CWO3 | EK3: CWO4 | EL3: CWO5 | EM3: OE1 | EN3: OE2 | EO3: OE3 | EP3: O1 | EQ3: O2 | ER3: O3 | ES3: O4 | ET3: O5 | EU3: O6 | EV3: O7 | EW3: O8 | EX3: O9 | EY3: O10 | FA3: BAH WO | FB3: E1 | FC3: E2 | FD3: E3 | FE3: E4 | FF3: E5 | FG3: E6 | FH3: E7 | FI3: E8 | FJ3: E9 | FK3: CWO1 | FL3: CWO2 | FM3: CWO3 | FN3: CWO4 | FO3: CWO5 | FP3: OE1 | FQ3: OE2 | FR3: OE3 | FS3: O1 | FT3: O2 | FU3: O3 | FV3: O4 | FW3: O5 | FX3: O6 | FY3: O7 | FZ3: O8 | GA3: O9 | GB3: O10 | GD3: Zip | GE3: Code | GG3: Code | GH3: City, ST
B4: O10 | C4: 0 | D4: 0 | E4: 0 | F4: 0 | H4: 0 | J4: 0 | L4: 0 | N4: 0 | P4: 0 | R4: 0 | T4: 0 | V4: 16441.8 | X4: 16441.8 | Z4: 16441.8 | AB4: 16441.8 | AD4: 16441.8 | AF4: 16441.8 | AH4: 16441.8 | AJ4: 16441.8 | AL4: 16441.8 | AN4: 16441.8 | AP4: 16441.8 | AT4: O10 | AU4: =AU5 -> 100 | AV4: 100 | AW4: 100 | AX4: 394 | AY4: 400 | AZ4: 400 | BA4: 419 | BB4: 450 | BC4: 463 | BD4: 494 | BE4: 506 | BF4: 525 | BG4: 544 | BH4: 544 | BI4: 569 | BK4: =BK5 -> 594 | BM4: =BM5 -> 625 | BO4: =BO5 -> 669 | BQ4: =BQ5 -> 669 | BS4: =BS5 -> 669 | BU4: =BU5 -> 669 | BY4: =BY5 -> 669 | CC4: =CC5 -> 669 | CG4: =CG5 -> 669 | CJ4: O10 | CK4: 355 | CL4: 355 | CM4: 355 | CN4: 355 | CP4: 355 | CR4: 355 | CT4: 355 | CV4: 355 | CX4: 355 | CZ4: 355 | DB4: 355 | DD4: 355 | DF4: 355 | DH4: 355 | DJ4: 355 | DN4: 355 | DR4: 355 | DV4: 355 | DX4: AK400 | DY4: 1824 | DZ4: 1824 | EA4: 1824 | EB4: 1824 | EC4: 1944 | ED4: 1959 | EE4: 2127 | EF4: 2331 | EG4: 2517 | EH4: 1962 | EI4: 2211 | EJ4: 2463 | EK4: 2538 | EL4: 2631 | EM4: 2169 | EN4: 2424 | EO4: 2550 | EP4: 1953 | EQ4: 1956 | ER4: 2451 | ES4: 2661 | ET4: 2802 | EU4: 2826 | EV4: 2853 | EW4: 2853 | EX4: 2853 | EY4: 2853 | EZ4: =IF(DX4=FA4,"True","False") -> True | FA4: AK400 | FB4: 1368 | FC4: 1368 | FD4: 1368 | FE4: 1368 | FF4: 1458 | FG4: 1467 | FH4: 1614 | FI4: 1845 | FJ4: 1887 | FK4: 1539 | FL4: 1842 | FM4: 1890 | FN4: 1983 | FO4: 2178 | FP4: 1818 | FQ4: 1866 | FR4: 1932 | FS4: 1464 | FT4: 1746 | FU4: 1893 | FV4: 2142 | FW4: 2259 | FX4: 2448 | FY4: 2493 | FZ4: 2493 | GA4: 2493 | GB4: 2493 | GD4: 501 | GE4: NY218 | GG4: AK400 | GH4: KETCHIKAN, AK
B5: O9 | C5: 0 | D5: 0 | E5: 0 | F5: 0 | H5: 0 | J5: 0 | L5: 0 | N5: 0 | P5: 0 | R5: 0 | T5: 0 | V5: 15546 | X5: 15770.7 | Z5: 16094.1 | AB5: 16441.8 | AD5: 16441.8 | AF5: 16441.8 | AH5: 16441.8 | AJ5: 16441.8 | AL5: 16441.8 | AN5: 16441.8 | AP5: 16441.8 | AT5: O9 | AU5: 100 | AV5: 100 | AW5: 100 | AX5: 394 | AY5: 400 | AZ5: 400 | BA5: 419 | BB5: 450 | BC5: 463 | BD5: 494 | BE5: 506 | BF5: 525 | BG5: 544 | BH5: 544 | BI5: 569 | BK5: 594 | BM5: 625 | BO5: 669 | BQ5: 669 | BS5: 669 | BU5: 669 | BY5: 669 | CC5: 669 | CG5: =CG6 -> 669 | CJ5: O9 | CK5: 355 | CL5: 355 | CM5: 355 | CN5: 355 | CP5: 355 | CR5: 355 | CT5: 355 | CV5: 355 | CX5: 355 | CZ5: 355 | DB5: 355 | DD5: 355 | DF5: 355 | DH5: 355 | DJ5: 355 | DN5: 355 | DR5: 355 | DV5: 355 | DX5: AK401 | DY5: 1809 | DZ5: 1809 | EA5: 1809 | EB5: 1809 | EC5: 2265 | ED5: 2280 | EE5: 2343 | EF5: 2442 | EG5: 2550 | EH5: 2283 | EI5: 2385 | EJ5: 2502 | EK5: 2571 | EL5: 2655 | EM5: 2364 | EN5: 2484 | EO5: 2580 | EP5: 2274 | EQ5: 2277 | ER5: 2496 | ES5: 2685 | ET5: 2814 | EU5: 2838 | EV5: 2865 | EW5: 2865 | EX5: 2865 | EY5: 2865 | EZ5: =IF(DX5=FA5,"True","False") -> True | FA5: AK401 | FB5: 1356 | FC5: 1356 | FD5: 1356 | FE5: 1356 | FF5: 1698 | FG5: 1710 | FH5: 1758 | FI5: 1893 | FJ5: 2034 | FK5: 1713 | FL5: 1890 | FM5: 2043 | FN5: 2277 | FO5: 2370 | FP5: 1803 | FQ5: 1998 | FR5: 2253 | FS5: 1707 | FT5: 1761 | FU5: 2091 | FV5: 2349 | FW5: 2400 | FX5: 2487 | FY5: 2532 | FZ5: 2532 | GA5: 2532 | GB5: 2532 | GD5: 544 | GE5: NY218 | GG5: AK401 | GH5: SITKA, AK
B6: O8 | C6: 10999.5 | D6: 11360.4 | E6: 11599.5 | F6: 11666.1 | H6: 11964.6 | J6: 12462.9 | L6: 12579 | N6: 13052.1 | P6: 13188.3 | R6: 13596 | T6: 14186.1 | V6: 14730 | X6: 15093.3 | Z6: 15093.3 | AB6: 15093.3 | AD6: 15093.3 | AF6: 15471.3 | AH6: 15471.3 | AJ6: 15857.4 | AL6: 15857.4 | AN6: 15857.4 | AP6: 15857.4 | AT6: O8 | AU6: 100 | AV6: 100 | AW6: 100 | AX6: 394 | AY6: 400 | AZ6: 400 | BA6: 419 | BB6: 450 | BC6: 463 | BD6: 494 | BE6: 506 | BF6: 525 | BG6: 544 | BH6: 544 | BI6: 569 | BK6: 594 | BM6: 625 | BO6: 669 | BQ6: 669 | BS6: 669 | BU6: 669 | BY6: 669 | CC6: 669 | CG6: =CG7 -> 669 | CJ6: O8 | CK6: 355 | CL6: 355 | CM6: 355 | CN6: 355 | CP6: 355 | CR6: 355 | CT6: 355 | CV6: 355 | CX6: 355 | CZ6: 355 | DB6: 355 | DD6: 355 | DF6: 355 | DH6: 355 | DJ6: 355 | DN6: 355 | DR6: 355 | DV6: 355 | DX6: AK402 | DY6: 1926 | DZ6: 1926 | EA6: 1926 | EB6: 1926 | EC6: 2454 | ED6: 2469 | EE6: 2523 | EF6: 2604 | EG6: 2700 | EH6: 2472 | EI6: 2556 | EJ6: 2655 | EK6: 2721 | EL6: 2799 | EM6: 2538 | EN6: 2640 | EO6: 2730 | EP6: 2463 | EQ6: 2466 | ER6: 2652 | ES6: 2826 | ET6: 2946 | EU6: 2973 | EV6: 3000 | EW6: 3000 | EX6: 3000 | EY6: 3000 | EZ6: True | FA6: AK402 | FB6: 1446 | FC6: 1446 | FD6: 1446 | FE6: 1446 | FF6: 1842 | FG6: 1851 | FH6: 1893 | FI6: 2025 | FJ6: 2190 | FK6: 1854 | FL6: 2022 | FM6: 2202 | FN6: 2466 | FO6: 2544 | FP6: 1920 | FQ6: 2148 | FR6: 2442 | FS6: 1848 | FT6: 1896 | FU6: 2256 | FV6: 2526 | FW6: 2568 | FX6: 2640 | FY6: 2691 | FZ6: 2691 | GA6: 2691 | GB6: 2691 | GD6: 601 | GE6: XX499 | GG6: AK402 | GH6: JUNEAU, AK
B7: O7 | C7: 9140.1 | D7: 9564.6 | E7: 9761.1 | F7: 9917.4 | H7: 10200 | J7: 10479.6 | L7: 10802.7 | N7: 11124.6 | P7: 11447.7 | R7: 12462.9 | T7: 13319.7 | V7: 13319.7 | X7: 13319.7 | Z7: 13319.7 | AB7: 13388.1 | AD7: 13388.1 | AF7: 13656 | AH7: 13656 | AJ7: 13656 | AL7: 13656 | AN7: 13656 | AP7: 13656 | AT7: O7 | AU7: 100 | AV7: 100 | AW7: 100 | AX7: 394 | AY7: 400 | AZ7: 400 | BA7: 419 | BB7: 450 | BC7: 463 | BD7: 494 | BE7: 506 | BF7: 525 | BG7: 544 | BH7: 544 | BI7: 569 | BK7: 594 | BM7: 625 | BO7: 669 | BQ7: 669 | BS7: 669 | BU7: 669 | BY7: 669 | CC7: 669 | CG7: =CG8 -> 669 | CJ7: O7 | CK7: 355 | CL7: 355 | CM7: 355 | CN7: 355 | CP7: 355 | CR7: 355 | CT7: 355 | CV7: 355 | CX7: 355 | CZ7: 355 | DB7: 355 | DD7: 355 | DF7: 355 | DH7: 355 | DJ7: 355 | DN7: 355 | DR7: 355 | DV7: 355 | DX7: AK403 | DY7: 1674 | DZ7: 1674 | EA7: 1674 | EB7: 1674 | EC7: 1950 | ED7: 1965 | EE7: 2121 | EF7: 2319 | EG7: 2520 | EH7: 1968 | EI7: 2205 | EJ7: 2445 | EK7: 2550 | EL7: 2682 | EM7: 2163 | EN7: 2409 | EO7: 2568 | EP7: 1959 | EQ7: 1962 | ER7: 2433 | ES7: 2727 | ET7: 2928 | EU7: 2955 | EV7: 2982 | EW7: 2982 | EX7: 2982 | EY7: 2982 | EZ7: True | FA7: AK403 | FB7: 1257 | FC7: 1257 | FD7: 1257 | FE7: 1257 | FF7: 1464 | FG7: 1497 | FH7: 1590 | FI7: 1740 | FJ7: 1890 | FK7: 1560 | FL7: 1722 | FM7: 1893 | FN7: 1986 | FO7: 2172 | FP7: 1668 | FQ7: 1806 | FR7: 1938 | FS7: 1494 | FT7: 1638 | FU7: 1896 | FV7: 2136 | FW7: 2247 | FX7: 2430 | FY7: 2475 | FZ7: 2475 | GA7: 2475 | GB7: 2475 | GD7: 602 | GE7: XX499 | GG7: AK403 | GH7: KODIAK ISLAND, AK
B8: O7 1 Drill | C8: 304.67 | D8: 318.82 | E8: 325.37 | F8: 330.58 | H8: 340 | J8: 349.32 | L8: 360.09 | N8: 370.82 | P8: 381.59 | R8: 415.43 | T8: 443.99 | V8: 443.99 | X8: 443.99 | Z8: 443.99 | AB8: 446.27 | AD8: 446.27 | AF8: 455.2 | AH8: 455.2 | AJ8: 455.2 | AL8: 455.2 | AN8: 455.2 | AP8: 455.2 | AT8: O6 | AU8: 100 | AV8: 100 | AW8: 100 | AX8: 394 | AY8: 400 | AZ8: 400 | BA8: 419 | BB8: 450 | BC8: 463 | BD8: 494 | BE8: 506 | BF8: 525 | BG8: 544 | BH8: 544 | BI8: 569 | BK8: 594 | BM8: 625 | BO8: 669 | BQ8: 669 | BS8: 669 | BU8: 669 | BY8: 669 | CC8: 669 | CG8: 669 | CJ8: O6 | CK8: 595 | CL8: 595 | CM8: 595 | CN8: 595 | CP8: 595 | CR8: 595 | CT8: 595 | CV8: 595 | CX8: 595 | CZ8: 595 | DB8: 835 | DD8: 835 | DF8: 835 | DH8: 835 | DJ8: 835 | DN8: 835 | DR8: 835 | DV8: 835 | DX8: AK404 | DY8: 1611 | DZ8: 1611 | EA8: 1611 | EB8: 1611 | EC8: 2067 | ED8: 2082 | EE8: 2190 | EF8: 2337 | EG8: 2499 | EH8: 2085 | EI8: 2253 | EJ8: 2427 | EK8: 2529 | EL8: 2655 | EM8: 2220 | EN8: 2400 | EO8: 2547 | EP8: 2076 | EQ8: 2079 | ER8: 2418 | ES8: 2700 | ET8: 2895 | EU8: 2919 | EV8: 2949 | EW8: 2949 | EX8: 2949 | EY8: 2949 | EZ8: True | FA8: AK404 | FB8: 1209 | FC8: 1209 | FD8: 1209 | FE8: 1209 | FF8: 1551 | FG8: 1560 | FH8: 1644 | FI8: 1752 | FJ8: 1875 | FK8: 1563 | FL8: 1692 | FM8: 1878 | FN8: 2091 | FO8: 2229 | FP8: 1665 | FQ8: 1800 | FR8: 2055 | FS8: 1557 | FT8: 1647 | FU8: 1893 | FV8: 2199 | FW8: 2280 | FX8: 2412 | FY8: 2457 | FZ8: 2457 | GA8: 2457 | GB8: 2457 | GD8: 603 | GE8: XX499 | GG8: AK404 | GH8: ANCHORAGE, AK
B9: O7 4 Drills | C9: 1218.68 | D9: 1275.28 | E9: 1301.48 | F9: 1322.32 | H9: 1360 | J9: 1397.28 | L9: 1440.36 | N9: 1483.28 | P9: 1526.36 | R9: 1661.72 | T9: 1775.96 | V9: 1775.96 | X9: 1775.96 | Z9: 1775.96 | AB9: 1785.08 | AD9: 1785.08 | AF9: 1820.8 | AH9: 1820.8 | AJ9: 1820.8 | AL9: 1820.8 | AN9: 1820.8 | AP9: 1820.8 | AT9: O5 | AU9: 100 | AV9: 100 | AW9: 100 | AX9: 394 | AY9: 394 | AZ9: 394 | BA9: 394 | BB9: 400 | BC9: 431 | BD9: 438 | BE9: 456 | BF9: 463 | BG9: 463 | BH9: 463 | BI9: 500 | BK9: 525 | BM9: 550 | BO9: 594 | BQ9: 594 | BS9: 594 | BU9: 594 | BY9: 594 | CC9: 594 | CG9: 594 | CJ9: O5 | CK9: 595 | CL9: 595 | CM9: 595 | CN9: 595 | CP9: 595 | CR9: 595 | CT9: 595 | CV9: 595 | CX9: 790 | CZ9: 835 | DB9: 835 | DD9: 835 | DF9: 835 | DH9: 835 | DJ9: 835 | DN9: 835 | DR9: 835 | DV9: 835 | DX9: AK405 | DY9: 1566 | DZ9: 1566 | EA9: 1566 | EB9: 1566 | EC9: 1977 | ED9: 1992 | EE9: 2121 | EF9: 2286 | EG9: 2427 | EH9: 1995 | EI9: 2190 | EJ9: 2391 | EK9: 2442 | EL9: 2508 | EM9: 2157 | EN9: 2361 | EO9: 2451 | EP9: 1986 | EQ9: 1989 | ER9: 2382 | ES9: 2529 | ET9: 2625 | EU9: 2646 | EV9: 2670 | EW9: 2670 | EX9: 2670 | EY9: 2670 | EZ9: True | FA9: AK405 | FB9: 1176 | FC9: 1176 | FD9: 1176 | FE9: 1176 | FF9: 1482 | FG9: 1494 | FH9: 1590 | FI9: 1716 | FJ9: 1821 | FK9: 1497 | FL9: 1644 | FM9: 1824 | FN9: 2007 | FO9: 2163 | FP9: 1617 | FQ9: 1770 | FR9: 1965 | FS9: 1491 | FT9: 1593 | FU9: 1827 | FV9: 2133 | FW9: 2226 | FX9: 2376 | FY9: 2421 | FZ9: 2421 | GA9: 2421 | GB9: 2421 | GD9: 604 | GE9: XX499 | GG9: AK405 | GH9: FAIRBANKS, AK
B10: O6 | C10: 6931.2 | D10: 7614.6 | E10: 8114.4 | F10: 8114.4 | H10: 8145.3 | J10: 8494.5 | L10: 8540.7 | N10: 8540.7 | P10: 9025.8 | R10: 9884.1 | T10: 10387.5 | V10: 10890.9 | X10: 11177.4 | Z10: 11467.8 | AB10: 12030 | AD10: 12030 | AF10: 12270.3 | AH10: 12270.3 | AJ10: 12270.3 | AL10: 12270.3 | AN10: 12270.3 | AP10: 12270.3 | AT10: O4 | AU10: 100 | AV10: 100 | AW10: 100 | AX10: 325 | AY10: 331 | AZ10: 350 | BA10: 356 | BB10: 375 | BC10: 388 | BD10: 388 | BE10: 394 | BF10: 394 | BG10: 419 | BH10: 419 | BI10: 475 | BK10: 494 | BM10: 506 | BO10: 525 | BQ10: 525 | BS10: 525 | BU10: 525 | BY10: 525 | CC10: 525 | CG10: 525 | CJ10: O4 | CK10: 365 | CL10: 365 | CM10: 365 | CN10: 525 | CP10: 595 | CR10: 705 | CT10: 705 | CV10: 705 | CX10: 790 | CZ10: 790 | DB10: 790 | DD10: 790 | DF10: 790 | DH10: 790 | DJ10: 790 | DN10: 790 | DR10: 790 | DV10: 790 | DX10: AL001 | DY10: 834 | DZ10: 834 | EA10: 834 | EB10: 834 | EC10: 858 | ED10: 1179 | EE10: 1197 | EF10: 1206 | EG10: 1230 | EH10: 1194 | EI10: 1203 | EJ10: 1215 | EK10: 1242 | EL10: 1290 | EM10: 1200 | EN10: 1209 | EO10: 1245 | EP10: 900 | EQ10: 1176 | ER10: 1212 | ES10: 1302 | ET10: 1371 | EU10: 1380 | EV10: 1392 | EW10: 1392 | EX10: 1392 | EY10: 1392 | EZ10: True | FA10: AL001 | FB10: 630 | FC10: 630 | FD10: 630 | FE10: 630 | FF10: 738 | FG10: 882 | FH10: 900 | FI10: 927 | FJ10: 1023 | FK10: 897 | FL10: 924 | FM10: 1029 | FN10: 1179 | FO10: 1194 | FP10: 906 | FQ10: 996 | FR10: 1173 | FS10: 807 | FT10: 903 | FU10: 1062 | FV10: 1182 | FW10: 1197 | FX10: 1200 | FY10: 1209 | FZ10: 1209 | GA10: 1209 | GB10: 1209 | GD10: 605 | GE10: XX499 | GG10: AL001 | GH10: ANNISTON/FORT MCCLELLAN, AL
B11: O6 1 Drill | C11: 231.04 | D11: 253.82 | E11: 270.48 | F11: 270.48 | H11: 271.51 | J11: 283.15 | L11: 284.69 | N11: 284.69 | P11: 300.86 | R11: 329.47 | T11: 346.25 | V11: 363.03 | X11: 372.58 | Z11: 382.26 | AB11: 401 | AD11: 401 | AF11: 409.01 | AH11: 409.01 | AJ11: 409.01 | AL11: 409.01 | AN11: 409.01 | AP11: 409.01 | AT11: O3 | AU11: 100 | AV11: 100 | AW11: 100 | AX11: 263 | AY11: 281 | AZ11: 325 | BA11: 331 | BB11: 344 | BC11: 356 | BD11: 375 | BE11: 394 | BF11: 394 | BG11: 419 | BH11: 419 | BI11: 456 | BK11: 475 | BM11: 494 | BO11: 506 | BQ11: 506 | BS11: 506 | BU11: 506 | BY11: 506 | CC11: 506 | CG11: 506 | CJ11: O3 | CK11: 355 | CL11: 355 | CM11: 355 | CN11: 510 | CP11: 595 | CR11: 705 | CT11: 705 | CV11: 705 | CX11: 705 | CZ11: 705 | DB11: 705 | DD11: 705 | DF11: 705 | DH11: 705 | DJ11: 705 | DN11: 705 | DR11: 705 | DV11: 705 | DX11: AL002 | DY11: 1065 | DZ11: 1065 | EA11: 1065 | EB11: 1065 | EC11: 1113 | ED11: 1197 | EE11: 1353 | EF11: 1533 | EG11: 1686 | EH11: 1209 | EI11: 1428 | EJ11: 1647 | EK11: 1701 | EL11: 1773 | EM11: 1392 | EN11: 1614 | EO11: 1710 | EP11: 1128 | EQ11: 1194 | ER11: 1638 | ES11: 1794 | ET11: 1902 | EU11: 1914 | EV11: 1932 | EW11: 1932 | EX11: 1932 | EY11: 1932 | EZ11: True | FA11: AL002 | FB11: 867 | FC11: 867 | FD11: 867 | FE11: 867 | FF11: 957 | FG11: 1017 | FH11: 1062 | FI11: 1149 | FJ11: 1266 | FK11: 1059 | FL11: 1131 | FM11: 1269 | FN11: 1287 | FO11: 1398 | FP11: 1116 | FQ11: 1212 | FR11: 1284 | FS11: 1014 | FT11: 1101 | FU11: 1272 | FV11: 1368 | FW11: 1467 | FX11: 1632 | FY11: 1659 | FZ11: 1659 | GA11: 1659 | GB11: 1659 | GD11: 606 | GE11: XX499 | GG11: AL002 | GH11: FORT RUCKER, AL
B12: O6 4 Drills | C12: 924.16 | D12: 1015.28 | E12: 1081.92 | F12: 1081.92 | H12: 1086.04 | J12: 1132.6 | L12: 1138.76 | N12: 1138.76 | P12: 1203.44 | R12: 1317.88 | T12: 1385 | V12: 1452.12 | X12: 1490.32 | Z12: 1529.04 | AB12: 1604 | AD12: 1604 | AF12: 1636.04 | AH12: 1636.04 | AJ12: 1636.04 | AL12: 1636.04 | AN12: 1636.04 | AP12: 1636.04 | AT12: O3E | AU12: =AU11 -> 100 | AV12: =AV11 -> 100 | AW12: 100 | AX12: 263 | AY12: 281 | AZ12: 325 | BA12: 331 | BB12: 344 | BC12: 356 | BD12: 375 | BE12: 394 | BF12: 394 | BG12: 419 | BH12: 419 | BI12: 456 | BK12: 475 | BM12: 494 | BO12: 506 | BQ12: 506 | BS12: 506 | BU12: 506 | BY12: 506 | CC12: 506 | CG12: 506 | CJ12: O3E | CK12: 355 | CL12: 355 | CM12: 355 | CN12: 510 | CP12: 595 | CR12: 705 | CT12: 705 | CV12: 705 | CX12: 705 | CZ12: 705 | DB12: 705 | DD12: 705 | DF12: 705 | DH12: 705 | DJ12: 705 | DN12: 705 | DR12: 705 | DV12: 705 | DX12: AL003 | DY12: 1209 | DZ12: 1209 | EA12: 1209 | EB12: 1209 | EC12: 1236 | ED12: 1491 | EE12: 1506 | EF12: 1521 | EG12: 1581 | EH12: 1503 | EI12: 1512 | EJ12: 1533 | EK12: 1602 | EL12: 1692 | EM12: 1509 | EN12: 1527 | EO12: 1614 | EP12: 1272 | EQ12: 1488 | ER12: 1530 | ES12: 1719 | ET12: 1854 | EU12: 1869 | EV12: 1887 | EW12: 1887 | EX12: 1887 | EY12: 1887 | EZ12: True | FA12: AL003 | FB12: 987 | FC12: 987 | FD12: 987 | FE12: 987 | FF12: 1104 | FG12: 1179 | FH12: 1212 | FI12: 1293 | FJ12: 1365 | FK12: 1209 | FL12: 1290 | FM12: 1371 | FN12: 1491 | FO12: 1512 | FP12: 1239 | FQ12: 1344 | FR12: 1482 | FS12: 1176 | FT12: 1230 | FU12: 1395 | FV12: 1500 | FW12: 1515 | FX12: 1518 | FY12: 1545 | FZ12: 1545 | GA12: 1545 | GB12: 1545 | GD12: 610 | GE12: XX499 | GG12: AL003 | GH12: HUNTSVILLE, AL
B13: O5 | C13: 5778 | D13: 6509.1 | E13: 6959.4 | F13: 7044.3 | H13: 7325.7 | J13: 7493.7 | L13: 7863.6 | N13: 8135.4 | P13: 8486.1 | R13: 9022.5 | T13: 9277.5 | V13: 9530.1 | X13: 9816.6 | Z13: 9816.6 | AB13: 9816.6 | AD13: 9816.6 | AF13: 9816.6 | AH13: 9816.6 | AJ13: 9816.6 | AL13: 9816.6 | AN13: 9816.6 | AP13: 9816.6 | AT13: O2 | AU13: 100 | AV13: 100 | AW13: 100 | AX13: 263 | AY13: 281 | AZ13: 325 | BA13: 331 | BB13: 344 | BC13: 356 | BD13: 375 | BE13: 394 | BF13: 394 | BG13: 419 | BH13: 419 | BI13: 438 | BK13: 456 | BM13: 475 | BO13: 494 | BQ13: 494 | BS13: 494 | BU13: 494 | BY13: 494 | CC13: 494 | CG13: 494 | CJ13: O2 | CK13: 305 | CL13: 305 | CM13: 305 | CN13: 305 | CP13: 305 | CR13: 305 | CT13: 425 | CV13: 425 | CX13: 425 | CZ13: 425 | DB13: 425 | DD13: 425 | DF13: 425 | DH13: 425 | DJ13: 425 | DN13: 425 | DR13: 425 | DV13: 425 | DX13: AL004 | DY13: 1272 | DZ13: 1272 | EA13: 1272 | EB13: 1272 | EC13: 1374 | ED13: 1512 | EE13: 1557 | EF13: 1611 | EG13: 1713 | EH13: 1524 | EI13: 1581 | EJ13: 1647 | EK13: 1737 | EL13: 1851 | EM13: 1569 | EN13: 1635 | EO13: 1752 | EP13: 1395 | EQ13: 1509 | ER13: 1644 | ES13: 1887 | ET13: 2061 | EU13: 2076 | EV13: 2097 | EW13: 2097 | EX13: 2097 | EY13: 2097 | EZ13: True | FA13: AL004 | FB13: 1062 | FC13: 1062 | FD13: 1062 | FE13: 1062 | FF13: 1125 | FG13: 1176 | FH13: 1275 | FI13: 1407 | FJ13: 1443 | FK13: 1248 | FL13: 1404 | FM13: 1446 | FN13: 1518 | FO13: 1572 | FP13: 1377 | FQ13: 1428 | FR13: 1503 | FS13: 1170 | FT13: 1341 | FU13: 1458 | FV13: 1557 | FW13: 1584 | FX13: 1632 | FY13: 1662 | FZ13: 1662 | GA13: 1662 | GB13: 1662 | GD13: 611 | GE13: XX499 | GG13: AL004 | GH13: MOBILE, AL
B14: O5 1 Drill | C14: 192.6 | D14: 216.97 | E14: 231.98 | F14: 234.81 | H14: 244.19 | J14: 249.79 | L14: 262.12 | N14: 271.18 | P14: 282.87 | R14: 300.75 | T14: 309.25 | V14: 317.67 | X14: 327.22 | Z14: 327.22 | AB14: 327.22 | AD14: 327.22 | AF14: 327.22 | AH14: 327.22 | AJ14: 327.22 | AL14: 327.22 | AN14: 327.22 | AP14: 327.22 | AT14: O2E | AU14: =AU13 -> 100 | AV14: =AV13 -> 100 | AW14: 100 | AX14: 263 | AY14: 281 | AZ14: 325 | BA14: 331 | BB14: 344 | BC14: 356 | BD14: 375 | BE14: 394 | BF14: 394 | BG14: 419 | BH14: 419 | BI14: 438 | BK14: 456 | BM14: 475 | BO14: 494 | BQ14: 494 | BS14: 494 | BU14: 494 | BY14: 494 | CC14: 494 | CG14: 494 | CJ14: O2E | CK14: 305 | CL14: 305 | CM14: 305 | CN14: 305 | CP14: 305 | CR14: 305 | CT14: 425 | CV14: 425 | CX14: 425 | CZ14: 425 | DB14: 425 | DD14: 425 | DF14: 425 | DH14: 425 | DJ14: 425 | DN14: 425 | DR14: 425 | DV14: 425 | DX14: AL005 | DY14: 1185 | DZ14: 1185 | EA14: 1185 | EB14: 1185 | EC14: 1248 | ED14: 1269 | EE14: 1320 | EF14: 1386 | EG14: 1485 | EH14: 1281 | EI14: 1347 | EJ14: 1428 | EK14: 1512 | EL14: 1614 | EM14: 1335 | EN14: 1416 | EO14: 1524 | EP14: 1257 | EQ14: 1266 | ER14: 1422 | ES14: 1647 | ET14: 1806 | EU14: 1821 | EV14: 1836 | EW14: 1836 | EX14: 1836 | EY14: 1836 | EZ14: True | FA14: AL005 | FB14: 978 | FC14: 978 | FD14: 978 | FE14: 978 | FF14: 1065 | FG14: 1122 | FH14: 1182 | FI14: 1257 | FJ14: 1263 | FK14: 1173 | FL14: 1254 | FM14: 1266 | FN14: 1275 | FO14: 1338 | FP14: 1251 | FQ14: 1260 | FR14: 1272 | FS14: 1119 | FT14: 1230 | FU14: 1269 | FV14: 1320 | FW14: 1356 | FX14: 1413 | FY14: 1437 | FZ14: 1437 | GA14: 1437 | GB14: 1437 | GD14: 612 | GE14: XX499 | GG14: AL005 | GH14: MONTGOMERY, AL
B15: O5 4 Drills | C15: 770.4 | D15: 867.88 | E15: 927.92 | F15: 939.24 | H15: 976.76 | J15: 999.16 | L15: 1048.48 | N15: 1084.72 | P15: 1131.48 | R15: 1203 | T15: 1237 | V15: 1270.68 | X15: 1308.88 | Z15: 1308.88 | AB15: 1308.88 | AD15: 1308.88 | AF15: 1308.88 | AH15: 1308.88 | AJ15: 1308.88 | AL15: 1308.88 | AN15: 1308.88 | AP15: 1308.88 | AT15: O1 | AU15: 100 | AV15: 100 | AW15: 100 | AX15: 263 | AY15: 281 | AZ15: 325 | BA15: 331 | BB15: 344 | BC15: 356 | BD15: 375 | BE15: 394 | BF15: 394 | BG15: 419 | BH15: 419 | BI15: 438 | BK15: 456 | BM15: 475 | BO15: 494 | BQ15: 494 | BS15: 494 | BU15: 494 | BY15: 494 | CC15: 494 | CG15: 494 | CJ15: O1 | CK15: 230 | CL15: 230 | CM15: 230 | CN15: 230 | CP15: 230 | CR15: 230 | CT15: 425 | CV15: 425 | CX15: 425 | CZ15: 425 | DB15: 425 | DD15: 425 | DF15: 425 | DH15: 425 | DJ15: 425 | DN15: 425 | DR15: 425 | DV15: 425 | DX15: AL006 | DY15: 1122 | DZ15: 1122 | EA15: 1122 | EB15: 1122 | EC15: 1182 | ED15: 1317 | EE15: 1464 | EF15: 1629 | EG15: 1785 | EH15: 1329 | EI15: 1533 | EJ15: 1734 | EK15: 1806 | EL15: 1899 | EM15: 1497 | EN15: 1704 | EO15: 1818 | EP15: 1203 | EQ15: 1314 | ER15: 1725 | ES15: 1929 | ET15: 2067 | EU15: 2082 | EV15: 2103 | EW15: 2103 | EX15: 2103 | EY15: 2103 | EZ15: True | FA15: AL006 | FB15: 879 | FC15: 879 | FD15: 879 | FE15: 879 | FF15: 990 | FG15: 1062 | FH15: 1119 | FI15: 1221 | FJ15: 1338 | FK15: 1110 | FL15: 1212 | FM15: 1341 | FN15: 1368 | FO15: 1506 | FP15: 1185 | FQ15: 1278 | FR15: 1365 | FS15: 1059 | FT15: 1164 | FU15: 1344 | FV15: 1476 | FW15: 1569 | FX15: 1719 | FY15: 1749 | FZ15: 1749 | GA15: 1749 | GB15: 1749 | GD15: 613 | GE15: XX499 | GG15: AL006 | GH15: AUBURN, AL
B16: O4 | C16: 4985.4 | D16: 5770.8 | E16: 6156.3 | F16: 6241.8 | H16: 6599.1 | J16: 6982.8 | L16: 7460.4 | N16: 7831.8 | P16: 8089.8 | R16: 8238.3 | T16: 8324.1 | V16: 8324.1 | X16: 8324.1 | Z16: 8324.1 | AB16: 8324.1 | AD16: 8324.1 | AF16: 8324.1 | AH16: 8324.1 | AJ16: 8324.1 | AL16: 8324.1 | AN16: 8324.1 | AP16: 8324.1 | AT16: O1E | AU16: =AU15 -> 100 | AV16: =AV15 -> 100 | AW16: 100 | AX16: 263 | AY16: 281 | AZ16: 325 | BA16: 331 | BB16: 344 | BC16: 356 | BD16: 375 | BE16: 394 | BF16: 394 | BG16: 419 | BH16: 419 | BI16: 438 | BK16: 456 | BM16: 475 | BO16: 494 | BQ16: 494 | BS16: 494 | BU16: 494 | BY16: 494 | CC16: 494 | CG16: 494 | CJ16: O1E | CK16: 230 | CL16: 230 | CM16: 230 | CN16: 230 | CP16: 230 | CR16: 230 | CT16: 425 | CV16: 425 | CX16: 425 | CZ16: 425 | DB16: 425 | DD16: 425 | DF16: 425 | DH16: 425 | DJ16: 425 | DN16: 425 | DR16: 425 | DV16: 425 | DX16: AL007 | DY16: 1386 | DZ16: 1386 | EA16: 1386 | EB16: 1386 | EC16: 1530 | ED16: 1545 | EE16: 1560 | EF16: 1569 | EG16: 1620 | EH16: 1557 | EI16: 1566 | EJ16: 1578 | EK16: 1647 | EL16: 1761 | EM16: 1563 | EN16: 1572 | EO16: 1662 | EP16: 1539 | EQ16: 1542 | ER16: 1575 | ES16: 1800 | ET16: 1980 | EU16: 1995 | EV16: 2013 | EW16: 2013 | EX16: 2013 | EY16: 2013 | EZ16: True | FA16: AL007 | FB16: 1044 | FC16: 1044 | FD16: 1044 | FE16: 1044 | FF16: 1164 | FG16: 1251 | FH16: 1389 | FI16: 1539 | FJ16: 1545 | FK16: 1341 | FL16: 1536 | FM16: 1548 | FN16: 1557 | FO16: 1563 | FP16: 1533 | FQ16: 1542 | FR16: 1554 | FS16: 1236 | FT16: 1485 | FU16: 1551 | FV16: 1560 | FW16: 1566 | FX16: 1569 | FY16: 1572 | FZ16: 1572 | GA16: 1572 | GB16: 1572 | GD16: 614 | GE16: XX499 | GG16: AL007 | GH16: BIRMINGHAM, AL
B17: O4 1 Drill | C17: 166.18 | D17: 192.36 | E17: 205.21 | F17: 208.06 | H17: 219.97 | J17: 232.76 | L17: 248.68 | N17: 261.06 | P17: 269.66 | R17: 274.61 | T17: 277.47 | V17: 277.47 | X17: 277.47 | Z17: 277.47 | AB17: 277.47 | AD17: 277.47 | AF17: 277.47 | AH17: 277.47 | AJ17: 277.47 | AL17: 277.47 | AN17: 277.47 | AP17: 277.47 | AT17: W5 | AU17: 210 | AV17: 210 | AW17: 210 | AX17: 263 | AY17: 300 | AZ17: 506 | BA17: 544 | BB17: 544 | BC17: 544 | BD17: 544 | BE17: 613 | BF17: 656 | BG17: 700 | BH17: 700 | BI17: 750 | BK17: 750 | BM17: 750 | BO17: 750 | BQ17: 750 | BS17: 750 | BU17: 750 | BY17: 750 | CC17: 750 | CG17: 750 | CJ17: W5 | CK17: 285 | CL17: 375 | CM17: 375 | CN17: 425 | CP17: 425 | CR17: 425 | CT17: 425 | CV17: 425 | CX17: 425 | CZ17: 425 | DB17: 425 | DD17: 425 | DF17: 425 | DH17: 425 | DJ17: 425 | DN17: 425 | DR17: 425 | DV17: 425 | DX17: AR010 | DY17: 1248 | DZ17: 1248 | EA17: 1248 | EB17: 1248 | EC17: 1326 | ED17: 1341 | EE17: 1377 | EF17: 1443 | EG17: 1548 | EH17: 1344 | EI17: 1407 | EJ17: 1485 | EK17: 1575 | EL17: 1686 | EM17: 1392 | EN17: 1473 | EO17: 1590 | EP17: 1335 | EQ17: 1338 | ER17: 1482 | ES17: 1725 | ET17: 1899 | EU17: 1914 | EV17: 1932 | EW17: 1932 | EX17: 1932 | EY17: 1932 | EZ17: True | FA17: AR010 | FB17: 954 | FC17: 954 | FD17: 954 | FE17: 954 | FF17: 1089 | FG17: 1173 | FH17: 1248 | FI17: 1335 | FJ17: 1341 | FK17: 1233 | FL17: 1332 | FM17: 1344 | FN17: 1353 | FO17: 1398 | FP17: 1329 | FQ17: 1338 | FR17: 1350 | FS17: 1170 | FT17: 1302 | FU17: 1347 | FV17: 1380 | FW17: 1425 | FX17: 1470 | FY17: 1494 | FZ17: 1494 | GA17: 1494 | GB17: 1494 | GD17: 616 | GE17: XX499 | GG17: AR010 | GH17: LITTLE ROCK, AR
B18: O4 4 Drills | C18: 664.72 | D18: 769.44 | E18: 820.84 | F18: 832.24 | H18: 879.88 | J18: 931.04 | L18: 994.72 | N18: 1044.24 | P18: 1078.64 | R18: 1098.44 | T18: 1109.88 | V18: 1109.88 | X18: 1109.88 | Z18: 1109.88 | AB18: 1109.88 | AD18: 1109.88 | AF18: 1109.88 | AH18: 1109.88 | AJ18: 1109.88 | AL18: 1109.88 | AN18: 1109.88 | AP18: 1109.88 | AT18: W4 | AU18: 210 | AV18: 210 | AW18: 210 | AX18: 263 | AY18: 300 | AZ18: 506 | BA18: 544 | BB18: 544 | BC18: 544 | BD18: 544 | BE18: 613 | BF18: 656 | BG18: 700 | BH18: 700 | BI18: 750 | BK18: 750 | BM18: 750 | BO18: 750 | BQ18: 750 | BS18: 750 | BU18: 750 | BY18: 750 | CC18: 750 | CG18: 750 | CJ18: W4 | CK18: 285 | CL18: 375 | CM18: 375 | CN18: 425 | CP18: 425 | CR18: 425 | CT18: 425 | CV18: 425 | CX18: 425 | CZ18: 425 | DB18: 425 | DD18: 425 | DF18: 425 | DH18: 425 | DJ18: 425 | DN18: 425 | DR18: 425 | DV18: 425 | DX18: AR012 | DY18: 780 | DZ18: 780 | EA18: 780 | EB18: 780 | EC18: 840 | ED18: 1092 | EE18: 1140 | EF18: 1194 | EG18: 1266 | EH18: 1107 | EI18: 1164 | EJ18: 1227 | EK18: 1284 | EL18: 1353 | EM18: 1152 | EN18: 1218 | EO18: 1293 | EP18: 873 | EQ18: 1089 | ER18: 1224 | ES18: 1377 | ET18: 1482 | EU18: 1494 | EV18: 1506 | EW18: 1506 | EX18: 1506 | EY18: 1506 | EZ18: True | FA18: AR012 | FB18: 585 | FC18: 585 | FD18: 585 | FE18: 585 | FF18: 657 | FG18: 816 | FH18: 855 | FI18: 897 | FJ18: 969 | FK18: 831 | FL18: 891 | FM18: 972 | FN18: 1101 | FO18: 1155 | FP18: 864 | FQ18: 948 | FR18: 1086 | FS18: 717 | FT18: 858 | FU18: 999 | FV18: 1140 | FW18: 1167 | FX18: 1212 | FY18: 1233 | FZ18: 1233 | GA18: 1233 | GB18: 1233 | GD18: 617 | GE18: XX499 | GG18: AR012 | GH18: FORT CHAFFEE/FORT SMITH, AR
B19: O3 | C19: 4383.3 | D19: 4968.6 | E19: 5362.5 | F19: 5847.3 | H19: 6127.8 | J19: 6435 | L19: 6633.9 | N19: 6960.6 | P19: 7131.3 | R19: 7131.3 | T19: 7131.3 | V19: 7131.3 | X19: 7131.3 | Z19: 7131.3 | AB19: 7131.3 | AD19: 7131.3 | AF19: 7131.3 | AH19: 7131.3 | AJ19: 7131.3 | AL19: 7131.3 | AN19: 7131.3 | AP19: 7131.3 | AT19: W3 | AU19: 210 | AV19: 210 | AW19: 210 | AX19: 263 | AY19: 300 | AZ19: 475 | BA19: 494 | BB19: 500 | BC19: 506 | BD19: 544 | BE19: 613 | BF19: 656 | BG19: 700 | BH19: 700 | BI19: 744 | BK19: 744 | BM19: 750 | BO19: 750 | BQ19: 750 | BS19: 750 | BU19: 750 | BY19: 750 | CC19: 750 | CG19: 750 | CJ19: W3 | CK19: 285 | CL19: 375 | CM19: 375 | CN19: 425 | CP19: 425 | CR19: 425 | CT19: 425 | CV19: 425 | CX19: 425 | CZ19: 425 | DB19: 425 | DD19: 425 | DF19: 425 | DH19: 425 | DJ19: 425 | DN19: 425 | DR19: 425 | DV19: 425 | DX19: AR411 | DY19: 969 | DZ19: 969 | EA19: 969 | EB19: 969 | EC19: 1047 | ED19: 1332 | EE19: 1392 | EF19: 1461 | EG19: 1569 | EH19: 1347 | EI19: 1422 | EJ19: 1506 | EK19: 1596 | EL19: 1710 | EM19: 1407 | EN19: 1491 | EO19: 1611 | EP19: 1083 | EQ19: 1329 | ER19: 1500 | ES19: 1749 | ET19: 1923 | EU19: 1938 | EV19: 1953 | EW19: 1953 | EX19: 1953 | EY19: 1953 | EZ19: True | FA19: AR411 | FB19: 747 | FC19: 747 | FD19: 747 | FE19: 747 | FF19: 831 | FG19: 996 | FH19: 1044 | FI19: 1107 | FJ19: 1191 | FK19: 1011 | FL19: 1104 | FM19: 1197 | FN19: 1344 | FO19: 1413 | FP19: 1056 | FQ19: 1167 | FR19: 1326 | FS19: 885 | FT19: 1047 | FU19: 1227 | FV19: 1392 | FW19: 1443 | FX19: 1491 | FY19: 1515 | FZ19: 1515 | GA19: 1515 | GB19: 1515 | GD19: 622 | GE19: XX499 | GG19: AR411 | GH19: FAYETTEVILLE, AR
B20: O3 1 Drill | C20: 146.11 | D20: 165.62 | E20: 178.75 | F20: 194.91 | H20: 204.26 | J20: 214.5 | L20: 221.13 | N20: 232.02 | P20: 237.71 | R20: 237.71 | T20: 237.71 | V20: 237.71 | X20: 237.71 | Z20: 237.71 | AB20: 237.71 | AD20: 237.71 | AF20: 237.71 | AH20: 237.71 | AJ20: 237.71 | AL20: 237.71 | AN20: 237.71 | AP20: 237.71 | AT20: W2 | AU20: 210 | AV20: 210 | AW20: 210 | AX20: 263 | AY20: 300 | AZ20: 456 | BA20: 463 | BB20: 463 | BC20: 475 | BD20: 544 | BE20: 594 | BF20: 594 | BG20: 656 | BH20: 656 | BI20: 700 | BK20: 700 | BM20: 700 | BO20: 700 | BQ20: 700 | BS20: 700 | BU20: 700 | BY20: 700 | CC20: 700 | CG20: 700 | CJ20: W2 | CK20: 285 | CL20: 375 | CM20: 375 | CN20: 425 | CP20: 425 | CR20: 425 | CT20: 425 | CV20: 425 | CX20: 425 | CZ20: 425 | DB20: 425 | DD20: 425 | DF20: 425 | DH20: 425 | DJ20: 425 | DN20: 425 | DR20: 425 | DV20: 425 | DX20: AZ013 | DY20: 1620 | DZ20: 1620 | EA20: 1620 | EB20: 1620 | EC20: 1698 | ED20: 1914 | EE20: 1932 | EF20: 1959 | EG20: 2001 | EH20: 1926 | EI20: 1944 | EJ20: 1977 | EK20: 2013 | EL20: 2061 | EM20: 1938 | EN20: 1968 | EO20: 2016 | EP20: 1728 | EQ20: 1911 | ER20: 1974 | ES20: 2076 | ET20: 2148 | EU20: 2166 | EV20: 2184 | EW20: 2184 | EX20: 2184 | EY20: 2184 | EZ20: True | FA20: AZ013 | FB20: 1233 | FC20: 1233 | FD20: 1233 | FE20: 1233 | FF20: 1431 | FG20: 1545 | FH20: 1620 | FI20: 1746 | FJ20: 1806 | FK20: 1602 | FL20: 1743 | FM20: 1809 | FN20: 1917 | FO20: 1941 | FP20: 1701 | FQ20: 1788 | FR20: 1905 | FS20: 1542 | FT20: 1674 | FU20: 1833 | FV20: 1929 | FW20: 1944 | FX20: 1959 | FY20: 1995 | FZ20: 1995 | GA20: 1995 | GB20: 1995 | GD20: 623 | GE20: XX499 | GG20: AZ013 | GH20: PHOENIX, AZ
B21: O3 4 Drills | C21: 584.44 | D21: 662.48 | E21: 715 | F21: 779.64 | H21: 817.04 | J21: 858 | L21: 884.52 | N21: 928.08 | P21: 950.84 | R21: 950.84 | T21: 950.84 | V21: 950.84 | X21: 950.84 | Z21: 950.84 | AB21: 950.84 | AD21: 950.84 | AF21: 950.84 | AH21: 950.84 | AJ21: 950.84 | AL21: 950.84 | AN21: 950.84 | AP21: 950.84 | AT21: W1 | AU21: 180 | AV21: 190 | AW21: 195 | AX21: 263 | AY21: 300 | AZ21: 306 | BA21: 350 | BB21: 438 | BC21: 475 | BD21: 525 | BE21: 569 | BF21: 569 | BG21: 594 | BH21: 594 | BI21: 631 | BK21: 656 | BM21: 656 | BO21: 656 | BQ21: 656 | BS21: 656 | BU21: 656 | BY21: 656 | CC21: 656 | CG21: 656 | CJ21: W1 | CK21: 285 | CL21: 375 | CM21: 375 | CN21: 425 | CP21: 425 | CR21: 425 | CT21: 425 | CV21: 425 | CX21: 425 | CZ21: 425 | DB21: 425 | DD21: 425 | DF21: 425 | DH21: 425 | DJ21: 425 | DN21: 425 | DR21: 425 | DV21: 425 | DX21: AZ014 | DY21: 930 | DZ21: 930 | EA21: 930 | EB21: 930 | EC21: 1011 | ED21: 1032 | EE21: 1152 | EF21: 1293 | EG21: 1422 | EH21: 1044 | EI21: 1209 | EJ21: 1380 | EK21: 1440 | EL21: 1512 | EM21: 1182 | EN21: 1356 | EO21: 1449 | EP21: 1020 | EQ21: 1029 | ER21: 1374 | ES21: 1536 | ET21: 1647 | EU21: 1659 | EV21: 1674 | EW21: 1674 | EX21: 1674 | EY21: 1674 | EZ21: True | FA21: AZ014 | FB21: 804 | FC21: 804 | FD21: 804 | FE21: 804 | FF21: 825 | FG21: 852 | FH21: 930 | FI21: 1020 | FJ21: 1068 | FK21: 912 | FL21: 1017 | FM21: 1071 | FN21: 1089 | FO21: 1188 | FP21: 1014 | FQ21: 1023 | FR21: 1086 | FS21: 849 | FT21: 987 | FU21: 1074 | FV21: 1161 | FW21: 1239 | FX21: 1365 | FY21: 1389 | FZ21: 1389 | GA21: 1389 | GB21: 1389 | GD21: 624 | GE21: XX499 | GG21: AZ014 | GH21: FORT HUACHUCA, AZ
B22: O2 | C22: 3787.5 | D22: 4313.4 | E22: 4967.7 | F22: 5135.7 | H22: 5241.3 | J22: 5241.3 | L22: 5241.3 | N22: 5241.3 | P22: 5241.3 | R22: 5241.3 | T22: 5241.3 | V22: 5241.3 | X22: 5241.3 | Z22: 5241.3 | AB22: 5241.3 | AD22: 5241.3 | AF22: 5241.3 | AH22: 5241.3 | AJ22: 5241.3 | AL22: 5241.3 | AN22: 5241.3 | AP22: 5241.3 | AT22: E9 | AU22: 135 | AV22: 135 | AW22: 160 | AX22: 381 | AY22: 400 | AZ22: 438 | BA22: 438 | BB22: 469 | BC22: 688 | BD22: 700 | BE22: 700 | BF22: 713 | BG22: 725 | BH22: 750 | BI22: 750 | BK22: 750 | BM22: 750 | BO22: 750 | BQ22: 750 | BS22: 750 | BU22: 750 | BY22: 750 | CC22: 750 | CG22: 750 | CJ22: E9 | CK22: 425 | CL22: 425 | CM22: 425 | CN22: 425 | CP22: 425 | CR22: 425 | CT22: 425 | CV22: 425 | CX22: 425 | CZ22: 425 | DB22: 600 | DD22: 600 | DF22: 600 | DH22: 600 | DJ22: 600 | DN22: 600 | DR22: 600 | DV22: 600 | DX22: AZ015 | DY22: 1284 | DZ22: 1284 | EA22: 1284 | EB22: 1284 | EC22: 1425 | ED22: 1779 | EE22: 1800 | EF22: 1809 | EG22: 1821 | EH22: 1797 | EI22: 1806 | EJ22: 1818 | EK22: 1824 | EL22: 1851 | EM22: 1803 | EN22: 1812 | EO22: 1827 | EP22: 1470 | EQ22: 1776 | ER22: 1815 | ES22: 1857 | ET22: 1902 | EU22: 1917 | EV22: 1935 | EW22: 1935 | EX22: 1935 | EY22: 1935 | EZ22: True | FA22: AZ015 | FB22: 981 | FC22: 981 | FD22: 981 | FE22: 981 | FF22: 1077 | FG22: 1335 | FH22: 1350 | FI22: 1500 | FJ22: 1605 | FK22: 1347 | FL22: 1497 | FM22: 1614 | FN22: 1782 | FO22: 1791 | FP22: 1428 | FQ22: 1578 | FR22: 1776 | FS22: 1140 | FT22: 1380 | FU22: 1650 | FV22: 1785 | FW22: 1794 | FX22: 1797 | FY22: 1809 | FZ22: 1809 | GA22: 1809 | GB22: 1809 | GD22: 627 | GE22: XX499 | GG22: AZ015 | GH22: DAVIS-MONTHAN AFB, AZ
B23: O2 1 Drill | C23: 126.25 | D23: 143.78 | E23: 165.59 | F23: 171.19 | H23: 174.71 | J23: 174.71 | L23: 174.71 | N23: 174.71 | P23: 174.71 | R23: 174.71 | T23: 174.71 | V23: 174.71 | X23: 174.71 | Z23: 174.71 | AB23: 174.71 | AD23: 174.71 | AF23: 174.71 | AH23: 174.71 | AJ23: 174.71 | AL23: 174.71 | AN23: 174.71 | AP23: 174.71 | AT23: E8 | AU23: 135 | AV23: 135 | AW23: 160 | AX23: 381 | AY23: 400 | AZ23: 438 | BA23: 438 | BB23: 469 | BC23: 688 | BD23: 700 | BE23: 700 | BF23: 713 | BG23: 725 | BH23: 750 | BI23: 750 | BK23: 750 | BM23: 750 | BO23: 750 | BQ23: 750 | BS23: 750 | BU23: 750 | BY23: 750 | CC23: 750 | CG23: 750 | CJ23: E8 | CK23: 415 | CL23: 415 | CM23: 415 | CN23: 415 | CP23: 415 | CR23: 415 | CT23: 415 | CV23: 415 | CX23: 415 | CZ23: 415 | DB23: 550 | DD23: 550 | DF23: 550 | DH23: 550 | DJ23: 550 | DN23: 550 | DR23: 550 | DV23: 550 | DX23: AZ016 | DY23: 975 | DZ23: 975 | EA23: 975 | EB23: 975 | EC23: 1008 | ED23: 1269 | EE23: 1350 | EF23: 1443 | EG23: 1533 | EH23: 1281 | EI23: 1389 | EJ23: 1503 | EK23: 1545 | EL23: 1602 | EM23: 1371 | EN23: 1485 | EO23: 1551 | EP23: 1044 | EQ23: 1266 | ER23: 1497 | ES23: 1617 | ET23: 1701 | EU23: 1713 | EV23: 1728 | EW23: 1728 | EX23: 1728 | EY23: 1728 | EZ23: True | FA23: AZ016 | FB23: 792 | FC23: 792 | FD23: 792 | FE23: 792 | FF23: 882 | FG23: 948 | FH23: 1014 | FI23: 1083 | FJ23: 1149 | FK23: 975 | FL23: 1062 | FM23: 1152 | FN23: 1287 | FO23: 1374 | FP23: 1029 | FQ23: 1119 | FR23: 1260 | FS23: 939 | FT23: 1017 | FU23: 1173 | FV23: 1353 | FW23: 1404 | FX23: 1488 | FY23: 1512 | FZ23: 1512 | GA23: 1512 | GB23: 1512 | GD23: 631 | GE23: XX499 | GG23: AZ016 | GH23: YUMA, AZ
B24: O2 4 Drills | C24: 505 | D24: 575.12 | E24: 662.36 | F24: 684.76 | H24: 698.84 | J24: 698.84 | L24: 698.84 | N24: 698.84 | P24: 698.84 | R24: 698.84 | T24: 698.84 | V24: 698.84 | X24: 698.84 | Z24: 698.84 | AB24: 698.84 | AD24: 698.84 | AF24: 698.84 | AH24: 698.84 | AJ24: 698.84 | AL24: 698.84 | AN24: 698.84 | AP24: 698.84 | AT24: E7 | AU24: 135 | AV24: 135 | AW24: 160 | AX24: 381 | AY24: 400 | AZ24: 438 | BA24: 438 | BB24: 469 | BC24: 688 | BD24: 700 | BE24: 700 | BF24: 713 | BG24: 725 | BH24: 750 | BI24: 750 | BK24: 750 | BM24: 750 | BO24: 750 | BQ24: 750 | BS24: 750 | BU24: 750 | BY24: 750 | CC24: 750 | CG24: 750 | CJ24: E7 | CK24: 405 | CL24: 405 | CM24: 405 | CN24: 405 | CP24: 405 | CR24: 405 | CT24: 405 | CV24: 405 | CX24: 405 | CZ24: 405 | DB24: 405 | DD24: 405 | DF24: 405 | DH24: 405 | DJ24: 405 | DN24: 405 | DR24: 405 | DV24: 405 | DX24: CA018 | DY24: 3186 | DZ24: 3186 | EA24: 3186 | EB24: 3186 | EC24: 3243 | ED24: 3690 | EE24: 3711 | EF24: 3720 | EG24: 3816 | EH24: 3708 | EI24: 3717 | EJ24: 3729 | EK24: 3855 | EL24: 4029 | EM24: 3714 | EN24: 3723 | EO24: 3879 | EP24: 3300 | EQ24: 3687 | ER24: 3726 | ES24: 4092 | ET24: 4365 | EU24: 4404 | EV24: 4446 | EW24: 4446 | EX24: 4446 | EY24: 4446 | EZ24: True | FA24: CA018 | FB24: 2592 | FC24: 2592 | FD24: 2592 | FE24: 2592 | FF24: 2940 | FG24: 3126 | FH24: 3183 | FI24: 3336 | FJ24: 3474 | FK24: 3174 | FL24: 3333 | FM24: 3483 | FN24: 3693 | FO24: 3705 | FP24: 3246 | FQ24: 3438 | FR24: 3687 | FS24: 3123 | FT24: 3228 | FU24: 3531 | FV24: 3696 | FW24: 3708 | FX24: 3711 | FY24: 3768 | FZ24: 3768 | GA24: 3768 | GB24: 3768 | GD24: 636 | GE24: XX499 | GG24: CA018 | GH24: OAKLAND, CA
B25: O1 | C25: 3287.1 | D25: 3421.8 | E25: 4136.4 | F25: 4136.4 | H25: 4136.4 | J25: 4136.4 | L25: 4136.4 | N25: 4136.4 | P25: 4136.4 | R25: 4136.4 | T25: 4136.4 | V25: 4136.4 | X25: 4136.4 | Z25: 4136.4 | AB25: 4136.4 | AD25: 4136.4 | AF25: 4136.4 | AH25: 4136.4 | AJ25: 4136.4 | AL25: 4136.4 | AN25: 4136.4 | AP25: 4136.4 | AT25: E6 | AU25: 135 | AV25: 135 | AW25: 160 | AX25: 350 | AY25: 375 | AZ25: 394 | BA25: 406 | BB25: 438 | BC25: 638 | BD25: 656 | BE25: 656 | BF25: 656 | BG25: 675 | BH25: 694 | BI25: 713 | BK25: 731 | BM25: 750 | BO25: 750 | BQ25: 750 | BS25: 750 | BU25: 750 | BY25: 750 | CC25: 750 | CG25: 750 | CJ25: E6 | CK25: 155 | CL25: 170 | CM25: 175 | CN25: 300 | CP25: 325 | CR25: 375 | CT25: 375 | CV25: 375 | CX25: 375 | CZ25: 375 | DB25: 375 | DD25: 375 | DF25: 375 | DH25: 375 | DJ25: 375 | DN25: 375 | DR25: 375 | DV25: 375 | DX25: CA019 | DY25: 4359 | DZ25: 4359 | EA25: 4359 | EB25: 4359 | EC25: 4614 | ED25: 4815 | EE25: 4830 | EF25: 4839 | EG25: 4980 | EH25: 4827 | EI25: 4836 | EJ25: 4848 | EK25: 5040 | EL25: 5298 | EM25: 4833 | EN25: 4842 | EO25: 5079 | EP25: 4641 | EQ25: 4812 | ER25: 4845 | ES25: 5394 | ET25: 5805 | EU25: 5859 | EV25: 5916 | EW25: 5916 | EX25: 5916 | EY25: 5916 | EZ25: True | FA25: CA019 | FB25: 3285 | FC25: 3285 | FD25: 3285 | FE25: 3285 | FF25: 3822 | FG25: 4128 | FH25: 4368 | FI25: 4659 | FJ25: 4716 | FK25: 4272 | FL25: 4656 | FM25: 4719 | FN25: 4812 | FO25: 4824 | FP25: 4617 | FQ25: 4698 | FR25: 4806 | FS25: 4101 | FT25: 4530 | FU25: 4740 | FV25: 4815 | FW25: 4827 | FX25: 4830 | FY25: 4902 | FZ25: 4902 | GA25: 4902 | GB25: 4902 | GD25: 637 | GE25: XX499 | GG25: CA019 | GH25: SAN FRANCISCO, CA
B26: O1 1 Drill | C26: 109.57 | D26: 114.06 | E26: 137.88 | F26: 137.88 | H26: 137.88 | J26: 137.88 | L26: 137.88 | N26: 137.88 | P26: 137.88 | R26: 137.88 | T26: 137.88 | V26: 137.88 | X26: 137.88 | Z26: 137.88 | AB26: 137.88 | AD26: 137.88 | AF26: 137.88 | AH26: 137.88 | AJ26: 137.88 | AL26: 137.88 | AN26: 137.88 | AP26: 137.88 | AT26: E5 | AU26: 70 | AV26: 80 | AW26: 160 | AX26: 350 | AY26: 375 | AZ26: 394 | BA26: 406 | BB26: 438 | BC26: 638 | BD26: 638 | BE26: 638 | BF26: 638 | BG26: 638 | BH26: 638 | BI26: 638 | BK26: 638 | BM26: 638 | BO26: 638 | BQ26: 638 | BS26: 638 | BU26: 638 | BY26: 638 | CC26: 638 | CG26: 638 | CJ26: E5 | CK26: 140 | CL26: 155 | CM26: 155 | CN26: 250 | CP26: 275 | CR26: 275 | CT26: 275 | CV26: 275 | CX26: 275 | CZ26: 275 | DB26: 275 | DD26: 275 | DF26: 275 | DH26: 275 | DJ26: 275 | DN26: 275 | DR26: 275 | DV26: 275 | DX26: CA021 | DY26: 948 | DZ26: 948 | EA26: 948 | EB26: 948 | EC26: 984 | ED26: 1107 | EE26: 1251 | EF26: 1416 | EG26: 1584 | EH26: 1119 | EI26: 1320 | EJ26: 1521 | EK26: 1611 | EL26: 1722 | EM26: 1284 | EN26: 1491 | EO26: 1626 | EP26: 1005 | EQ26: 1104 | ER26: 1512 | ES26: 1761 | ET26: 1935 | EU26: 1950 | EV26: 1965 | EW26: 1965 | EX26: 1965 | EY26: 1965 | EZ26: True | FA26: CA021 | FB26: 711 | FC26: 711 | FD26: 711 | FE26: 711 | FF26: 813 | FG26: 909 | FH26: 948 | FI26: 1062 | FJ26: 1188 | FK26: 945 | FL26: 1011 | FM26: 1191 | FN26: 1224 | FO26: 1323 | FP26: 987 | FQ26: 1119 | FR26: 1221 | FS26: 906 | FT26: 975 | FU26: 1194 | FV26: 1320 | FW26: 1452 | FX26: 1506 | FY26: 1533 | FZ26: 1533 | GA26: 1533 | GB26: 1533 | GD26: 638 | GE26: XX499 | GG26: CA021 | GH26: CHINA LAKE, CA
B27: O1 4 Drills | C27: 438.28 | D27: 456.24 | E27: 551.52 | F27: 551.52 | H27: 551.52 | J27: 551.52 | L27: 551.52 | N27: 551.52 | P27: 551.52 | R27: 551.52 | T27: 551.52 | V27: 551.52 | X27: 551.52 | Z27: 551.52 | AB27: 551.52 | AD27: 551.52 | AF27: 551.52 | AH27: 551.52 | AJ27: 551.52 | AL27: 551.52 | AN27: 551.52 | AP27: 551.52 | AT27: E4 | AU27: 70 | AV27: 80 | AW27: 160 | AX27: 350 | AY27: 363 | AZ27: 363 | BA27: 363 | BB27: 363 | BC27: 488 | BD27: 488 | BE27: 488 | BF27: 488 | BG27: 488 | BH27: 488 | BI27: 488 | BK27: 488 | BM27: 488 | BO27: 488 | BQ27: 488 | BS27: 488 | BU27: 488 | BY27: 488 | CC27: 488 | CG27: 488 | CJ27: E4 | CK27: 80 | CL27: 95 | CM27: 100 | CN27: 245 | CP27: 245 | CR27: 245 | CT27: 245 | CV27: 245 | CX27: 245 | CZ27: 245 | DB27: 245 | DD27: 245 | DF27: 245 | DH27: 245 | DJ27: 245 | DN27: 245 | DR27: 245 | DV27: 245 | DX27: CA022 | DY27: 1476 | DZ27: 1476 | EA27: 1476 | EB27: 1476 | EC27: 1539 | ED27: 1653 | EE27: 1719 | EF27: 1797 | EG27: 1917 | EH27: 1665 | EI27: 1752 | EJ27: 1845 | EK27: 1947 | EL27: 2070 | EM27: 1734 | EN27: 1830 | EO27: 1965 | EP27: 1557 | EQ27: 1650 | ER27: 1842 | ES27: 2115 | ET27: 2307 | EU27: 2325 | EV27: 2346 | EW27: 2346 | EX27: 2346 | EY27: 2346 | EZ27: True | FA27: CA022 | FB27: 1227 | FC27: 1227 | FD27: 1227 | FE27: 1227 | FF27: 1341 | FG27: 1410 | FH27: 1473 | FI27: 1566 | FJ27: 1593 | FK27: 1461 | FL27: 1563 | FM27: 1596 | FN27: 1665 | FO27: 1740 | FP27: 1542 | FQ27: 1584 | FR27: 1641 | FS27: 1407 | FT27: 1518 | FU27: 1605 | FV27: 1719 | FW27: 1761 | FX27: 1830 | FY27: 1863 | FZ27: 1863 | GA27: 1863 | GB27: 1863 | GD27: 641 | GE27: XX499 | GG27: CA022 | GH27: FRESNO, CA
B28: O3E | F28: 5847.3 | H28: 6127.8 | J28: 6435 | L28: 6633.9 | N28: 6960.6 | P28: 7236.3 | R28: 7395 | T28: 7610.7 | V28: 7610.7 | X28: 7610.7 | Z28: 7610.7 | AB28: 7610.7 | AD28: 7610.7 | AF28: 7610.7 | AH28: 7610.7 | AJ28: 7610.7 | AL28: 7610.7 | AN28: 7610.7 | AP28: 7610.7 | AT28: E3 | AU28: 50 | AV28: 60 | AW28: 100 | AX28: 125 | AY28: 125 | AZ28: 125 | BA28: 125 | BB28: 125 | BC28: 125 | BD28: 125 | BE28: 125 | BF28: 125 | BG28: 125 | BH28: 125 | BI28: 125 | BK28: 125 | BM28: 125 | BO28: 125 | BQ28: 125 | BS28: 125 | BU28: 125 | BY28: 125 | CC28: 125 | CG28: 125 | CJ28: E3 | CK28: 80 | CL28: 90 | CM28: 95 | CN28: 95 | CP28: 90 | CR28: 90 | CT28: 90 | CV28: 90 | CX28: 90 | CZ28: 90 | DB28: 90 | DD28: 90 | DF28: 90 | DH28: 90 | DJ28: 90 | DN28: 90 | DR28: 90 | DV28: 90 | DX28: CA023 | DY28: 1380 | DZ28: 1380 | EA28: 1380 | EB28: 1380 | EC28: 1506 | ED28: 1521 | EE28: 1569 | EF28: 1635 | EG28: 1743 | EH28: 1530 | EI28: 1596 | EJ28: 1674 | EK28: 1773 | EL28: 1890 | EM28: 1584 | EN28: 1662 | EO28: 1788 | EP28: 1515 | EQ28: 1518 | ER28: 1671 | ES28: 1929 | ET28: 2115 | EU28: 2130 | EV28: 2151 | EW28: 2151 | EX28: 2151 | EY28: 2151 | EZ28: True | FA28: CA023 | FB28: 1089 | FC28: 1089 | FD28: 1089 | FE28: 1089 | FF28: 1191 | FG28: 1263 | FH28: 1383 | FI28: 1515 | FJ28: 1521 | FK28: 1344 | FL28: 1512 | FM28: 1524 | FN28: 1533 | FO28: 1587 | FP28: 1509 | FQ28: 1518 | FR28: 1530 | FS28: 1254 | FT28: 1467 | FU28: 1527 | FV28: 1572 | FW28: 1605 | FX28: 1659 | FY28: 1689 | FZ28: 1689 | GA28: 1689 | GB28: 1689 | GD28: 646 | GE28: XX499 | GG28: CA023 | GH28: LEMOORE NAS, CA
B29: O3E 1 Drill | F29: 194.91 | H29: 204.26 | J29: 214.5 | L29: 221.13 | N29: 232.02 | P29: 241.21 | R29: 246.5 | T29: 253.69 | V29: 253.69 | X29: 253.69 | Z29: 253.69 | AB29: 253.69 | AD29: 253.69 | AF29: 253.69 | AH29: 253.69 | AJ29: 253.69 | AL29: 253.69 | AN29: 253.69 | AP29: 253.69 | AT29: E2 | AU29: 50 | AV29: 60 | AW29: 75 | AX29: 94 | AY29: 94 | AZ29: 94 | BA29: 94 | BB29: 94 | BC29: 94 | BD29: 94 | BE29: 94 | BF29: 94 | BG29: 94 | BH29: 94 | BI29: 94 | BK29: 94 | BM29: 94 | BO29: 94 | BQ29: 94 | BS29: 94 | BU29: 94 | BY29: 94 | CC29: 94 | CG29: 94 | CJ29: E2 | CK29: 75 | CL29: 90 | CM29: 90 | CN29: 90 | CP29: 90 | CR29: 90 | CT29: 90 | CV29: 90 | CX29: 90 | CZ29: 90 | DB29: 90 | DD29: 90 | DF29: 90 | DH29: 90 | DJ29: 90 | DN29: 90 | DR29: 90 | DV29: 90 | DX29: CA024 | DY29: 2388 | DZ29: 2388 | EA29: 2388 | EB29: 2388 | EC29: 2589 | ED29: 3183 | EE29: 3204 | EF29: 3213 | EG29: 3255 | EH29: 3201 | EI29: 3210 | EJ29: 3222 | EK29: 3279 | EL29: 3378 | EM29: 3207 | EN29: 3216 | EO29: 3291 | EP29: 2661 | EQ29: 3177 | ER29: 3219 | ES29: 3411 | ET29: 3561 | EU29: 3594 | EV29: 3627 | EW29: 3627 | EX29: 3627 | EY29: 3627 | EZ29: True | FA29: CA024 | FB29: 2070 | FC29: 2070 | FD29: 2070 | FE29: 2070 | FF29: 2139 | FG29: 2388 | FH29: 2403 | FI29: 2709 | FJ29: 2895 | FK29: 2400 | FL29: 2706 | FM29: 2910 | FN29: 3186 | FO29: 3198 | FP29: 2592 | FQ29: 2847 | FR29: 3180 | FS29: 2187 | FT29: 2523 | FU29: 2970 | FV29: 3189 | FW29: 3201 | FX29: 3204 | FY29: 3243 | FZ29: 3243 | GA29: 3243 | GB29: 3243 | GD29: 647 | GE29: XX499 | GG29: CA024 | GH29: CAMP PENDLETON, CA
B30: O3E 4 Drills | F30: 779.64 | H30: 817.04 | J30: 858 | L30: 884.52 | N30: 928.08 | P30: 964.84 | R30: 986 | T30: 1014.76 | V30: 1014.76 | X30: 1014.76 | Z30: 1014.76 | AB30: 1014.76 | AD30: 1014.76 | AF30: 1014.76 | AH30: 1014.76 | AJ30: 1014.76 | AL30: 1014.76 | AN30: 1014.76 | AP30: 1014.76 | AT30: E1 | AU30: 50 | AV30: 50 | AW30: 50 | AX30: 63 | AY30: 63 | AZ30: 63 | BA30: 63 | BB30: 63 | BC30: 63 | BD30: 63 | BE30: 63 | BF30: 63 | BG30: 63 | BH30: 63 | BI30: 63 | BK30: 63 | BM30: 63 | BO30: 63 | BQ30: 63 | BS30: 63 | BU30: 63 | BY30: 63 | CC30: 63 | CG30: 63 | CJ30: E1 | CK30: 75 | CL30: 75 | CM30: 75 | CN30: 75 | CP30: 75 | CR30: 75 | CT30: 75 | CV30: 75 | CX30: 75 | CZ30: 75 | DB30: 75 | DD30: 75 | DF30: 75 | DH30: 75 | DJ30: 75 | DN30: 75 | DR30: 75 | DV30: 75 | DX30: CA025 | DY30: 2583 | DZ30: 2583 | EA30: 2583 | EB30: 2583 | EC30: 2586 | ED30: 3024 | EE30: 3114 | EF30: 3213 | EG30: 3345 | EH30: 3042 | EI30: 3156 | EJ30: 3276 | EK30: 3372 | EL30: 3489 | EM30: 3135 | EN30: 3258 | EO30: 3387 | EP30: 2637 | EQ30: 3021 | ER30: 3273 | ES30: 3528 | ET30: 3708 | EU30: 3741 | EV30: 3777 | EW30: 3777 | EX30: 3777 | EY30: 3777 | EZ30: True | FA30: CA025 | FB30: 2037 | FC30: 2037 | FD30: 2037 | FE30: 2037 | FF30: 2391 | FG30: 2583 | FH30: 2598 | FI30: 2673 | FJ30: 2808 | FK30: 2595 | FL30: 2670 | FM30: 2817 | FN30: 3048 | FO30: 3141 | FP30: 2604 | FQ30: 2772 | FR30: 3021 | FS30: 2580 | FT30: 2601 | FU30: 2862 | FV30: 3120 | FW30: 3174 | FX30: 3261 | FY30: 3324 | FZ30: 3324 | GA30: 3324 | GB30: 3324 | GD30: 650 | GE30: XX499 | GG30: CA025 | GH30: VENTURA, CA
B31: O2E | F31: 5135.7 | H31: 5241.3 | J31: 5408.1 | L31: 5689.8 | N31: 5907.6 | P31: 6069.6 | R31: 6069.6 | T31: 6069.6 | V31: 6069.6 | X31: 6069.6 | Z31: 6069.6 | AB31: 6069.6 | AD31: 6069.6 | AF31: 6069.6 | AH31: 6069.6 | AJ31: 6069.6 | AL31: 6069.6 | AN31: 6069.6 | AP31: 6069.6 | DX31: CA026 | DY31: 1980 | DZ31: 1980 | EA31: 1980 | EB31: 1980 | EC31: 2094 | ED31: 2256 | EE31: 2271 | EF31: 2280 | EG31: 2298 | EH31: 2268 | EI31: 2277 | EJ31: 2289 | EK31: 2310 | EL31: 2370 | EM31: 2274 | EN31: 2283 | EO31: 2319 | EP31: 2118 | EQ31: 2253 | ER31: 2286 | ES31: 2385 | ET31: 2472 | EU31: 2493 | EV31: 2514 | EW31: 2514 | EX31: 2514 | EY31: 2514 | EZ31: True | FA31: CA026 | FB31: 1572 | FC31: 1572 | FD31: 1572 | FE31: 1572 | FF31: 1755 | FG31: 1869 | FH31: 1980 | FI31: 2133 | FJ31: 2175 | FK31: 1947 | FL31: 2130 | FM31: 2178 | FN31: 2253 | FO31: 2265 | FP31: 2097 | FQ31: 2163 | FR31: 2247 | FS31: 1860 | FT31: 2058 | FU31: 2196 | FV31: 2256 | FW31: 2268 | FX31: 2271 | FY31: 2292 | FZ31: 2292 | GA31: 2292 | GB31: 2292 | GD31: 652 | GE31: XX499 | GG31: CA026 | GH31: VANDENBERG AFB, CA
B32: O2E 1 Drill | F32: 171.19 | H32: 174.71 | J32: 180.27 | L32: 189.66 | N32: 196.92 | P32: 202.32 | R32: 202.32 | T32: 202.32 | V32: 202.32 | X32: 202.32 | Z32: 202.32 | AB32: 202.32 | AD32: 202.32 | AF32: 202.32 | AH32: 202.32 | AJ32: 202.32 | AL32: 202.32 | AN32: 202.32 | AP32: 202.32 | CJ32: Pay Grade | CK32: 2 or less | CL32: Over 2 | CM32: Over 3 | CN32: Over 4 | CP32: Over 6 | CR32: Over 8 | CT32: Over 10 | CV32: Over 12 | CX32: Over 14 | CZ32: Over 16 | DB32: Over 18 | DD32: Over 20 | DF32: Over | DH32: Over 26 | DJ32: Over 26 | DN32: Over 26 | DR32: Over 26 | DV32: Over 26 | DX32: CA027 | DY32: 3132 | DZ32: 3132 | EA32: 3132 | EB32: 3132 | EC32: 3234 | ED32: 3594 | EE32: 3615 | EF32: 3627 | EG32: 3741 | EH32: 3612 | EI32: 3621 | EJ32: 3639 | EK32: 3780 | EL32: 3954 | EM32: 3618 | EN32: 3633 | EO32: 3804 | EP32: 3279 | EQ32: 3591 | ER32: 3636 | ES32: 4014 | ET32: 4284 | EU32: 4323 | EV32: 4365 | EW32: 4365 | EX32: 4365 | EY32: 4365 | EZ32: True | FA32: CA027 | FB32: 2454 | FC32: 2454 | FD32: 2454 | FE32: 2454 | FF32: 2829 | FG32: 3036 | FH32: 3135 | FI32: 3309 | FJ32: 3420 | FK32: 3105 | FL32: 3306 | FM32: 3426 | FN32: 3597 | FO32: 3618 | FP32: 3237 | FQ32: 3390 | FR32: 3591 | FS32: 3030 | FT32: 3204 | FU32: 3465 | FV32: 3606 | FW32: 3621 | FX32: 3624 | FY32: 3693 | FZ32: 3693 | GA32: 3693 | GB32: 3693 | GD32: 653 | GE32: XX499 | GG32: CA027 | GH32: MARIN/SONOMA, CA
B33: O2E 4 Drills | F33: 684.76 | H33: 698.84 | J33: 721.08 | L33: 758.64 | N33: 787.68 | P33: 809.28 | R33: 809.28 | T33: 809.28 | V33: 809.28 | X33: 809.28 | Z33: 809.28 | AB33: 809.28 | AD33: 809.28 | AF33: 809.28 | AH33: 809.28 | AJ33: 809.28 | AL33: 809.28 | AN33: 809.28 | AP33: 809.28 | CJ33: O–10 | CK33: 355 | CL33: 355 | CM33: 355 | CN33: 355 | CP33: 355 | CR33: 355 | CT33: 355 | CV33: 355 | CX33: 355 | CZ33: 355 | DB33: 355 | DD33: 355 | DF33: 355 | DH33: 355 | DJ33: 355 | DN33: 355 | DR33: 355 | DV33: 355 | DX33: CA028 | DY33: 1206 | DZ33: 1206 | EA33: 1206 | EB33: 1206 | EC33: 1359 | ED33: 1491 | EE33: 1581 | EF33: 1683 | EG33: 1782 | EH33: 1503 | EI33: 1623 | EJ33: 1746 | EK33: 1797 | EL33: 1860 | EM33: 1602 | EN33: 1728 | EO33: 1806 | EP33: 1380 | EQ33: 1488 | ER33: 1743 | ES33: 1881 | ET33: 1977 | EU33: 1992 | EV33: 2010 | EW33: 2010 | EX33: 2010 | EY33: 2010 | EZ33: True | FA33: CA028 | FB33: 918 | FC33: 918 | FD33: 918 | FE33: 918 | FF33: 1020 | FG33: 1113 | FH33: 1209 | FI33: 1389 | FJ33: 1425 | FK33: 1161 | FL33: 1386 | FM33: 1428 | FN33: 1509 | FO33: 1608 | FP33: 1362 | FQ33: 1413 | FR33: 1482 | FS33: 1050 | FT33: 1308 | FU33: 1440 | FV33: 1584 | FW33: 1641 | FX33: 1731 | FY33: 1764 | FZ33: 1764 | GA33: 1764 | GB33: 1764 | GD33: 656 | GE33: XX499 | GG33: CA028 | GH33: BARSTOW/FORT IRWIN, CA
B34: O1E | F34: 4136.4 | H34: 4416.9 | J34: 4580.1 | L34: 4747.2 | N34: 4911 | P34: 5135.7 | R34: 5135.7 | T34: 5135.7 | V34: 5135.7 | X34: 5135.7 | Z34: 5135.7 | AB34: 5135.7 | AD34: 5135.7 | AF34: 5135.7 | AH34: 5135.7 | AJ34: 5135.7 | AL34: 5135.7 | AN34: 5135.7 | AP34: 5135.7 | CJ34: O–9 | CK34: 355 | CL34: 355 | CM34: 355 | CN34: 355 | CP34: 355 | CR34: 355 | CT34: 355 | CV34: 355 | CX34: 355 | CZ34: 355 | DB34: 355 | DD34: 355 | DF34: 355 | DH34: 355 | DJ34: 355 | DN34: 355 | DR34: 355 | DV34: 355 | DX34: CA031 | DY34: 2130 | DZ34: 2130 | EA34: 2130 | EB34: 2130 | EC34: 2370 | ED34: 2556 | EE34: 2571 | EF34: 2580 | EG34: 2592 | EH34: 2568 | EI34: 2577 | EJ34: 2589 | EK34: 2595 | EL34: 2631 | EM34: 2574 | EN34: 2583 | EO34: 2598 | EP34: 2397 | EQ34: 2553 | ER34: 2586 | ES34: 2640 | ET34: 2691 | EU34: 2715 | EV34: 2739 | EW34: 2739 | EX34: 2739 | EY34: 2739 | EZ34: True | FA34: CA031 | FB34: 1683 | FC34: 1683 | FD34: 1683 | FE34: 1683 | FF34: 1809 | FG34: 1914 | FH34: 2139 | FI34: 2412 | FJ34: 2463 | FK34: 2049 | FL34: 2409 | FM34: 2466 | FN34: 2553 | FO34: 2565 | FP34: 2373 | FQ34: 2448 | FR34: 2547 | FS34: 1887 | FT34: 2292 | FU34: 2487 | FV34: 2556 | FW34: 2568 | FX34: 2571 | FY34: 2598 | FZ34: 2598 | GA34: 2598 | GB34: 2598 | GD34: 659 | GE34: XX499 | GG34: CA031 | GH34: SAN BERNARDINO, CA
B35: O1E 1 Drill | F35: 137.88 | H35: 147.23 | J35: 152.67 | L35: 158.24 | N35: 163.7 | P35: 171.19 | R35: 171.19 | T35: 171.19 | V35: 171.19 | X35: 171.19 | Z35: 171.19 | AB35: 171.19 | AD35: 171.19 | AF35: 171.19 | AH35: 171.19 | AJ35: 171.19 | AL35: 171.19 | AN35: 171.19 | AP35: 171.19 | CJ35: O–8 | CK35: 355 | CL35: 355 | CM35: 355 | CN35: 355 | CP35: 355 | CR35: 355 | CT35: 355 | CV35: 355 | CX35: 355 | CZ35: 355 | DB35: 355 | DD35: 355 | DF35: 355 | DH35: 355 | DJ35: 355 | DN35: 355 | DR35: 355 | DV35: 355 | DX35: CA032 | DY35: 975 | DZ35: 975 | EA35: 975 | EB35: 975 | EC35: 1038 | ED35: 1224 | EE35: 1290 | EF35: 1368 | EG35: 1476 | EH35: 1236 | EI35: 1323 | EJ35: 1416 | EK35: 1500 | EL35: 1605 | EM35: 1305 | EN35: 1401 | EO35: 1515 | EP35: 1065 | EQ35: 1221 | ER35: 1410 | ES35: 1641 | ET35: 1803 | EU35: 1815 | EV35: 1833 | EW35: 1833 | EX35: 1833 | EY35: 1833 | EZ35: True | FA35: CA032 | FB35: 816 | FC35: 816 | FD35: 816 | FE35: 816 | FF35: 870 | FG35: 915 | FH35: 975 | FI35: 1080 | FJ35: 1131 | FK35: 963 | FL35: 1077 | FM35: 1134 | FN35: 1236 | FO35: 1311 | FP35: 1041 | FQ35: 1116 | FR35: 1215 | FS35: 909 | FT35: 1020 | FU35: 1152 | FV35: 1290 | FW35: 1353 | FX35: 1401 | FY35: 1425 | FZ35: 1425 | GA35: 1425 | GB35: 1425 | GD35: 660 | GE35: XX499 | GG35: CA032 | GH35: TWENTY NINE PALMS MCB, CA
B36: O1E 4 Drills | F36: 551.52 | H36: 588.92 | J36: 610.68 | L36: 632.96 | N36: 654.8 | P36: 684.76 | R36: 684.76 | T36: 684.76 | V36: 684.76 | X36: 684.76 | Z36: 684.76 | AB36: 684.76 | AD36: 684.76 | AF36: 684.76 | AH36: 684.76 | AJ36: 684.76 | AL36: 684.76 | AN36: 684.76 | AP36: 684.76 | CJ36: O–7 | CK36: 355 | CL36: 355 | CM36: 355 | CN36: 355 | CP36: 355 | CR36: 355 | CT36: 355 | CV36: 355 | CX36: 355 | CZ36: 355 | DB36: 355 | DD36: 355 | DF36: 355 | DH36: 355 | DJ36: 355 | DN36: 355 | DR36: 355 | DV36: 355 | DX36: CA033 | DY36: 1998 | DZ36: 1998 | EA36: 1998 | EB36: 1998 | EC36: 2115 | ED36: 2145 | EE36: 2184 | EF36: 2232 | EG36: 2322 | EH36: 2157 | EI36: 2205 | EJ36: 2262 | EK36: 2349 | EL36: 2457 | EM36: 2193 | EN36: 2253 | EO36: 2364 | EP36: 2124 | EQ36: 2142 | ER36: 2259 | ES36: 2493 | ET36: 2658 | EU36: 2682 | EV36: 2706 | EW36: 2706 | EX36: 2706 | EY36: 2706 | EZ36: True | FA36: CA033 | FB36: 1623 | FC36: 1623 | FD36: 1623 | FE36: 1623 | FF36: 1785 | FG36: 1887 | FH36: 2001 | FI36: 2127 | FJ36: 2133 | FK36: 1965 | FL36: 2124 | FM36: 2136 | FN36: 2151 | FO36: 2196 | FP36: 2118 | FQ36: 2130 | FR36: 2142 | FS36: 1878 | FT36: 2079 | FU36: 2139 | FV36: 2181 | FW36: 2205 | FX36: 2247 | FY36: 2286 | FZ36: 2286 | GA36: 2286 | GB36: 2286 | GD36: 662 | GE36: XX499 | GG36: CA033 | GH36: BEALE AFB, CA
B37: W5 | V37: 8054.7 | X37: 8463 | Z37: 8767.5 | AB37: 9104.1 | AD37: 9104.1 | AF37: 9560.1 | AH37: 9560.1 | AJ37: 10037.4 | AL37: 10037.4 | AN37: 10540.2 | AP37: 10540.2 | CJ37: O–6 | CK37: 595 | CL37: 595 | CM37: 595 | CN37: 595 | CP37: 595 | CR37: 595 | CT37: 595 | CV37: 595 | CX37: 595 | CZ37: 595 | DB37: 835 | DD37: 835 | DF37: 835 | DH37: 835 | DJ37: 835 | DN37: 835 | DR37: 835 | DV37: 835 | DX37: CA034 | DY37: 2115 | DZ37: 2115 | EA37: 2115 | EB37: 2115 | EC37: 2289 | ED37: 2394 | EE37: 2409 | EF37: 2421 | EG37: 2481 | EH37: 2406 | EI37: 2415 | EJ37: 2433 | EK37: 2502 | EL37: 2589 | EM37: 2412 | EN37: 2427 | EO37: 2514 | EP37: 2307 | EQ37: 2391 | ER37: 2430 | ES37: 2619 | ET37: 2754 | EU37: 2778 | EV37: 2802 | EW37: 2802 | EX37: 2802 | EY37: 2802 | EZ37: True | FA37: CA034 | FB37: 1662 | FC37: 1662 | FD37: 1662 | FE37: 1662 | FF37: 1839 | FG37: 1956 | FH37: 2121 | FI37: 2316 | FJ37: 2340 | FK37: 2061 | FL37: 2313 | FM37: 2343 | FN37: 2391 | FO37: 2412 | FP37: 2292 | FQ37: 2331 | FR37: 2385 | FS37: 1941 | FT37: 2232 | FU37: 2352 | FV37: 2400 | FW37: 2415 | FX37: 2418 | FY37: 2460 | FZ37: 2460 | GA37: 2460 | GB37: 2460 | GD37: 664 | GE37: XX499 | GG37: CA034 | GH37: SACRAMENTO, CA
B38: W5 1 Drill | V38: 268.49 | X38: 282.1 | Z38: 292.25 | AB38: 303.47 | AD38: 303.47 | AF38: 318.67 | AH38: 318.67 | AJ38: 334.58 | AL38: 334.58 | AN38: 351.34 | AP38: 351.34 | CJ38: O–5 | CK38: 595 | CL38: 595 | CM38: 595 | CN38: 595 | CP38: 595 | CR38: 595 | CT38: 595 | CV38: 595 | CX38: 790 | CZ38: 835 | DB38: 835 | DD38: 835 | DF38: 835 | DH38: 835 | DJ38: 835 | DN38: 835 | DR38: 835 | DV38: 835 | DX38: CA035 | DY38: 1842 | DZ38: 1842 | EA38: 1842 | EB38: 1842 | EC38: 1917 | ED38: 1944 | EE38: 1974 | EF38: 2013 | EG38: 2136 | EH38: 1956 | EI38: 1992 | EJ38: 2040 | EK38: 2175 | EL38: 2340 | EM38: 1983 | EN38: 2031 | EO38: 2199 | EP38: 1926 | EQ38: 1941 | ER38: 2037 | ES38: 2400 | ET38: 2661 | EU38: 2685 | EV38: 2709 | EW38: 2709 | EX38: 2709 | EY38: 2709 | EZ38: True | FA38: CA035 | FB38: 1383 | FC38: 1383 | FD38: 1383 | FE38: 1383 | FF38: 1617 | FG38: 1764 | FH38: 1839 | FI38: 1929 | FJ38: 1935 | FK38: 1824 | FL38: 1926 | FM38: 1938 | FN38: 1947 | FO38: 1986 | FP38: 1920 | FQ38: 1932 | FR38: 1944 | FS38: 1761 | FT38: 1896 | FU38: 1941 | FV38: 1971 | FW38: 1995 | FX38: 2022 | FY38: 2061 | FZ38: 2061 | GA38: 2061 | GB38: 2061 | GD38: 667 | GE38: XX499 | GG38: CA035 | GH38: STOCKTON, CA
B39: W5 4 Drills | V39: 1073.96 | X39: 1128.4 | Z39: 1169 | AB39: 1213.88 | AD39: 1213.88 | AF39: 1274.68 | AH39: 1274.68 | AJ39: 1338.32 | AL39: 1338.32 | AN39: 1405.36 | AP39: 1405.36 | CJ39: O–4 | CK39: 365 | CL39: 365 | CM39: 365 | CN39: 525 | CP39: 595 | CR39: 705 | CT39: 705 | CV39: 705 | CX39: 790 | CZ39: 790 | DB39: 790 | DD39: 790 | DF39: 790 | DH39: 790 | DJ39: 790 | DN39: 790 | DR39: 790 | DV39: 790 | DX39: CA036 | DY39: 2493 | DZ39: 2493 | EA39: 2493 | EB39: 2493 | EC39: 2736 | ED39: 2751 | EE39: 2766 | EF39: 2775 | EG39: 2787 | EH39: 2763 | EI39: 2772 | EJ39: 2784 | EK39: 2790 | EL39: 2832 | EM39: 2769 | EN39: 2778 | EO39: 2793 | EP39: 2745 | EQ39: 2748 | ER39: 2781 | ES39: 2844 | ET39: 2904 | EU39: 2928 | EV39: 2955 | EW39: 2955 | EX39: 2955 | EY39: 2955 | EZ39: True | FA39: CA036 | FB39: 2034 | FC39: 2034 | FD39: 2034 | FE39: 2034 | FF39: 2166 | FG39: 2271 | FH39: 2502 | FI39: 2745 | FJ39: 2751 | FK39: 2409 | FL39: 2742 | FM39: 2754 | FN39: 2763 | FO39: 2769 | FP39: 2739 | FQ39: 2748 | FR39: 2760 | FS39: 2244 | FT39: 2658 | FU39: 2757 | FV39: 2766 | FW39: 2772 | FX39: 2775 | FY39: 2793 | FZ39: 2793 | GA39: 2793 | GB39: 2793 | GD39: 669 | GE39: XX499 | GG39: CA036 | GH39: VALLEJO/TRAVIS AFB, CA
B40: W4 | C40: 4530 | D40: 4872.6 | E40: 5012.4 | F40: 5150.1 | H40: 5387.1 | J40: 5621.7 | L40: 5859.3 | N40: 6216 | P40: 6529.2 | R40: 6827.1 | T40: 7071.3 | V40: 7309.2 | X40: 7658.4 | Z40: 7945.2 | AB40: 8272.8 | AD40: 8272.8 | AF40: 8437.8 | AH40: 8437.8 | AJ40: 8437.8 | AL40: 8437.8 | AN40: 8437.8 | AP40: 8437.8 | CJ40: O–3 | CK40: 355 | CL40: 355 | CM40: 355 | CN40: 510 | CP40: 595 | CR40: 705 | CT40: 705 | CV40: 705 | CX40: 705 | CZ40: 705 | DB40: 705 | DD40: 705 | DF40: 705 | DH40: 705 | DJ40: 705 | DN40: 705 | DR40: 705 | DV40: 705 | DX40: CA037 | DY40: 2772 | DZ40: 2772 | EA40: 2772 | EB40: 2772 | EC40: 3114 | ED40: 3135 | EE40: 3186 | EF40: 3252 | EG40: 3357 | EH40: 3147 | EI40: 3216 | EJ40: 3294 | EK40: 3381 | EL40: 3492 | EM40: 3201 | EN40: 3282 | EO40: 3396 | EP40: 3123 | EQ40: 3132 | ER40: 3291 | ES40: 3528 | ET40: 3696 | EU40: 3729 | EV40: 3765 | EW40: 3765 | EX40: 3765 | EY40: 3765 | EZ40: True | FA40: CA037 | FB40: 2079 | FC40: 2079 | FD40: 2079 | FE40: 2079 | FF40: 2337 | FG40: 2469 | FH40: 2787 | FI40: 3123 | FJ40: 3129 | FK40: 2655 | FL40: 3120 | FM40: 3132 | FN40: 3141 | FO40: 3204 | FP40: 3117 | FQ40: 3126 | FR40: 3138 | FS40: 2430 | FT40: 3000 | FU40: 3135 | FV40: 3186 | FW40: 3222 | FX40: 3279 | FY40: 3342 | FZ40: 3342 | GA40: 3342 | GB40: 3342 | GD40: 670 | GE40: XX499 | GG40: CA037 | GH40: LOS ANGELES, CA
B41: W4 1 Drill | C41: 151 | D41: 162.42 | E41: 167.08 | F41: 171.67 | H41: 179.57 | J41: 187.39 | L41: 195.31 | N41: 207.2 | P41: 217.64 | R41: 227.57 | T41: 235.71 | V41: 243.64 | X41: 255.28 | Z41: 264.84 | AB41: 275.76 | AD41: 275.76 | AF41: 281.26 | AH41: 281.26 | AJ41: 281.26 | AL41: 281.26 | AN41: 281.26 | AP41: 281.26 | CJ41: O–3E | CK41: 355 | CL41: 355 | CM41: 355 | CN41: 510 | CP41: 595 | CR41: 705 | CT41: 705 | CV41: 705 | CX41: 705 | CZ41: 705 | DB41: 705 | DD41: 705 | DF41: 705 | DH41: 705 | DJ41: 705 | DN41: 705 | DR41: 705 | DV41: 705 | DX41: CA038 | DY41: 2694 | DZ41: 2694 | EA41: 2694 | EB41: 2694 | EC41: 2850 | ED41: 3114 | EE41: 3165 | EF41: 3222 | EG41: 3348 | EH41: 3126 | EI41: 3189 | EJ41: 3261 | EK41: 3381 | EL41: 3528 | EM41: 3177 | EN41: 3249 | EO41: 3402 | EP41: 2886 | EQ41: 3111 | ER41: 3258 | ES41: 3582 | ET41: 3813 | EU41: 3846 | EV41: 3882 | EW41: 3882 | EX41: 3882 | EY41: 3882 | EZ41: True | FA41: CA038 | FB41: 2100 | FC41: 2100 | FD41: 2100 | FE41: 2100 | FF41: 2382 | FG41: 2547 | FH41: 2697 | FI41: 2907 | FJ41: 2985 | FK41: 2646 | FL41: 2904 | FM41: 2988 | FN41: 3123 | FO41: 3180 | FP41: 2853 | FQ41: 2961 | FR41: 3105 | FS41: 2532 | FT41: 2799 | FU41: 3015 | FV41: 3165 | FW41: 3195 | FX41: 3246 | FY41: 3306 | FZ41: 3306 | GA41: 3306 | GB41: 3306 | GD41: 674 | GE41: XX499 | GG41: CA038 | GH41: SAN DIEGO, CA
B42: W4 4 Drills | C42: 604 | D42: 649.68 | E42: 668.32 | F42: 686.68 | H42: 718.28 | J42: 749.56 | L42: 781.24 | N42: 828.8 | P42: 870.56 | R42: 910.28 | T42: 942.84 | V42: 974.56 | X42: 1021.12 | Z42: 1059.36 | AB42: 1103.04 | AD42: 1103.04 | AF42: 1125.04 | AH42: 1125.04 | AJ42: 1125.04 | AL42: 1125.04 | AN42: 1125.04 | AP42: 1125.04 | CJ42: O–2 | CK42: 305 | CL42: 305 | CM42: 305 | CN42: 305 | CP42: 305 | CR42: 305 | CT42: 425 | CV42: 425 | CX42: 425 | CZ42: 425 | DB42: 425 | DD42: 425 | DF42: 425 | DH42: 425 | DJ42: 425 | DN42: 425 | DR42: 425 | DV42: 425 | DX42: CA039 | DY42: 2385 | DZ42: 2385 | EA42: 2385 | EB42: 2385 | EC42: 2508 | ED42: 3024 | EE42: 3243 | EF42: 3480 | EG42: 3735 | EH42: 3045 | EI42: 3342 | EJ42: 3633 | EK42: 3774 | EL42: 3948 | EM42: 3291 | EN42: 3588 | EO42: 3798 | EP42: 2571 | EQ42: 3018 | ER42: 3621 | ES42: 4008 | ET42: 4281 | EU42: 4317 | EV42: 4359 | EW42: 4359 | EX42: 4359 | EY42: 4359 | EZ42: True | FA42: CA039 | FB42: 1788 | FC42: 1788 | FD42: 1788 | FE42: 1788 | FF42: 2082 | FG42: 2271 | FH42: 2433 | FI42: 2613 | FJ42: 2802 | FK42: 2352 | FL42: 2610 | FM42: 2805 | FN42: 3081 | FO42: 3303 | FP42: 2511 | FQ42: 2733 | FR42: 3021 | FS42: 2262 | FT42: 2469 | FU42: 2838 | FV42: 3261 | FW42: 3399 | FX42: 3618 | FY42: 3687 | FZ42: 3687 | GA42: 3687 | GB42: 3687 | GD42: 676 | GE42: XX499 | GG42: CA039 | GH42: MONTEREY, CA
B43: W3 | C43: 4137 | D43: 4309.2 | E43: 4486.2 | F43: 4544.1 | H43: 4728.9 | J43: 5093.7 | L43: 5473.2 | N43: 5652 | P43: 5859 | R43: 6071.7 | T43: 6455.1 | V43: 6713.7 | X43: 6868.2 | Z43: 7032.6 | AB43: 7256.7 | AD43: 7256.7 | AF43: 7256.7 | AH43: 7256.7 | AJ43: 7256.7 | AL43: 7256.7 | AN43: 7256.7 | AP43: 7256.7 | CJ43: O–2E | CK43: 305 | CL43: 305 | CM43: 305 | CN43: 305 | CP43: 305 | CR43: 305 | CT43: 425 | CV43: 425 | CX43: 425 | CZ43: 425 | DB43: 425 | DD43: 425 | DF43: 425 | DH43: 425 | DJ43: 425 | DN43: 425 | DR43: 425 | DV43: 425 | DX43: CA041 | DY43: 2097 | DZ43: 2097 | EA43: 2097 | EB43: 2097 | EC43: 2268 | ED43: 2295 | EE43: 2328 | EF43: 2370 | EG43: 2445 | EH43: 2307 | EI43: 2346 | EJ43: 2397 | EK43: 2466 | EL43: 2553 | EM43: 2337 | EN43: 2388 | EO43: 2478 | EP43: 2277 | EQ43: 2292 | ER43: 2394 | ES43: 2583 | ET43: 2718 | EU43: 2739 | EV43: 2766 | EW43: 2766 | EX43: 2766 | EY43: 2766 | EZ43: True | FA43: CA041 | FB43: 1677 | FC43: 1677 | FD43: 1677 | FE43: 1677 | FF43: 1833 | FG43: 1941 | FH43: 2103 | FI43: 2280 | FJ43: 2286 | FK43: 2046 | FL43: 2277 | FM43: 2289 | FN43: 2298 | FO43: 2340 | FP43: 2271 | FQ43: 2283 | FR43: 2295 | FS43: 1923 | FT43: 2214 | FU43: 2292 | FV43: 2325 | FW43: 2346 | FX43: 2382 | FY43: 2424 | FZ43: 2424 | GA43: 2424 | GB43: 2424 | GD43: 677 | GE43: XX499 | GG43: CA041 | GH43: RIVERSIDE, CA
B44: W3 1 Drill | C44: 137.9 | D44: 143.64 | E44: 149.54 | F44: 151.47 | H44: 157.63 | J44: 169.79 | L44: 182.44 | N44: 188.4 | P44: 195.3 | R44: 202.39 | T44: 215.17 | V44: 223.79 | X44: 228.94 | Z44: 234.42 | AB44: 241.89 | AD44: 241.89 | AF44: 241.89 | AH44: 241.89 | AJ44: 241.89 | AL44: 241.89 | AN44: 241.89 | AP44: 241.89 | CJ44: O–1 | CK44: 230 | CL44: 230 | CM44: 230 | CN44: 230 | CP44: 230 | CR44: 230 | CT44: 425 | CV44: 425 | CX44: 425 | CZ44: 425 | DB44: 425 | DD44: 425 | DF44: 425 | DH44: 425 | DJ44: 425 | DN44: 425 | DR44: 425 | DV44: 425 | DX44: CA042 | DY44: 1305 | DZ44: 1305 | EA44: 1305 | EB44: 1305 | EC44: 1446 | ED44: 1881 | EE44: 1956 | EF44: 2040 | EG44: 2148 | EH44: 1899 | EI44: 1992 | EJ44: 2091 | EK44: 2172 | EL44: 2274 | EM44: 1974 | EN44: 2076 | EO44: 2187 | EP44: 1500 | EQ44: 1878 | ER44: 2088 | ES44: 2310 | ET44: 2466 | EU44: 2484 | EV44: 2508 | EW44: 2508 | EX44: 2508 | EY44: 2508 | EZ44: True | FA44: CA042 | FB44: 1101 | FC44: 1101 | FD44: 1101 | FE44: 1101 | FF44: 1131 | FG44: 1410 | FH44: 1467 | FI44: 1536 | FJ44: 1671 | FK44: 1425 | FL44: 1533 | FM44: 1680 | FN44: 1902 | FO44: 1980 | FP44: 1482 | FQ44: 1635 | FR44: 1878 | FS44: 1158 | FT44: 1470 | FU44: 1725 | FV44: 1959 | FW44: 2004 | FX44: 2076 | FY44: 2115 | FZ44: 2115 | GA44: 2115 | GB44: 2115 | GD44: 678 | GE44: XX499 | GG44: CA042 | GH44: HUMBOLDT COUNTY, CA
B45: W3 4 Drills | C45: 551.6 | D45: 574.56 | E45: 598.16 | F45: 605.88 | H45: 630.52 | J45: 679.16 | L45: 729.76 | N45: 753.6 | P45: 781.2 | R45: 809.56 | T45: 860.68 | V45: 895.16 | X45: 915.76 | Z45: 937.68 | AB45: 967.56 | AD45: 967.56 | AF45: 967.56 | AH45: 967.56 | AJ45: 967.56 | AL45: 967.56 | AN45: 967.56 | AP45: 967.56 | CJ45: O–1E | CK45: 230 | CL45: 230 | CM45: 230 | CN45: 230 | CP45: 230 | CR45: 230 | CT45: 425 | CV45: 425 | CX45: 425 | CZ45: 425 | DB45: 425 | DD45: 425 | DF45: 425 | DH45: 425 | DJ45: 425 | DN45: 425 | DR45: 425 | DV45: 425 | DX45: CA044 | DY45: 3813 | DZ45: 3813 | EA45: 3813 | EB45: 3813 | EC45: 4122 | ED45: 4710 | EE45: 4731 | EF45: 4740 | EG45: 4935 | EH45: 4728 | EI45: 4737 | EJ45: 4749 | EK45: 5016 | EL45: 5364 | EM45: 4734 | EN45: 4743 | EO45: 5067 | EP45: 4194 | EQ45: 4704 | ER45: 4746 | ES45: 5493 | ET45: 6048 | EU45: 6105 | EV45: 6162 | EW45: 6162 | EX45: 6162 | EY45: 6162 | EZ45: True | FA45: CA044 | FB45: 3009 | FC45: 3009 | FD45: 3009 | FE45: 3009 | FF45: 3330 | FG45: 3537 | FH45: 3825 | FI45: 4242 | FJ45: 4422 | FK45: 3708 | FL45: 4239 | FM45: 4437 | FN45: 4713 | FO45: 4725 | FP45: 4125 | FQ45: 4380 | FR45: 4707 | FS45: 3501 | FT45: 4020 | FU45: 4497 | FV45: 4716 | FW45: 4728 | FX45: 4731 | FY45: 4803 | FZ45: 4803 | GA45: 4803 | GB45: 4803 | GD45: 680 | GE45: XX499 | GG45: CA044 | GH45: SANTA CLARA COUNTY, CA
B46: W2 | C46: 3660.6 | D46: 4006.8 | E46: 4113.3 | F46: 4186.5 | H46: 4423.8 | J46: 4792.8 | L46: 4975.8 | N46: 5155.5 | P46: 5375.7 | R46: 5547.9 | T46: 5703.6 | V46: 5890.2 | X46: 6012.9 | Z46: 6109.8 | AB46: 6109.8 | AD46: 6109.8 | AF46: 6109.8 | AH46: 6109.8 | AJ46: 6109.8 | AL46: 6109.8 | AN46: 6109.8 | AP46: 6109.8 | CJ46: W5 | CK46: 285 | CL46: 375 | CM46: 375 | CN46: 425 | CP46: 425 | CR46: 425 | CT46: 425 | CV46: 425 | CX46: 425 | CZ46: 425 | DB46: 425 | DD46: 425 | DF46: 425 | DH46: 425 | DJ46: 425 | DN46: 425 | DR46: 425 | DV46: 425 | DX46: CA392 | DY46: 1962 | DZ46: 1962 | EA46: 1962 | EB46: 1962 | EC46: 1998 | ED46: 2631 | EE46: 2736 | EF46: 2850 | EG46: 3006 | EH46: 2649 | EI46: 2784 | EJ46: 2922 | EK46: 3039 | EL46: 3180 | EM46: 2760 | EN46: 2901 | EO46: 3057 | EP46: 2076 | EQ46: 2622 | ER46: 2916 | ES46: 3228 | ET46: 3450 | EU46: 3480 | EV46: 3513 | EW46: 3513 | EX46: 3513 | EY46: 3513 | EZ46: True | FA46: CA392 | FB46: 1473 | FC46: 1473 | FD46: 1473 | FE46: 1473 | FF46: 1758 | FG46: 1974 | FH46: 2052 | FI46: 2139 | FJ46: 2322 | FK46: 1986 | FL46: 2124 | FM46: 2337 | FN46: 2658 | FO46: 2766 | FP46: 2070 | FQ46: 2274 | FR46: 2628 | FS46: 1923 | FT46: 2055 | FU46: 2403 | FV46: 2742 | FW46: 2805 | FX46: 2907 | FY46: 2961 | FZ46: 2961 | GA46: 2961 | GB46: 2961 | GD46: 681 | GE46: XX499 | GG46: CA392 | GH46: SAN LUIS OBISPO, CA
B47: W2 1 Drill | C47: 122.02 | D47: 133.56 | E47: 137.11 | F47: 139.55 | H47: 147.46 | J47: 159.76 | L47: 165.86 | N47: 171.85 | P47: 179.19 | R47: 184.93 | T47: 190.12 | V47: 196.34 | X47: 200.43 | Z47: 203.66 | AB47: 203.66 | AD47: 203.66 | AF47: 203.66 | AH47: 203.66 | AJ47: 203.66 | AL47: 203.66 | AN47: 203.66 | AP47: 203.66 | CJ47: W4 | CK47: 285 | CL47: 375 | CM47: 375 | CN47: 425 | CP47: 425 | CR47: 425 | CT47: 425 | CV47: 425 | CX47: 425 | CZ47: 425 | DB47: 425 | DD47: 425 | DF47: 425 | DH47: 425 | DJ47: 425 | DN47: 425 | DR47: 425 | DV47: 425 | DX47: CA393 | DY47: 1158 | DZ47: 1158 | EA47: 1158 | EB47: 1158 | EC47: 1218 | ED47: 1698 | EE47: 1818 | EF47: 1947 | EG47: 2085 | EH47: 1716 | EI47: 1872 | EJ47: 2031 | EK47: 2109 | EL47: 2208 | EM47: 1845 | EN47: 2007 | EO47: 2121 | EP47: 1278 | EQ47: 1695 | ER47: 2022 | ES47: 2241 | ET47: 2391 | EU47: 2412 | EV47: 2433 | EW47: 2433 | EX47: 2433 | EY47: 2433 | EZ47: True | FA47: CA393 | FB47: 906 | FC47: 906 | FD47: 906 | FE47: 906 | FF47: 1023 | FG47: 1275 | FH47: 1365 | FI47: 1461 | FJ47: 1563 | FK47: 1287 | FL47: 1404 | FM47: 1566 | FN47: 1731 | FO47: 1851 | FP47: 1383 | FQ47: 1506 | FR47: 1695 | FS47: 1095 | FT47: 1368 | FU47: 1569 | FV47: 1827 | FW47: 1899 | FX47: 2016 | FY47: 2052 | FZ47: 2052 | GA47: 2052 | GB47: 2052 | GD47: 682 | GE47: XX499 | GG47: CA393 | GH47: BRIDGEPORT, CA
B48: W2 4 Drills | C48: 488.08 | D48: 534.24 | E48: 548.44 | F48: 558.2 | H48: 589.84 | J48: 639.04 | L48: 663.44 | N48: 687.4 | P48: 716.76 | R48: 739.72 | T48: 760.48 | V48: 785.36 | X48: 801.72 | Z48: 814.64 | AB48: 814.64 | AD48: 814.64 | AF48: 814.64 | AH48: 814.64 | AJ48: 814.64 | AL48: 814.64 | AN48: 814.64 | AP48: 814.64 | CJ48: W3 | CK48: 285 | CL48: 375 | CM48: 375 | CN48: 425 | CP48: 425 | CR48: 425 | CT48: 425 | CV48: 425 | CX48: 425 | CZ48: 425 | DB48: 425 | DD48: 425 | DF48: 425 | DH48: 425 | DJ48: 425 | DN48: 425 | DR48: 425 | DV48: 425 | DX48: CA420 | DY48: 1251 | DZ48: 1251 | EA48: 1251 | EB48: 1251 | EC48: 1254 | ED48: 1278 | EE48: 1356 | EF48: 1455 | EG48: 1572 | EH48: 1284 | EI48: 1398 | EJ48: 1521 | EK48: 1596 | EL48: 1686 | EM48: 1377 | EN48: 1500 | EO48: 1605 | EP48: 1260 | EQ48: 1275 | ER48: 1515 | ES48: 1716 | ET48: 1860 | EU48: 1872 | EV48: 1890 | EW48: 1890 | EX48: 1890 | EY48: 1890 | EZ48: True | FA48: CA420 | FB48: 939 | FC48: 939 | FD48: 939 | FE48: 939 | FF48: 1131 | FG48: 1254 | FH48: 1269 | FI48: 1281 | FJ48: 1287 | FK48: 1266 | FL48: 1278 | FM48: 1290 | FN48: 1299 | FO48: 1383 | FP48: 1275 | FQ48: 1284 | FR48: 1296 | FS48: 1251 | FT48: 1272 | FU48: 1293 | FV48: 1359 | FW48: 1416 | FX48: 1506 | FY48: 1533 | FZ48: 1533 | GA48: 1533 | GB48: 1533 | GD48: 683 | GE48: XX499 | GG48: CA420 | GH48: EL CENTRO, CA
B49: W1 | C49: 3213 | D49: 3559.2 | E49: 3651.9 | F49: 3848.4 | H49: 4080.6 | J49: 4423.2 | L49: 4582.8 | N49: 4806.6 | P49: 5026.5 | R49: 5199.6 | T49: 5358.6 | V49: 5552.1 | X49: 5552.1 | Z49: 5552.1 | AB49: 5552.1 | AD49: 5552.1 | AF49: 5552.1 | AH49: 5552.1 | AJ49: 5552.1 | AL49: 5552.1 | AN49: 5552.1 | AP49: 5552.1 | CJ49: W2 | CK49: 285 | CL49: 375 | CM49: 375 | CN49: 425 | CP49: 425 | CR49: 425 | CT49: 425 | CV49: 425 | CX49: 425 | CZ49: 425 | DB49: 425 | DD49: 425 | DF49: 425 | DH49: 425 | DJ49: 425 | DN49: 425 | DR49: 425 | DV49: 425 | DX49: CA457 | DY49: 1908 | DZ49: 1908 | EA49: 1908 | EB49: 1908 | EC49: 1911 | ED49: 1941 | EE49: 2061 | EF49: 2199 | EG49: 2352 | EH49: 1953 | EI49: 2118 | EJ49: 2289 | EK49: 2376 | EL49: 2487 | EM49: 2091 | EN49: 2262 | EO49: 2391 | EP49: 1914 | EQ49: 1938 | ER49: 2280 | ES49: 2526 | ET49: 2694 | EU49: 2718 | EV49: 2742 | EW49: 2742 | EX49: 2742 | EY49: 2742 | EZ49: True | FA49: CA457 | FB49: 1467 | FC49: 1467 | FD49: 1467 | FE49: 1467 | FF49: 1752 | FG49: 1908 | FH49: 1923 | FI49: 1935 | FJ49: 1941 | FK49: 1920 | FL49: 1932 | FM49: 1944 | FN49: 1965 | FO49: 2097 | FP49: 1929 | FQ49: 1938 | FR49: 1950 | FS49: 1905 | FT49: 1926 | FU49: 1947 | FV49: 2070 | FW49: 2148 | FX49: 2274 | FY49: 2316 | FZ49: 2316 | GA49: 2316 | GB49: 2316 | GD49: 685 | GE49: XX499 | GG49: CA457 | GH49: EDWARDS AFB/PALMDALE, CA
B50: W1 1 Drill | C50: 107.1 | D50: 118.64 | E50: 121.73 | F50: 128.28 | H50: 136.02 | J50: 147.44 | L50: 152.76 | N50: 160.22 | P50: 167.55 | R50: 173.32 | T50: 178.62 | V50: 185.07 | X50: 185.07 | Z50: 185.07 | AB50: 185.07 | AD50: 185.07 | AF50: 185.07 | AH50: 185.07 | AJ50: 185.07 | AL50: 185.07 | AN50: 185.07 | AP50: 185.07 | CJ50: W1 | CK50: 285 | CL50: 375 | CM50: 375 | CN50: 425 | CP50: 425 | CR50: 425 | CT50: 425 | CV50: 425 | CX50: 425 | CZ50: 425 | DB50: 425 | DD50: 425 | DF50: 425 | DH50: 425 | DJ50: 425 | DN50: 425 | DR50: 425 | DV50: 425 | DX50: CO045 | DY50: 2028 | DZ50: 2028 | EA50: 2028 | EB50: 2028 | EC50: 2208 | ED50: 2463 | EE50: 2481 | EF50: 2490 | EG50: 2502 | EH50: 2478 | EI50: 2487 | EJ50: 2499 | EK50: 2508 | EL50: 2553 | EM50: 2484 | EN50: 2493 | EO50: 2514 | EP50: 2241 | EQ50: 2460 | ER50: 2496 | ES50: 2565 | ET50: 2628 | EU50: 2652 | EV50: 2676 | EW50: 2676 | EX50: 2676 | EY50: 2676 | EZ50: True | FA50: CO045 | FB50: 1617 | FC50: 1617 | FD50: 1617 | FE50: 1617 | FF50: 1761 | FG50: 1863 | FH50: 2034 | FI50: 2262 | FJ50: 2337 | FK50: 1971 | FL50: 2259 | FM50: 2343 | FN50: 2463 | FO50: 2472 | FP50: 2211 | FQ50: 2316 | FR50: 2457 | FS50: 1845 | FT50: 2148 | FU50: 2370 | FV50: 2466 | FW50: 2475 | FX50: 2478 | FY50: 2505 | FZ50: 2505 | GA50: 2505 | GB50: 2505 | GD50: 687 | GE50: XX499 | GG50: CO045 | GH50: DENVER, CO
B51: W1 4 Drills | C51: 428.4 | D51: 474.56 | E51: 486.92 | F51: 513.12 | H51: 544.08 | J51: 589.76 | L51: 611.04 | N51: 640.88 | P51: 670.2 | R51: 693.28 | T51: 714.48 | V51: 740.28 | X51: 740.28 | Z51: 740.28 | AB51: 740.28 | AD51: 740.28 | AF51: 740.28 | AH51: 740.28 | AJ51: 740.28 | AL51: 740.28 | AN51: 740.28 | AP51: 740.28 | CJ51: E9 | CK51: 425 | CL51: 425 | CM51: 425 | CN51: 425 | CP51: 425 | CR51: 425 | CT51: 425 | CV51: 425 | CX51: 425 | CZ51: 425 | DB51: 600 | DD51: 600 | DF51: 600 | DH51: 600 | DJ51: 600 | DN51: 600 | DR51: 600 | DV51: 600 | DX51: CO046 | DY51: 1776 | DZ51: 1776 | EA51: 1776 | EB51: 1776 | EC51: 1839 | ED51: 1860 | EE51: 1896 | EF51: 1947 | EG51: 2019 | EH51: 1872 | EI51: 1920 | EJ51: 1977 | EK51: 2037 | EL51: 2109 | EM51: 1908 | EN51: 1968 | EO51: 2046 | EP51: 1848 | EQ51: 1857 | ER51: 1974 | ES51: 2133 | ET51: 2241 | EU51: 2259 | EV51: 2280 | EW51: 2280 | EX51: 2280 | EY51: 2280 | EZ51: True | FA51: CO046 | FB51: 1377 | FC51: 1377 | FD51: 1377 | FE51: 1377 | FF51: 1590 | FG51: 1710 | FH51: 1773 | FI51: 1848 | FJ51: 1854 | FK51: 1761 | FL51: 1845 | FM51: 1857 | FN51: 1866 | FO51: 1911 | FP51: 1842 | FQ51: 1851 | FR51: 1863 | FS51: 1707 | FT51: 1821 | FU51: 1860 | FV51: 1896 | FW51: 1923 | FX51: 1962 | FY51: 1998 | FZ51: 1998 | GA51: 1998 | GB51: 1998 | GD51: 688 | GE51: XX499 | GG51: CO046 | GH51: COLORADO SPRINGS, CO
B52: E9 | L52: 5472.9 | N52: 5596.8 | P52: 5753.4 | R52: 5936.7 | T52: 6123 | V52: 6419.4 | X52: 6671.4 | Z52: 6935.1 | AB52: 7340.1 | AD52: 7340.1 | AF52: 7706.4 | AH52: 7706.4 | AJ52: 8092.2 | AL52: 8092.2 | AN52: 8497.5 | AP52: 8497.5 | CJ52: E8 | CK52: 415 | CL52: 415 | CM52: 415 | CN52: 415 | CP52: 415 | CR52: 415 | CT52: 415 | CV52: 415 | CX52: 415 | CZ52: 415 | DB52: 550 | DD52: 550 | DF52: 550 | DH52: 550 | DJ52: 550 | DN52: 550 | DR52: 550 | DV52: 550 | DX52: CO047 | DY52: 1662 | DZ52: 1662 | EA52: 1662 | EB52: 1662 | EC52: 1740 | ED52: 1992 | EE52: 2016 | EF52: 2046 | EG52: 2127 | EH52: 2007 | EI52: 2031 | EJ52: 2064 | EK52: 2151 | EL52: 2259 | EM52: 2022 | EN52: 2058 | EO52: 2166 | EP52: 1773 | EQ52: 1989 | ER52: 2061 | ES52: 2295 | ET52: 2460 | EU52: 2481 | EV52: 2502 | EW52: 2502 | EX52: 2502 | EY52: 2502 | EZ52: True | FA52: CO047 | FB52: 1452 | FC52: 1452 | FD52: 1452 | FE52: 1452 | FF52: 1530 | FG52: 1584 | FH52: 1659 | FI52: 1794 | FJ52: 1869 | FK52: 1644 | FL52: 1791 | FM52: 1872 | FN52: 1998 | FO52: 2028 | FP52: 1743 | FQ52: 1848 | FR52: 1986 | FS52: 1581 | FT52: 1716 | FU52: 1899 | FV52: 2013 | FW52: 2031 | FX52: 2049 | FY52: 2088 | FZ52: 2088 | GA52: 2088 | GB52: 2088 | GD52: 690 | GE52: XX499 | GG52: CO047 | GH52: FORT COLLINS, CO
B53: E9 1 Drill | L53: 182.43 | N53: 186.56 | P53: 191.78 | R53: 197.89 | T53: 204.1 | V53: 213.98 | X53: 222.38 | Z53: 231.17 | AB53: 244.67 | AD53: 244.67 | AF53: 256.88 | AH53: 256.88 | AJ53: 269.74 | AL53: 269.74 | AN53: 283.25 | AP53: 283.25 | CJ53: E7 | CK53: 405 | CL53: 405 | CM53: 405 | CN53: 405 | CP53: 405 | CR53: 405 | CT53: 405 | CV53: 405 | CX53: 405 | CZ53: 405 | DB53: 405 | DD53: 405 | DF53: 405 | DH53: 405 | DJ53: 405 | DN53: 405 | DR53: 405 | DV53: 405 | DX53: CO422 | DY53: 1854 | DZ53: 1854 | EA53: 1854 | EB53: 1854 | EC53: 2010 | ED53: 2394 | EE53: 2499 | EF53: 2613 | EG53: 2736 | EH53: 2409 | EI53: 2547 | EJ53: 2685 | EK53: 2757 | EL53: 2844 | EM53: 2523 | EN53: 2664 | EO53: 2766 | EP53: 2061 | EQ53: 2391 | ER53: 2679 | ES53: 2871 | ET53: 3006 | EU53: 3030 | EV53: 3060 | EW53: 3060 | EX53: 3060 | EY53: 3060 | EZ53: True | FA53: CO422 | FB53: 1482 | FC53: 1482 | FD53: 1482 | FE53: 1482 | FF53: 1617 | FG53: 1794 | FH53: 1875 | FI53: 2091 | FJ53: 2208 | FK53: 1806 | FL53: 2088 | FM53: 2217 | FN53: 2418 | FO53: 2529 | FP53: 2013 | FQ53: 2178 | FR53: 2388 | FS53: 1695 | FT53: 1962 | FU53: 2256 | FV53: 2505 | FW53: 2568 | FX53: 2670 | FY53: 2721 | FZ53: 2721 | GA53: 2721 | GB53: 2721 | GD53: 692 | GE53: XX499 | GG53: CO422 | GH53: BOULDER, CO
B54: E9 4 Drills | L54: 729.72 | N54: 746.24 | P54: 767.12 | R54: 791.56 | T54: 816.4 | V54: 855.92 | X54: 889.52 | Z54: 924.68 | AB54: 978.68 | AD54: 978.68 | AF54: 1027.52 | AH54: 1027.52 | AJ54: 1078.96 | AL54: 1078.96 | AN54: 1133 | AP54: 1133 | CJ54: E6 | CK54: 155 | CL54: 170 | CM54: 175 | CN54: 300 | CP54: 325 | CR54: 375 | CT54: 375 | CV54: 375 | CX54: 375 | CZ54: 375 | DB54: 375 | DD54: 375 | DF54: 375 | DH54: 375 | DJ54: 375 | DN54: 375 | DR54: 375 | DV54: 375 | DX54: CT049 | DY54: 1506 | DZ54: 1506 | EA54: 1506 | EB54: 1506 | EC54: 1608 | ED54: 2091 | EE54: 2112 | EF54: 2121 | EG54: 2184 | EH54: 2109 | EI54: 2118 | EJ54: 2130 | EK54: 2214 | EL54: 2340 | EM54: 2115 | EN54: 2124 | EO54: 2232 | EP54: 1668 | EQ54: 2088 | ER54: 2127 | ES54: 2385 | ET54: 2583 | EU54: 2604 | EV54: 2628 | EW54: 2628 | EX54: 2628 | EY54: 2628 | EZ54: True | FA54: CT049 | FB54: 1218 | FC54: 1218 | FD54: 1218 | FE54: 1218 | FF54: 1332 | FG54: 1569 | FH54: 1584 | FI54: 1707 | FJ54: 1857 | FK54: 1581 | FL54: 1704 | FM54: 1869 | FN54: 2094 | FO54: 2106 | FP54: 1611 | FQ54: 1818 | FR54: 2088 | FS54: 1401 | FT54: 1587 | FU54: 1917 | FV54: 2097 | FW54: 2109 | FX54: 2112 | FY54: 2133 | FZ54: 2133 | GA54: 2133 | GB54: 2133 | GD54: 693 | GE54: XX499 | GG54: CT049 | GH54: NEW LONDON, CT
B55: E8 | J55: 4480.2 | L55: 4678.2 | N55: 4800.9 | P55: 4947.6 | R55: 5107.2 | T55: 5394.6 | V55: 5540.1 | X55: 5787.9 | Z55: 5925.6 | AB55: 6264 | AD55: 6264 | AF55: 6389.7 | AH55: 6389.7 | AJ55: 6389.7 | AL55: 6389.7 | AN55: 6389.7 | AP55: 6389.7 | CJ55: E5 | CK55: 140 | CL55: 155 | CM55: 155 | CN55: 250 | CP55: 275 | CR55: 275 | CT55: 275 | CV55: 275 | CX55: 275 | CZ55: 275 | DB55: 275 | DD55: 275 | DF55: 275 | DH55: 275 | DJ55: 275 | DN55: 275 | DR55: 275 | DV55: 275 | DX55: CT050 | DY55: 1953 | DZ55: 1953 | EA55: 1953 | EB55: 1953 | EC55: 1956 | ED55: 2100 | EE55: 2196 | EF55: 2307 | EG55: 2478 | EH55: 2112 | EI55: 2241 | EJ55: 2376 | EK55: 2517 | EL55: 2691 | EM55: 2217 | EN55: 2355 | EO55: 2541 | EP55: 1974 | EQ55: 2097 | ER55: 2370 | ES55: 2751 | ET55: 3021 | EU55: 3048 | EV55: 3075 | EW55: 3075 | EX55: 3075 | EY55: 3075 | EZ55: True | FA55: CT050 | FB55: 1467 | FC55: 1467 | FD55: 1467 | FE55: 1467 | FF55: 1782 | FG55: 1956 | FH55: 1971 | FI55: 1986 | FJ55: 2025 | FK55: 1968 | FL55: 1983 | FM55: 2028 | FN55: 2118 | FO55: 2223 | FP55: 1977 | FQ55: 2013 | FR55: 2091 | FS55: 1953 | FT55: 1974 | FU55: 2043 | FV55: 2202 | FW55: 2265 | FX55: 2361 | FY55: 2406 | FZ55: 2406 | GA55: 2406 | GB55: 2406 | GD55: 694 | GE55: XX499 | GG55: CT050 | GH55: HARTFORD, CT
B56: E8 1 Drill | J56: 149.34 | L56: 155.94 | N56: 160.03 | P56: 164.92 | R56: 170.24 | T56: 179.82 | V56: 184.67 | X56: 192.93 | Z56: 197.52 | AB56: 208.8 | AD56: 208.8 | AF56: 212.99 | AH56: 212.99 | AJ56: 212.99 | AL56: 212.99 | AN56: 212.99 | AP56: 212.99 | CJ56: E4 | CK56: 80 | CL56: 95 | CM56: 100 | CN56: 245 | CP56: 245 | CR56: 245 | CT56: 245 | CV56: 245 | CX56: 245 | CZ56: 245 | DB56: 245 | DD56: 245 | DF56: 245 | DH56: 245 | DJ56: 245 | DN56: 245 | DR56: 245 | DV56: 245 | DX56: CT051 | DY56: 2898 | DZ56: 2898 | EA56: 2898 | EB56: 2898 | EC56: 2901 | ED56: 3087 | EE56: 3105 | EF56: 3114 | EG56: 3159 | EH56: 3102 | EI56: 3111 | EJ56: 3123 | EK56: 3183 | EL56: 3291 | EM56: 3108 | EN56: 3117 | EO56: 3198 | EP56: 2925 | EQ56: 3084 | ER56: 3120 | ES56: 3327 | ET56: 3489 | EU56: 3519 | EV56: 3555 | EW56: 3555 | EX56: 3555 | EY56: 3555 | EZ56: True | FA56: CT051 | FB56: 2283 | FC56: 2283 | FD56: 2283 | FE56: 2283 | FF56: 2685 | FG56: 2901 | FH56: 2916 | FI56: 2940 | FJ56: 2994 | FK56: 2913 | FL56: 2937 | FM56: 2997 | FN56: 3087 | FO56: 3096 | FP56: 2922 | FQ56: 2976 | FR56: 3081 | FS56: 2898 | FT56: 2919 | FU56: 3015 | FV56: 3090 | FW56: 3099 | FX56: 3102 | FY56: 3141 | FZ56: 3141 | GA56: 3141 | GB56: 3141 | GD56: 698 | GE56: XX499 | GG56: CT051 | GH56: NEW HAVEN/FAIRFIELD, CT
B57: E8 4 Drills | J57: 597.36 | L57: 623.76 | N57: 640.12 | P57: 659.68 | R57: 680.96 | T57: 719.28 | V57: 738.68 | X57: 771.72 | Z57: 790.08 | AB57: 835.2 | AD57: 835.2 | AF57: 851.96 | AH57: 851.96 | AJ57: 851.96 | AL57: 851.96 | AN57: 851.96 | AP57: 851.96 | CJ57: E3 | CK57: 80 | CL57: 90 | CM57: 95 | CN57: 95 | CP57: 90 | CR57: 90 | CT57: 90 | CV57: 90 | CX57: 90 | CZ57: 90 | DB57: 90 | DD57: 90 | DF57: 90 | DH57: 90 | DJ57: 90 | DN57: 90 | DR57: 90 | DV57: 90 | DX57: DC053 | DY57: 2328 | DZ57: 2328 | EA57: 2328 | EB57: 2328 | EC57: 2352 | ED57: 2556 | EE57: 2664 | EF57: 2787 | EG57: 2910 | EH57: 2568 | EI57: 2715 | EJ57: 2865 | EK57: 2928 | EL57: 3003 | EM57: 2691 | EN57: 2844 | EO57: 2937 | EP57: 2379 | EQ57: 2553 | ER57: 2859 | ES57: 3027 | ET57: 3144 | EU57: 3171 | EV57: 3201 | EW57: 3201 | EX57: 3201 | EY57: 3201 | EZ57: True | FA57: DC053 | FB57: 1911 | FC57: 1911 | FD57: 1911 | FE57: 1911 | FF57: 2163 | FG57: 2301 | FH57: 2331 | FI57: 2397 | FJ57: 2454 | FK57: 2328 | FL57: 2394 | FM57: 2457 | FN57: 2580 | FO57: 2697 | FP57: 2355 | FQ57: 2436 | FR57: 2547 | FS57: 2298 | FT57: 2346 | FU57: 2478 | FV57: 2673 | FW57: 2739 | FX57: 2850 | FY57: 2904 | FZ57: 2904 | GA57: 2904 | GB57: 2904 | GD57: 703 | GE57: XX499 | GG57: DC053 | GH57: WASHINGTON, DC METRO AREA
B58: E7 | C58: 3114.3 | D58: 3399 | E58: 3529.5 | F58: 3701.4 | H58: 3836.1 | J58: 4067.4 | L58: 4197.9 | N58: 4428.9 | P58: 4621.5 | R58: 4752.6 | T58: 4892.4 | V58: 4946.4 | X58: 5128.5 | Z58: 5226 | AB58: 5597.4 | AD58: 5597.4 | AF58: 5597.4 | AH58: 5597.4 | AJ58: 5597.4 | AL58: 5597.4 | AN58: 5597.4 | AP58: 5597.4 | CJ58: E2 | CK58: 75 | CL58: 90 | CM58: 90 | CN58: 90 | CP58: 90 | CR58: 90 | CT58: 90 | CV58: 90 | CX58: 90 | CZ58: 90 | DB58: 90 | DD58: 90 | DF58: 90 | DH58: 90 | DJ58: 90 | DN58: 90 | DR58: 90 | DV58: 90 | DX58: DE054 | DY58: 1509 | DZ58: 1509 | EA58: 1509 | EB58: 1509 | EC58: 1536 | ED58: 1677 | EE58: 1764 | EF58: 1863 | EG58: 1968 | EH58: 1689 | EI58: 1806 | EJ58: 1923 | EK58: 1986 | EL58: 2064 | EM58: 1785 | EN58: 1905 | EO58: 1995 | EP58: 1557 | EQ58: 1674 | ER58: 1920 | ES58: 2091 | ET58: 2211 | EU58: 2226 | EV58: 2247 | EW58: 2247 | EX58: 2247 | EY58: 2247 | EZ58: True | FA58: DE054 | FB58: 1224 | FC58: 1224 | FD58: 1224 | FE58: 1224 | FF58: 1383 | FG58: 1479 | FH58: 1512 | FI58: 1569 | FJ58: 1605 | FK58: 1509 | FL58: 1566 | FM58: 1608 | FN58: 1695 | FO58: 1788 | FP58: 1539 | FQ58: 1593 | FR58: 1668 | FS58: 1476 | FT58: 1530 | FU58: 1623 | FV58: 1767 | FW58: 1821 | FX58: 1908 | FY58: 1944 | FZ58: 1944 | GA58: 1944 | GB58: 1944 | GD58: 704 | GE58: XX499 | GG58: DE054 | GH58: DOVER AFB/REHOBOTH, DE
B59: E7 1 Drill | C59: 103.81 | D59: 113.3 | E59: 117.65 | F59: 123.38 | H59: 127.87 | J59: 135.58 | L59: 139.93 | N59: 147.63 | P59: 154.05 | R59: 158.42 | T59: 163.08 | V59: 164.88 | X59: 170.95 | Z59: 174.2 | AB59: 186.58 | AD59: 186.58 | AF59: 186.58 | AH59: 186.58 | AJ59: 186.58 | AL59: 186.58 | AN59: 186.58 | AP59: 186.58 | CJ59: El | CK59: 75 | CL59: 75 | CM59: 75 | CN59: 75 | CP59: 75 | CR59: 75 | CT59: 75 | CV59: 75 | CX59: 75 | CZ59: 75 | DB59: 75 | DD59: 75 | DF59: 75 | DH59: 75 | DJ59: 75 | DN59: 75 | DR59: 75 | DV59: 75 | DX59: FL056 | DY59: 1533 | DZ59: 1533 | EA59: 1533 | EB59: 1533 | EC59: 1536 | ED59: 1650 | EE59: 1800 | EF59: 1968 | EG59: 2121 | EH59: 1662 | EI59: 1869 | EJ59: 2073 | EK59: 2139 | EL59: 2223 | EM59: 1833 | EN59: 2043 | EO59: 2151 | EP59: 1551 | EQ59: 1647 | ER59: 2064 | ES59: 2250 | ET59: 2376 | EU59: 2394 | EV59: 2418 | EW59: 2418 | EX59: 2418 | EY59: 2418 | EZ59: True | FA59: FL056 | FB59: 1371 | FC59: 1371 | FD59: 1371 | FE59: 1371 | FF59: 1470 | FG59: 1533 | FH59: 1548 | FI59: 1560 | FJ59: 1590 | FK59: 1545 | FL59: 1557 | FM59: 1593 | FN59: 1683 | FO59: 1842 | FP59: 1554 | FQ59: 1578 | FR59: 1641 | FS59: 1530 | FT59: 1551 | FU59: 1602 | FV59: 1809 | FW59: 1905 | FX59: 2058 | FY59: 2097 | FZ59: 2097 | GA59: 2097 | GB59: 2097 | GD59: 705 | GE59: XX499 | GG59: FL056 | GH59: EGLIN AFB, FL
B60: E7 4 Drills | C60: 415.24 | D60: 453.2 | E60: 470.6 | F60: 493.52 | H60: 511.48 | J60: 542.32 | L60: 559.72 | N60: 590.52 | P60: 616.2 | R60: 633.68 | T60: 652.32 | V60: 659.52 | X60: 683.8 | Z60: 696.8 | AB60: 746.32 | AD60: 746.32 | AF60: 746.32 | AH60: 746.32 | AJ60: 746.32 | AL60: 746.32 | AN60: 746.32 | AP60: 746.32 | DX60: FL057 | DY60: 1428 | DZ60: 1428 | EA60: 1428 | EB60: 1428 | EC60: 1431 | ED60: 1626 | EE60: 1659 | EF60: 1701 | EG60: 1839 | EH60: 1638 | EI60: 1677 | EJ60: 1728 | EK60: 1887 | EL60: 2079 | EM60: 1668 | EN60: 1719 | EO60: 1914 | EP60: 1458 | EQ60: 1623 | ER60: 1725 | ES60: 2148 | ET60: 2451 | EU60: 2472 | EV60: 2496 | EW60: 2496 | EX60: 2496 | EY60: 2496 | EZ60: True | FA60: FL057 | FB60: 1215 | FC60: 1215 | FD60: 1215 | FE60: 1215 | FF60: 1344 | FG60: 1422 | FH60: 1440 | FI60: 1473 | FJ60: 1530 | FK60: 1437 | FL60: 1470 | FM60: 1533 | FN60: 1632 | FO60: 1671 | FP60: 1446 | FQ60: 1512 | FR60: 1617 | FS60: 1419 | FT60: 1443 | FU60: 1551 | FV60: 1659 | FW60: 1839 | FX60: 1854 | FY60: 1872 | FZ60: 1872 | GA60: 1872 | GB60: 1872 | GD60: 707 | GE60: XX499 | GG60: FL057 | GH60: GAINESVILLE, FL
B61: E6 | C61: 2693.7 | D61: 2964.3 | E61: 3095.1 | F61: 3222.3 | H61: 3354.9 | J61: 3653.1 | L61: 3769.8 | N61: 3994.8 | P61: 4063.5 | R61: 4113.6 | T61: 4172.1 | V61: 4172.1 | X61: 4172.1 | Z61: 4172.1 | AB61: 4172.1 | AD61: 4172.1 | AF61: 4172.1 | AH61: 4172.1 | AJ61: 4172.1 | AL61: 4172.1 | AN61: 4172.1 | AP61: 4172.1 | DX61: FL058 | DY61: 1578 | DZ61: 1578 | EA61: 1578 | EB61: 1578 | EC61: 1641 | ED61: 1785 | EE61: 1800 | EF61: 1809 | EG61: 1848 | EH61: 1797 | EI61: 1806 | EJ61: 1818 | EK61: 1866 | EL61: 1932 | EM61: 1803 | EN61: 1812 | EO61: 1872 | EP61: 1662 | EQ61: 1782 | ER61: 1815 | ES61: 1950 | ET61: 2049 | EU61: 2067 | EV61: 2085 | EW61: 2085 | EX61: 2085 | EY61: 2085 | EZ61: True | FA61: FL058 | FB61: 1305 | FC61: 1305 | FD61: 1305 | FE61: 1305 | FF61: 1437 | FG61: 1518 | FH61: 1578 | FI61: 1674 | FJ61: 1713 | FK61: 1566 | FL61: 1671 | FM61: 1716 | FN61: 1782 | FO61: 1800 | FP61: 1644 | FQ61: 1698 | FR61: 1776 | FS61: 1515 | FT61: 1623 | FU61: 1728 | FV61: 1788 | FW61: 1803 | FX61: 1806 | FY61: 1830 | FZ61: 1830 | GA61: 1830 | GB61: 1830 | GD61: 714 | GE61: XX499 | GG61: FL058 | GH61: JACKSONVILLE, FL
B62: E6 1 Drill | C62: 89.79 | D62: 98.81 | E62: 103.17 | F62: 107.41 | H62: 111.83 | J62: 121.77 | L62: 125.66 | N62: 133.16 | P62: 135.45 | R62: 137.12 | T62: 139.07 | V62: 139.07 | X62: 139.07 | Z62: 139.07 | AB62: 139.07 | AD62: 139.07 | AF62: 139.07 | AH62: 139.07 | AJ62: 139.07 | AL62: 139.07 | AN62: 139.07 | AP62: 139.07 | DX62: FL059 | DY62: 1719 | DZ62: 1719 | EA62: 1719 | EB62: 1719 | EC62: 1761 | ED62: 1776 | EE62: 1878 | EF62: 2004 | EG62: 2133 | EH62: 1782 | EI62: 1932 | EJ62: 2085 | EK62: 2154 | EL62: 2241 | EM62: 1905 | EN62: 2061 | EO62: 2166 | EP62: 1770 | EQ62: 1773 | ER62: 2079 | ES62: 2271 | ET62: 2403 | EU62: 2421 | EV62: 2445 | EW62: 2445 | EX62: 2445 | EY62: 2445 | EZ62: True | FA62: FL059 | FB62: 1392 | FC62: 1392 | FD62: 1392 | FE62: 1392 | FF62: 1575 | FG62: 1680 | FH62: 1719 | FI62: 1770 | FJ62: 1776 | FK62: 1716 | FL62: 1767 | FM62: 1779 | FN62: 1791 | FO62: 1911 | FP62: 1764 | FQ62: 1773 | FR62: 1785 | FS62: 1677 | FT62: 1749 | FU62: 1782 | FV62: 1884 | FW62: 1956 | FX62: 2070 | FY62: 2109 | FZ62: 2109 | GA62: 2109 | GB62: 2109 | GD62: 715 | GE62: XX499 | GG62: FL059 | GH62: PATRICK AFB, FL
B63: E6 4 Drills | C63: 359.16 | D63: 395.24 | E63: 412.68 | F63: 429.64 | H63: 447.32 | J63: 487.08 | L63: 502.64 | N63: 532.64 | P63: 541.8 | R63: 548.48 | T63: 556.28 | V63: 556.28 | X63: 556.28 | Z63: 556.28 | AB63: 556.28 | AD63: 556.28 | AF63: 556.28 | AH63: 556.28 | AJ63: 556.28 | AL63: 556.28 | AN63: 556.28 | AP63: 556.28 | DX63: FL061 | DY63: 2436 | DZ63: 2436 | EA63: 2436 | EB63: 2436 | EC63: 2547 | ED63: 2577 | EE63: 2640 | EF63: 2715 | EG63: 2850 | EH63: 2589 | EI63: 2670 | EJ63: 2760 | EK63: 2886 | EL63: 3039 | EM63: 2655 | EN63: 2748 | EO63: 2907 | EP63: 2556 | EQ63: 2574 | ER63: 2757 | ES63: 3090 | ET63: 3330 | EU63: 3357 | EV63: 3390 | EW63: 3390 | EX63: 3390 | EY63: 3390 | EZ63: True | FA63: FL061 | FB63: 1857 | FC63: 1857 | FD63: 1857 | FE63: 1857 | FF63: 2160 | FG63: 2331 | FH63: 2436 | FI63: 2559 | FJ63: 2565 | FK63: 2406 | FL63: 2556 | FM63: 2568 | FN63: 2589 | FO63: 2661 | FP63: 2550 | FQ63: 2562 | FR63: 2574 | FS63: 2322 | FT63: 2511 | FU63: 2571 | FV63: 2640 | FW63: 2682 | FX63: 2745 | FY63: 2796 | FZ63: 2796 | GA63: 2796 | GB63: 2796 | GD63: 716 | GE63: XX499 | GG63: FL061 | GH63: MIAMI/FORT LAUDERDALE, FL
B64: E5 | C64: 2467.5 | D64: 2634 | E64: 2761.2 | F64: 2891.4 | H64: 3094.5 | J64: 3306.3 | L64: 3480.9 | N64: 3501.9 | P64: 3501.9 | R64: 3501.9 | T64: 3501.9 | V64: 3501.9 | X64: 3501.9 | Z64: 3501.9 | AB64: 3501.9 | AD64: 3501.9 | AF64: 3501.9 | AH64: 3501.9 | AJ64: 3501.9 | AL64: 3501.9 | AN64: 3501.9 | AP64: 3501.9 | DX64: FL062 | DY64: 1812 | DZ64: 1812 | EA64: 1812 | EB64: 1812 | EC64: 1902 | ED64: 1986 | EE64: 2001 | EF64: 2010 | EG64: 2067 | EH64: 1998 | EI64: 2007 | EJ64: 2019 | EK64: 2100 | EL64: 2229 | EM64: 2004 | EN64: 2013 | EO64: 2115 | EP64: 1917 | EQ64: 1983 | ER64: 2016 | ES64: 2274 | ET64: 2475 | EU64: 2496 | EV64: 2517 | EW64: 2517 | EX64: 2517 | EY64: 2517 | EZ64: True | FA64: FL062 | FB64: 1512 | FC64: 1512 | FD64: 1512 | FE64: 1512 | FF64: 1641 | FG64: 1725 | FH64: 1812 | FI64: 1923 | FJ64: 1941 | FK64: 1788 | FL64: 1920 | FM64: 1944 | FN64: 1980 | FO64: 1992 | FP64: 1905 | FQ64: 1932 | FR64: 1974 | FS64: 1719 | FT64: 1875 | FU64: 1950 | FV64: 1983 | FW64: 1995 | FX64: 1998 | FY64: 2013 | FZ64: 2013 | GA64: 2013 | GB64: 2013 | GD64: 717 | GE64: XX499 | GG64: FL062 | GH64: ORLANDO, FL
B65: E5 1 Drill | C65: 82.25 | D65: 87.8 | E65: 92.04 | F65: 96.38 | H65: 103.15 | J65: 110.21 | L65: 116.03 | N65: 116.73 | P65: 116.73 | R65: 116.73 | T65: 116.73 | V65: 116.73 | X65: 116.73 | Z65: 116.73 | AB65: 116.73 | AD65: 116.73 | AF65: 116.73 | AH65: 116.73 | AJ65: 116.73 | AL65: 116.73 | AN65: 116.73 | AP65: 116.73 | DX65: FL063 | DY65: 1716 | DZ65: 1716 | EA65: 1716 | EB65: 1716 | EC65: 1794 | ED65: 1947 | EE65: 2049 | EF65: 2169 | EG65: 2298 | EH65: 1959 | EI65: 2100 | EJ65: 2244 | EK65: 2319 | EL65: 2415 | EM65: 2076 | EN65: 2223 | EO65: 2331 | EP65: 1818 | EQ65: 1944 | ER65: 2238 | ES65: 2445 | ET65: 2589 | EU65: 2610 | EV65: 2637 | EW65: 2637 | EX65: 2637 | EY65: 2637 | EZ65: True | FA65: FL063 | FB65: 1515 | FC65: 1515 | FD65: 1515 | FE65: 1515 | FF65: 1587 | FG65: 1638 | FH65: 1716 | FI65: 1830 | FJ65: 1869 | FK65: 1698 | FL65: 1827 | FM65: 1872 | FN65: 1968 | FO65: 2082 | FP65: 1797 | FQ65: 1857 | FR65: 1938 | FS65: 1635 | FT65: 1770 | FU65: 1887 | FV65: 2055 | FW65: 2121 | FX65: 2229 | FY65: 2271 | FZ65: 2271 | GA65: 2271 | GB65: 2271 | GD65: 718 | GE65: XX499 | GG65: FL063 | GH65: PANAMA CITY, FL
B66: E5 4 Drills | C66: 329 | D66: 351.2 | E66: 368.16 | F66: 385.52 | H66: 412.6 | J66: 440.84 | L66: 464.12 | N66: 466.92 | P66: 466.92 | R66: 466.92 | T66: 466.92 | V66: 466.92 | X66: 466.92 | Z66: 466.92 | AB66: 466.92 | AD66: 466.92 | AF66: 466.92 | AH66: 466.92 | AJ66: 466.92 | AL66: 466.92 | AN66: 466.92 | AP66: 466.92 | DX66: FL064 | DY66: 1443 | DZ66: 1443 | EA66: 1443 | EB66: 1443 | EC66: 1467 | ED66: 1485 | EE66: 1512 | EF66: 1551 | EG66: 1638 | EH66: 1497 | EI66: 1530 | EJ66: 1575 | EK66: 1662 | EL66: 1773 | EM66: 1521 | EN66: 1566 | EO66: 1677 | EP66: 1476 | EQ66: 1482 | ER66: 1572 | ES66: 1809 | ET66: 1977 | EU66: 1992 | EV66: 2010 | EW66: 2010 | EX66: 2010 | EY66: 2010 | EZ66: True | FA66: FL064 | FB66: 1167 | FC66: 1167 | FD66: 1167 | FE66: 1167 | FF66: 1326 | FG66: 1422 | FH66: 1449 | FI66: 1476 | FJ66: 1482 | FK66: 1446 | FL66: 1473 | FM66: 1485 | FN66: 1494 | FO66: 1524 | FP66: 1470 | FQ66: 1479 | FR66: 1491 | FS66: 1419 | FT66: 1461 | FU66: 1488 | FV66: 1509 | FW66: 1530 | FX66: 1560 | FY66: 1587 | FZ66: 1587 | GA66: 1587 | GB66: 1587 | GD66: 719 | GE66: XX499 | GG66: FL064 | GH66: PENSACOLA, FL
B67: E4 | C67: 2262.6 | D67: 2378.4 | E67: 2507.1 | F67: 2634.6 | H67: 2746.5 | J67: 2746.5 | L67: 2746.5 | N67: 2746.5 | P67: 2746.5 | R67: 2746.5 | T67: 2746.5 | V67: 2746.5 | X67: 2746.5 | Z67: 2746.5 | AB67: 2746.5 | AD67: 2746.5 | AF67: 2746.5 | AH67: 2746.5 | AJ67: 2746.5 | AL67: 2746.5 | AN67: 2746.5 | AP67: 2746.5 | DX67: FL065 | DY67: 1323 | DZ67: 1323 | EA67: 1323 | EB67: 1323 | EC67: 1326 | ED67: 1347 | EE67: 1479 | EF67: 1641 | EG67: 1827 | EH67: 1353 | EI67: 1548 | EJ67: 1743 | EK67: 1860 | EL67: 2001 | EM67: 1515 | EN67: 1713 | EO67: 1878 | EP67: 1332 | EQ67: 1344 | ER67: 1734 | ES67: 2049 | ET67: 2271 | EU67: 2289 | EV67: 2310 | EW67: 2310 | EX67: 2310 | EY67: 2310 | EZ67: True | FA67: FL065 | FB67: 1173 | FC67: 1173 | FD67: 1173 | FE67: 1173 | FF67: 1263 | FG67: 1323 | FH67: 1338 | FI67: 1350 | FJ67: 1371 | FK67: 1335 | FL67: 1347 | FM67: 1374 | FN67: 1413 | FO67: 1539 | FP67: 1344 | FQ67: 1353 | FR67: 1410 | FS67: 1320 | FT67: 1341 | FU67: 1377 | FV67: 1536 | FW67: 1704 | FX67: 1728 | FY67: 1758 | FZ67: 1758 | GA67: 1758 | GB67: 1758 | GD67: 720 | GE67: XX499 | GG67: FL065 | GH67: TALLAHASSEE, FL
B68: E4 1 Drill | C68: 75.42 | D68: 79.28 | E68: 83.57 | F68: 87.82 | H68: 91.55 | J68: 91.55 | L68: 91.55 | N68: 91.55 | P68: 91.55 | R68: 91.55 | T68: 91.55 | V68: 91.55 | X68: 91.55 | Z68: 91.55 | AB68: 91.55 | AD68: 91.55 | AF68: 91.55 | AH68: 91.55 | AJ68: 91.55 | AL68: 91.55 | AN68: 91.55 | AP68: 91.55 | DX68: FL066 | DY68: 1998 | DZ68: 1998 | EA68: 1998 | EB68: 1998 | EC68: 2097 | ED68: 2118 | EE68: 2154 | EF68: 2205 | EG68: 2286 | EH68: 2130 | EI68: 2175 | EJ68: 2235 | EK68: 2307 | EL68: 2400 | EM68: 2166 | EN68: 2226 | EO68: 2319 | EP68: 2106 | EQ68: 2115 | ER68: 2232 | ES68: 2430 | ET68: 2568 | EU68: 2589 | EV68: 2613 | EW68: 2613 | EX68: 2613 | EY68: 2613 | EZ68: True | FA68: FL066 | FB68: 1560 | FC68: 1560 | FD68: 1560 | FE68: 1560 | FF68: 1776 | FG68: 1902 | FH68: 1998 | FI68: 2106 | FJ68: 2112 | FK68: 1971 | FL68: 2103 | FM68: 2115 | FN68: 2124 | FO68: 2169 | FP68: 2100 | FQ68: 2109 | FR68: 2121 | FS68: 1896 | FT68: 2064 | FU68: 2118 | FV68: 2154 | FW68: 2178 | FX68: 2220 | FY68: 2262 | FZ68: 2262 | GA68: 2262 | GB68: 2262 | GD68: 721 | GE68: XX499 | GG68: FL066 | GH68: TAMPA, FL
B69: E4 4 Drills | C69: 301.68 | D69: 317.12 | E69: 334.28 | F69: 351.28 | H69: 366.2 | J69: 366.2 | L69: 366.2 | N69: 366.2 | P69: 366.2 | R69: 366.2 | T69: 366.2 | V69: 366.2 | X69: 366.2 | Z69: 366.2 | AB69: 366.2 | AD69: 366.2 | AF69: 366.2 | AH69: 366.2 | AJ69: 366.2 | AL69: 366.2 | AN69: 366.2 | AP69: 366.2 | DX69: FL067 | DY69: 2202 | DZ69: 2202 | EA69: 2202 | EB69: 2202 | EC69: 2349 | ED69: 2523 | EE69: 2538 | EF69: 2547 | EG69: 2607 | EH69: 2535 | EI69: 2544 | EJ69: 2559 | EK69: 2628 | EL69: 2715 | EM69: 2541 | EN69: 2553 | EO69: 2640 | EP69: 2376 | EQ69: 2520 | ER69: 2556 | ES69: 2745 | ET69: 2880 | EU69: 2904 | EV69: 2931 | EW69: 2931 | EX69: 2931 | EY69: 2931 | EZ69: =IF(DX69=FA69,"True","False") -> True | FA69: FL067 | FB69: 1734 | FC69: 1734 | FD69: 1734 | FE69: 1734 | FF69: 1935 | FG69: 2064 | FH69: 2205 | FI69: 2388 | FJ69: 2436 | FK69: 2157 | FL69: 2385 | FM69: 2439 | FN69: 2520 | FO69: 2541 | FP69: 2352 | FQ69: 2421 | FR69: 2514 | FS69: 2049 | FT69: 2301 | FU69: 2457 | FV69: 2529 | FW69: 2544 | FX69: 2547 | FY69: 2589 | FZ69: 2589 | GA69: 2589 | GB69: 2589 | GD69: 723 | GE69: XX499 | GG69: FL067 | GH69: WEST PALM BEACH, FL
B70: E3 | C70: 2042.7 | D70: 2171.1 | E70: 2302.8 | F70: 2302.8 | H70: 2302.8 | J70: 2302.8 | L70: 2302.8 | N70: 2302.8 | P70: 2302.8 | R70: 2302.8 | T70: 2302.8 | V70: 2302.8 | X70: 2302.8 | Z70: 2302.8 | AB70: 2302.8 | AD70: 2302.8 | AF70: 2302.8 | AH70: 2302.8 | AJ70: 2302.8 | AL70: 2302.8 | AN70: 2302.8 | AP70: 2302.8 | DX70: FL068 | DY70: 1467 | DZ70: 1467 | EA70: 1467 | EB70: 1467 | EC70: 1482 | ED70: 1503 | EE70: 1596 | EF70: 1707 | EG70: 1809 | EH70: 1515 | EI70: 1644 | EJ70: 1779 | EK70: 1824 | EL70: 1884 | EM70: 1620 | EN70: 1758 | EO70: 1830 | EP70: 1491 | EQ70: 1500 | ER70: 1773 | ES70: 1902 | ET70: 1992 | EU70: 2007 | EV70: 2025 | EW70: 2025 | EX70: 2025 | EY70: 2025 | EZ70: True | FA70: FL068 | FB70: 1308 | FC70: 1308 | FD70: 1308 | FE70: 1308 | FF70: 1395 | FG70: 1455 | FH70: 1476 | FI70: 1491 | FJ70: 1497 | FK70: 1473 | FL70: 1488 | FM70: 1500 | FN70: 1521 | FO70: 1626 | FP70: 1485 | FQ70: 1494 | FR70: 1506 | FS70: 1452 | FT70: 1479 | FU70: 1503 | FV70: 1602 | FW70: 1665 | FX70: 1764 | FY70: 1794 | FZ70: 1794 | GA70: 1794 | GB70: 1794 | GD70: 725 | GE70: XX499 | GG70: FL068 | GH70: OCALA, FL
B71: E3 1 Drill | C71: 68.09 | D71: 72.37 | E71: 76.76 | F71: 76.76 | H71: 76.76 | J71: 76.76 | L71: 76.76 | N71: 76.76 | P71: 76.76 | R71: 76.76 | T71: 76.76 | V71: 76.76 | X71: 76.76 | Z71: 76.76 | AB71: 76.76 | AD71: 76.76 | AF71: 76.76 | AH71: 76.76 | AJ71: 76.76 | AL71: 76.76 | AN71: 76.76 | AP71: 76.76 | DX71: FL069 | DY71: 2751 | DZ71: 2751 | EA71: 2751 | EB71: 2751 | EC71: 2976 | ED71: 3207 | EE71: 3321 | EF71: 3450 | EG71: 3639 | EH71: 3219 | EI71: 3375 | EJ71: 3531 | EK71: 3681 | EL71: 3861 | EM71: 3348 | EN71: 3507 | EO71: 3705 | EP71: 3009 | EQ71: 3204 | ER71: 3525 | ES71: 3927 | ET71: 4209 | EU71: 4248 | EV71: 4287 | EW71: 4287 | EX71: 4287 | EY71: 4287 | EZ71: True | FA71: FL069 | FB71: 2064 | FC71: 2064 | FD71: 2064 | FE71: 2064 | FF71: 2334 | FG71: 2544 | FH71: 2757 | FI71: 3027 | FJ71: 3093 | FK71: 2676 | FL71: 3024 | FM71: 3096 | FN71: 3234 | FO71: 3354 | FP71: 2979 | FQ71: 3072 | FR71: 3198 | FS71: 2520 | FT71: 2901 | FU71: 3120 | FV71: 3330 | FW71: 3402 | FX71: 3516 | FY71: 3585 | FZ71: 3585 | GA71: 3585 | GB71: 3585 | GD71: 726 | GE71: XX499 | GG71: FL069 | GH71: FLORIDA KEYS, FL
B72: E3 4 Drills | C72: 272.36 | D72: 289.48 | E72: 307.04 | F72: 307.04 | H72: 307.04 | J72: 307.04 | L72: 307.04 | N72: 307.04 | P72: 307.04 | R72: 307.04 | T72: 307.04 | V72: 307.04 | X72: 307.04 | Z72: 307.04 | AB72: 307.04 | AD72: 307.04 | AF72: 307.04 | AH72: 307.04 | AJ72: 307.04 | AL72: 307.04 | AN72: 307.04 | AP72: 307.04 | DX72: FL070 | DY72: 1587 | DZ72: 1587 | EA72: 1587 | EB72: 1587 | EC72: 1698 | ED72: 1719 | EE72: 1755 | EF72: 1803 | EG72: 1857 | EH72: 1731 | EI72: 1776 | EJ72: 1836 | EK72: 1869 | EL72: 1914 | EM72: 1764 | EN72: 1827 | EO72: 1875 | EP72: 1707 | EQ72: 1716 | ER72: 1833 | ES72: 1926 | ET72: 1992 | EU72: 2007 | EV72: 2025 | EW72: 2025 | EX72: 2025 | EY72: 2025 | EZ72: True | FA72: FL070 | FB72: 1251 | FC72: 1251 | FD72: 1251 | FE72: 1251 | FF72: 1389 | FG72: 1479 | FH72: 1587 | FI72: 1707 | FJ72: 1713 | FK72: 1554 | FL72: 1704 | FM72: 1716 | FN72: 1725 | FO72: 1770 | FP72: 1701 | FQ72: 1710 | FR72: 1722 | FS72: 1473 | FT72: 1662 | FU72: 1719 | FV72: 1755 | FW72: 1779 | FX72: 1821 | FY72: 1854 | FZ72: 1854 | GA72: 1854 | GB72: 1854 | GD72: 727 | GE72: XX499 | GG72: FL070 | GH72: VOLUSIA COUNTY, FL
B73: E2 | C73: 1942.5 | D73: 1942.5 | E73: 1942.5 | F73: 1942.5 | H73: 1942.5 | J73: 1942.5 | L73: 1942.5 | N73: 1942.5 | P73: 1942.5 | R73: 1942.5 | T73: 1942.5 | V73: 1942.5 | X73: 1942.5 | Z73: 1942.5 | AB73: 1942.5 | AD73: 1942.5 | AF73: 1942.5 | AH73: 1942.5 | AJ73: 1942.5 | AL73: 1942.5 | AN73: 1942.5 | AP73: 1942.5 | DX73: FL423 | DY73: 1608 | DZ73: 1608 | EA73: 1608 | EB73: 1608 | EC73: 1710 | ED73: 1869 | EE73: 1902 | EF73: 1947 | EG73: 2007 | EH73: 1881 | EI73: 1923 | EJ73: 1974 | EK73: 2022 | EL73: 2085 | EM73: 1914 | EN73: 1965 | EO73: 2028 | EP73: 1734 | EQ73: 1866 | ER73: 1971 | ES73: 2103 | ET73: 2193 | EU73: 2211 | EV73: 2232 | EW73: 2232 | EX73: 2232 | EY73: 2232 | EZ73: True | FA73: FL423 | FB73: 1362 | FC73: 1362 | FD73: 1362 | FE73: 1362 | FF73: 1446 | FG73: 1509 | FH73: 1608 | FI73: 1749 | FJ73: 1791 | FK73: 1581 | FL73: 1746 | FM73: 1794 | FN73: 1875 | FO73: 1917 | FP73: 1713 | FQ73: 1776 | FR73: 1860 | FS73: 1500 | FT73: 1680 | FU73: 1809 | FV73: 1902 | FW73: 1923 | FX73: 1959 | FY73: 1995 | FZ73: 1995 | GA73: 1995 | GB73: 1995 | GD73: 728 | GE73: XX499 | GG73: FL423 | GH73: FORT PIERCE, FL
B74: E2 1 Drill | C74: 64.75 | D74: 64.75 | E74: 64.75 | F74: 64.75 | H74: 64.75 | J74: 64.75 | L74: 64.75 | N74: 64.75 | P74: 64.75 | R74: 64.75 | T74: 64.75 | V74: 64.75 | X74: 64.75 | Z74: 64.75 | AB74: 64.75 | AD74: 64.75 | AF74: 64.75 | AH74: 64.75 | AJ74: 64.75 | AL74: 64.75 | AN74: 64.75 | AP74: 64.75 | DX74: FL424 | DY74: 1617 | DZ74: 1617 | EA74: 1617 | EB74: 1617 | EC74: 1692 | ED74: 1821 | EE74: 1944 | EF74: 2082 | EG74: 2175 | EH74: 1836 | EI74: 2001 | EJ74: 2172 | EK74: 2178 | EL74: 2184 | EM74: 1974 | EN74: 2145 | EO74: 2181 | EP74: 1713 | EQ74: 1818 | ER74: 2163 | ES74: 2187 | ET74: 2190 | EU74: 2193 | EV74: 2199 | EW74: 2199 | EX74: 2199 | EY74: 2199 | EZ74: True | FA74: FL424 | FB74: 1302 | FC74: 1302 | FD74: 1302 | FE74: 1302 | FF74: 1452 | FG74: 1542 | FH74: 1617 | FI74: 1725 | FJ74: 1758 | FK74: 1602 | FL74: 1722 | FM74: 1761 | FN74: 1848 | FO74: 1980 | FP74: 1695 | FQ74: 1746 | FR74: 1812 | FS74: 1539 | FT74: 1671 | FU74: 1770 | FV74: 1953 | FW74: 2031 | FX74: 2157 | FY74: 2196 | FZ74: 2196 | GA74: 2196 | GB74: 2196 | GD74: 729 | GE74: XX499 | GG74: FL424 | GH74: FT MYERS BCH, FL
B75: E2 4 Drills | C75: 259 | D75: 259 | E75: 259 | F75: 259 | H75: 259 | J75: 259 | L75: 259 | N75: 259 | P75: 259 | R75: 259 | T75: 259 | V75: 259 | X75: 259 | Z75: 259 | AB75: 259 | AD75: 259 | AF75: 259 | AH75: 259 | AJ75: 259 | AL75: 259 | AN75: 259 | AP75: 259 | DX75: GA071 | DY75: 2181 | DZ75: 2181 | EA75: 2181 | EB75: 2181 | EC75: 2262 | ED75: 2388 | EE75: 2403 | EF75: 2412 | EG75: 2457 | EH75: 2400 | EI75: 2409 | EJ75: 2421 | EK75: 2484 | EL75: 2589 | EM75: 2406 | EN75: 2415 | EO75: 2496 | EP75: 2280 | EQ75: 2385 | ER75: 2418 | ES75: 2625 | ET75: 2793 | EU75: 2814 | EV75: 2841 | EW75: 2841 | EX75: 2841 | EY75: 2841 | EZ75: True | FA75: GA071 | FB75: 1644 | FC75: 1644 | FD75: 1644 | FE75: 1644 | FF75: 1938 | FG75: 2100 | FH75: 2181 | FI75: 2292 | FJ75: 2325 | FK75: 2160 | FL75: 2289 | FM75: 2328 | FN75: 2385 | FO75: 2394 | FP75: 2265 | FQ75: 2313 | FR75: 2379 | FS75: 2097 | FT75: 2238 | FU75: 2337 | FV75: 2388 | FW75: 2397 | FX75: 2400 | FY75: 2424 | FZ75: 2424 | GA75: 2424 | GB75: 2424 | GD75: 730 | GE75: XX499 | GG75: GA071 | GH75: ATLANTA, GA
B76: E1 | C76: 1733.1 | DX76: GA072 | DY76: 936 | DZ76: 936 | EA76: 936 | EB76: 936 | EC76: 960 | ED76: 981 | EE76: 1119 | EF76: 1278 | EG76: 1458 | EH76: 993 | EI76: 1185 | EJ76: 1377 | EK76: 1491 | EL76: 1629 | EM76: 1152 | EN76: 1350 | EO76: 1509 | EP76: 969 | EQ76: 978 | ER76: 1371 | ES76: 1677 | ET76: 1893 | EU76: 1908 | EV76: 1926 | EW76: 1926 | EX76: 1926 | EY76: 1926 | EZ76: True | FA76: GA072 | FB76: 717 | FC76: 717 | FD76: 717 | FE76: 717 | FF76: 837 | FG76: 915 | FH76: 942 | FI76: 969 | FJ76: 1095 | FK76: 939 | FL76: 966 | FM76: 1098 | FN76: 1134 | FO76: 1260 | FP76: 963 | FQ76: 1014 | FR76: 1131 | FS76: 912 | FT76: 954 | FU76: 1101 | FV76: 1257 | FW76: 1419 | FX76: 1431 | FY76: 1446 | FZ76: 1446 | GA76: 1446 | GB76: 1446 | GD76: 731 | GE76: XX499 | GG76: GA072 | GH76: ALBANY, GA
B77: E1>4 1 Drill | C77: 57.77 | DX77: GA073 | DY77: 1293 | DZ77: 1293 | EA77: 1293 | EB77: 1293 | EC77: 1305 | ED77: 1488 | EE77: 1506 | EF77: 1515 | EG77: 1551 | EH77: 1503 | EI77: 1512 | EJ77: 1524 | EK77: 1572 | EL77: 1662 | EM77: 1509 | EN77: 1518 | EO77: 1584 | EP77: 1332 | EQ77: 1485 | ER77: 1521 | ES77: 1689 | ET77: 1827 | EU77: 1842 | EV77: 1857 | EW77: 1857 | EX77: 1857 | EY77: 1857 | EZ77: True | FA77: GA073 | FB77: 1161 | FC77: 1161 | FD77: 1161 | FE77: 1161 | FF77: 1230 | FG77: 1278 | FH77: 1302 | FI77: 1347 | FJ77: 1398 | FK77: 1299 | FL77: 1344 | FM77: 1401 | FN77: 1488 | FO77: 1497 | FP77: 1308 | FQ77: 1383 | FR77: 1482 | FS77: 1275 | FT77: 1305 | FU77: 1419 | FV77: 1491 | FW77: 1500 | FX77: 1503 | FY77: 1509 | FZ77: 1509 | GA77: 1509 | GB77: 1509 | GD77: 732 | GE77: XX499 | GG77: GA073 | GH77: FORT GORDON, GA
B78: E1>4 4 Drills | C78: 231.08 | DX78: GA074 | DY78: 1272 | DZ78: 1272 | EA78: 1272 | EB78: 1272 | EC78: 1284 | ED78: 1470 | EE78: 1494 | EF78: 1524 | EG78: 1575 | EH78: 1485 | EI78: 1506 | EJ78: 1542 | EK78: 1590 | EL78: 1650 | EM78: 1500 | EN78: 1536 | EO78: 1596 | EP78: 1311 | EQ78: 1467 | ER78: 1539 | ES78: 1668 | ET78: 1758 | EU78: 1770 | EV78: 1788 | EW78: 1788 | EX78: 1788 | EY78: 1788 | EZ78: True | FA78: GA074 | FB78: 1074 | FC78: 1074 | FD78: 1074 | FE78: 1074 | FF78: 1188 | FG78: 1260 | FH78: 1281 | FI78: 1326 | FJ78: 1380 | FK78: 1278 | FL78: 1323 | FM78: 1383 | FN78: 1473 | FO78: 1503 | FP78: 1287 | FQ78: 1362 | FR78: 1464 | FS78: 1257 | FT78: 1284 | FU78: 1401 | FV78: 1491 | FW78: 1506 | FX78: 1527 | FY78: 1554 | FZ78: 1554 | GA78: 1554 | GB78: 1554 | GD78: 733 | GE78: XX499 | GG78: GA074 | GH78: KINGS BAY/BRUNSWICK, GA
B79: E1<4 | C79: 1602.3 | DX79: GA075 | DY79: 1146 | DZ79: 1146 | EA79: 1146 | EB79: 1146 | EC79: 1212 | ED79: 1551 | EE79: 1572 | EF79: 1581 | EG79: 1593 | EH79: 1569 | EI79: 1578 | EJ79: 1590 | EK79: 1599 | EL79: 1644 | EM79: 1575 | EN79: 1584 | EO79: 1602 | EP79: 1254 | EQ79: 1548 | ER79: 1587 | ES79: 1656 | ET79: 1719 | EU79: 1734 | EV79: 1749 | EW79: 1749 | EX79: 1749 | EY79: 1749 | EZ79: True | FA79: GA075 | FB79: 936 | FC79: 936 | FD79: 936 | FE79: 936 | FF79: 1023 | FG79: 1164 | FH79: 1179 | FI79: 1284 | FJ79: 1386 | FK79: 1176 | FL79: 1281 | FM79: 1392 | FN79: 1554 | FO79: 1563 | FP79: 1215 | FQ79: 1359 | FR79: 1548 | FS79: 1077 | FT79: 1191 | FU79: 1428 | FV79: 1557 | FW79: 1566 | FX79: 1569 | FY79: 1578 | FZ79: 1578 | GA79: 1578 | GB79: 1578 | GD79: 734 | GE79: XX499 | GG79: GA075 | GH79: FORT BENNING, GA
B80: E1<4 1 Drill | C80: 53.41 | DX80: GA076 | DY80: 1209 | DZ80: 1209 | EA80: 1209 | EB80: 1209 | EC80: 1320 | ED80: 1407 | EE80: 1458 | EF80: 1521 | EG80: 1629 | EH80: 1419 | EI80: 1485 | EJ80: 1560 | EK80: 1659 | EL80: 1779 | EM80: 1470 | EN80: 1548 | EO80: 1674 | EP80: 1335 | EQ80: 1404 | ER80: 1557 | ES80: 1821 | ET80: 2007 | EU80: 2022 | EV80: 2043 | EW80: 2043 | EX80: 2043 | EY80: 2043 | EZ80: True | FA80: GA076 | FB80: 942 | FC80: 942 | FD80: 942 | FE80: 942 | FF80: 1035 | FG80: 1101 | FH80: 1209 | FI80: 1344 | FJ80: 1362 | FK80: 1179 | FL80: 1341 | FM80: 1365 | FN80: 1413 | FO80: 1476 | FP80: 1323 | FQ80: 1353 | FR80: 1395 | FS80: 1095 | FT80: 1284 | FU80: 1371 | FV80: 1458 | FW80: 1506 | FX80: 1545 | FY80: 1572 | FZ80: 1572 | GA80: 1572 | GB80: 1572 | GD80: 735 | GE80: XX499 | GG80: GA076 | GH80: ROBINS AFB, GA
B81: E1<4 4 Drills | C81: 213.64 | DX81: GA077 | DY81: 1497 | DZ81: 1497 | EA81: 1497 | EB81: 1497 | EC81: 1566 | ED81: 1587 | EE81: 1623 | EF81: 1671 | EG81: 1758 | EH81: 1599 | EI81: 1644 | EJ81: 1701 | EK81: 1779 | EL81: 1878 | EM81: 1632 | EN81: 1692 | EO81: 1794 | EP81: 1575 | EQ81: 1584 | ER81: 1698 | ES81: 1911 | ET81: 2061 | EU81: 2076 | EV81: 2097 | EW81: 2097 | EX81: 2097 | EY81: 2097 | EZ81: True | FA81: GA077 | FB81: 1164 | FC81: 1164 | FD81: 1164 | FE81: 1164 | FF81: 1329 | FG81: 1428 | FH81: 1494 | FI81: 1575 | FJ81: 1581 | FK81: 1482 | FL81: 1572 | FM81: 1584 | FN81: 1593 | FO81: 1638 | FP81: 1569 | FQ81: 1578 | FR81: 1590 | FS81: 1425 | FT81: 1545 | FU81: 1587 | FV81: 1620 | FW81: 1647 | FX81: 1686 | FY81: 1716 | FZ81: 1716 | GA81: 1716 | GB81: 1716 | GD81: 736 | GE81: XX499 | GG81: GA077 | GH81: SAVANNAH, GA
DX82: GA079 | DY82: 1329 | DZ82: 1329 | EA82: 1329 | EB82: 1329 | EC82: 1332 | ED82: 2073 | EE82: 2094 | EF82: 2103 | EG82: 2115 | EH82: 2091 | EI82: 2100 | EJ82: 2112 | EK82: 2118 | EL82: 2124 | EM82: 2097 | EN82: 2106 | EO82: 2121 | EP82: 1410 | EQ82: 2064 | ER82: 2109 | ES82: 2127 | ET82: 2130 | EU82: 2133 | EV82: 2136 | EW82: 2136 | EX82: 2136 | EY82: 2136 | EZ82: True | FA82: GA079 | FB82: 1125 | FC82: 1125 | FD82: 1125 | FE82: 1125 | FF82: 1257 | FG82: 1554 | FH82: 1572 | FI82: 1584 | FJ82: 1707 | FK82: 1569 | FL82: 1581 | FM82: 1725 | FN82: 2076 | FO82: 2085 | FP82: 1578 | FQ82: 1650 | FR82: 2070 | FS82: 1335 | FT82: 1575 | FU82: 1800 | FV82: 2079 | FW82: 2088 | FX82: 2091 | FY82: 2109 | FZ82: 2109 | GA82: 2109 | GB82: 2109 | GD82: 737 | GE82: XX499 | GG82: GA079 | GH82: DAHLONEGA, GA
B83: Actual BAH | C83: BAH W/ Dep | D83: BAH W/O Dep | E83: Partial | F83: Differential | I83: Projected BAH | J83: BAH W/ Dep | K83: BAH W/O Dep | L83: Partial | M83: Differential | P83: =AZIP ->  | Q83: =PZIP ->  | DX83: GA080 | DY83: 1392 | DZ83: 1392 | EA83: 1392 | EB83: 1392 | EC83: 1434 | ED83: 1452 | EE83: 1515 | EF83: 1593 | EG83: 1683 | EH83: 1464 | EI83: 1548 | EJ83: 1641 | EK83: 1701 | EL83: 1779 | EM83: 1530 | EN83: 1626 | EO83: 1710 | EP83: 1443 | EQ83: 1449 | ER83: 1638 | ES83: 1803 | ET83: 1920 | EU83: 1935 | EV83: 1950 | EW83: 1950 | EX83: 1950 | EY83: 1950 | EZ83: True | FA83: GA080 | FB83: 1107 | FC83: 1107 | FD83: 1107 | FE83: 1107 | FF83: 1257 | FG83: 1347 | FH83: 1389 | FI83: 1443 | FJ83: 1449 | FK83: 1386 | FL83: 1440 | FM83: 1452 | FN83: 1461 | FO83: 1536 | FP83: 1437 | FQ83: 1446 | FR83: 1458 | FS83: 1344 | FT83: 1422 | FU83: 1455 | FV83: 1515 | FW83: 1557 | FX83: 1626 | FY83: 1656 | FZ83: 1656 | GA83: 1656 | GB83: 1656 | GD83: 738 | GE83: XX499 | GG83: GA080 | GH83: FORT STEWART, GA
B84: O10 | C84: =VLOOKUP(P$84,BAHW,28) ->  | D84: =VLOOKUP(P$84,BAHWO,28) ->  | E84: 50.7 | F84: 348.6 | G84: =VLOOKUP(P$87,BAHW,28) ->  | H84: =VLOOKUP(P$87,BAHWO,28) ->  | I84: O10 | J84: =VLOOKUP(Q$84,BAHW,28) ->  | K84: =VLOOKUP(Q$84,BAHWO,28) ->  | L84: 50.7 | M84: 348.6 | N84: =VLOOKUP(Q$87,BAHW,28) ->  | O84: =VLOOKUP(Q$87,BAHWO,28) ->  | P84: =VLOOKUP(P83,ZIPS,2,FALSE) ->  | Q84: =VLOOKUP(Q83,ZIPS,2,FALSE) ->  | DX84: GA081 | DY84: 1044 | DZ84: 1044 | EA84: 1044 | EB84: 1044 | EC84: 1068 | ED84: 1329 | EE84: 1386 | EF84: 1452 | EG84: 1539 | EH84: 1344 | EI84: 1413 | EJ84: 1491 | EK84: 1557 | EL84: 1638 | EM84: 1398 | EN84: 1479 | EO84: 1566 | EP84: 1101 | EQ84: 1326 | ER84: 1488 | ES84: 1665 | ET84: 1788 | EU84: 1800 | EV84: 1818 | EW84: 1818 | EX84: 1818 | EY84: 1818 | EZ84: True | FA84: GA081 | FB84: 933 | FC84: 933 | FD84: 933 | FE84: 933 | FF84: 981 | FG84: 1020 | FH84: 1047 | FI84: 1125 | FJ84: 1200 | FK84: 1044 | FL84: 1122 | FM84: 1206 | FN84: 1341 | FO84: 1404 | FP84: 1071 | FQ84: 1179 | FR84: 1323 | FS84: 1017 | FT84: 1062 | FU84: 1233 | FV84: 1386 | FW84: 1422 | FX84: 1476 | FY84: 1503 | FZ84: 1503 | GA84: 1503 | GB84: 1503 | GD84: 739 | GE84: XX499 | GG84: GA081 | GH84: MOODY AFB, GA
B85: O9 | C85: =VLOOKUP(P$84,BAHW,27) ->  | D85: =VLOOKUP(P$84,BAHWO,27) ->  | E85: 50.7 | F85: 348.6 | G85: =VLOOKUP(P$87,BAHW,27) ->  | H85: =VLOOKUP(P$87,BAHWO,27) ->  | I85: O9 | J85: =VLOOKUP(Q$84,BAHW,27) ->  | K85: =VLOOKUP(Q$84,BAHWO,27) ->  | L85: 50.7 | M85: 348.6 | N85: =VLOOKUP(Q$87,BAHW,27) ->  | O85: =VLOOKUP(Q$87,BAHWO,27) ->  | DX85: HI407 | DY85: 2526 | DZ85: 2526 | EA85: 2526 | EB85: 2526 | EC85: 2844 | ED85: 3297 | EE85: 3465 | EF85: 3648 | EG85: 3831 | EH85: 3318 | EI85: 3543 | EJ85: 3765 | EK85: 3858 | EL85: 3975 | EM85: 3504 | EN85: 3732 | EO85: 3873 | EP85: 2901 | EQ85: 3294 | ER85: 3756 | ES85: 4014 | ET85: 4194 | EU85: 4230 | EV85: 4272 | EW85: 4272 | EX85: 4272 | EY85: 4272 | EZ85: True | FA85: HI407 | FB85: 1992 | FC85: 1992 | FD85: 1992 | FE85: 1992 | FF85: 2133 | FG85: 2472 | FH85: 2598 | FI85: 2940 | FJ85: 3078 | FK85: 2490 | FL85: 2937 | FM85: 3087 | FN85: 3342 | FO85: 3513 | FP85: 2847 | FQ85: 3042 | FR85: 3294 | FS85: 2202 | FT85: 2739 | FU85: 3135 | FV85: 3480 | FW85: 3582 | FX85: 3750 | FY85: 3822 | FZ85: 3822 | GA85: 3822 | GB85: 3822 | GD85: 740 | GE85: XX499 | GG85: HI407 | GH85: MAUI COUNTY, HI
B86: O8 | C86: =VLOOKUP(P$84,BAHW,26) ->  | D86: =VLOOKUP(P$84,BAHWO,26) ->  | E86: 50.7 | F86: 348.6 | G86: =VLOOKUP(P$87,BAHW,26) ->  | H86: =VLOOKUP(P$87,BAHWO,26) ->  | I86: O8 | J86: =VLOOKUP(Q$84,BAHW,26) ->  | K86: =VLOOKUP(Q$84,BAHWO,26) ->  | L86: 50.7 | M86: 348.6 | N86: =VLOOKUP(Q$87,BAHW,26) ->  | O86: =VLOOKUP(Q$87,BAHWO,26) ->  | P86: =AZIP2 -> 0 | Q86: =PZIP2 -> 0 | DX86: HI408 | DY86: 2784 | DZ86: 2784 | EA86: 2784 | EB86: 2784 | EC86: 2913 | ED86: 2967 | EE86: 3132 | EF86: 3318 | EG86: 3507 | EH86: 2979 | EI86: 3210 | EJ86: 3438 | EK86: 3537 | EL86: 3660 | EM86: 3171 | EN86: 3402 | EO86: 3555 | EP86: 2925 | EQ86: 2964 | ER86: 3426 | ES86: 3702 | ET86: 3894 | EU86: 3927 | EV86: 3966 | EW86: 3966 | EX86: 3966 | EY86: 3966 | EZ86: True | FA86: HI408 | FB86: 2088 | FC86: 2088 | FD86: 2088 | FE86: 2088 | FF86: 2397 | FG86: 2664 | FH86: 2787 | FI86: 2928 | FJ86: 2937 | FK86: 2748 | FL86: 2925 | FM86: 2940 | FN86: 3003 | FO86: 3177 | FP86: 2916 | FQ86: 2931 | FR86: 2955 | FS86: 2655 | FT86: 2871 | FU86: 2943 | FV86: 3144 | FW86: 3252 | FX86: 3423 | FY86: 3486 | FZ86: 3486 | GA86: 3486 | GB86: 3486 | GD86: 741 | GE86: XX499 | GG86: HI408 | GH86: HONOLULU COUNTY, HI
B87: O7 | C87: =VLOOKUP(P$84,BAHW,25) ->  | D87: =VLOOKUP(P$84,BAHWO,25) ->  | E87: 50.7 | F87: 348.6 | G87: =VLOOKUP(P$87,BAHW,25) ->  | H87: =VLOOKUP(P$87,BAHWO,25) ->  | I87: O7 | J87: =VLOOKUP(Q$84,BAHW,25) ->  | K87: =VLOOKUP(Q$84,BAHWO,25) ->  | L87: 50.7 | M87: 348.6 | N87: =VLOOKUP(Q$87,BAHW,25) ->  | O87: =VLOOKUP(Q$87,BAHWO,25) ->  | P87: =VLOOKUP(P86,ZIPS,2,FALSE) ->  | Q87: =VLOOKUP(Q86,ZIPS,2,FALSE) ->  | DX87: HI409 | DY87: 2187 | DZ87: 2187 | EA87: 2187 | EB87: 2187 | EC87: 2346 | ED87: 2568 | EE87: 2583 | EF87: 2592 | EG87: 2640 | EH87: 2580 | EI87: 2589 | EJ87: 2601 | EK87: 2655 | EL87: 2727 | EM87: 2586 | EN87: 2595 | EO87: 2664 | EP87: 2379 | EQ87: 2565 | ER87: 2598 | ES87: 2751 | ET87: 2859 | EU87: 2883 | EV87: 2910 | EW87: 2910 | EX87: 2910 | EY87: 2910 | EZ87: True | FA87: HI409 | FB87: 1641 | FC87: 1641 | FD87: 1641 | FE87: 1641 | FF87: 1875 | FG87: 2040 | FH87: 2190 | FI87: 2397 | FJ87: 2457 | FK87: 2139 | FL87: 2394 | FM87: 2463 | FN87: 2565 | FO87: 2583 | FP87: 2349 | FQ87: 2439 | FR87: 2559 | FS87: 2025 | FT87: 2295 | FU87: 2484 | FV87: 2571 | FW87: 2586 | FX87: 2589 | FY87: 2631 | FZ87: 2631 | GA87: 2631 | GB87: 2631 | GD87: 742 | GE87: XX499 | GG87: HI409 | GH87: HAWAII COUNTY, HI
B88: O6 | C88: =VLOOKUP(P$84,BAHW,24) ->  | D88: =VLOOKUP(P$84,BAHWO,24) ->  | E88: 39.6 | F88: 296.4 | G88: =VLOOKUP(P$87,BAHW,24) ->  | H88: =VLOOKUP(P$87,BAHWO,24) ->  | I88: O6 | J88: =VLOOKUP(Q$84,BAHW,24) ->  | K88: =VLOOKUP(Q$84,BAHWO,24) ->  | L88: 39.6 | M88: 296.4 | N88: =VLOOKUP(Q$87,BAHW,24) ->  | O88: =VLOOKUP(Q$87,BAHWO,24) ->  | DX88: HI414 | DY88: 2145 | DZ88: 2145 | EA88: 2145 | EB88: 2145 | EC88: 2379 | ED88: 2793 | EE88: 2814 | EF88: 2823 | EG88: 2913 | EH88: 2811 | EI88: 2820 | EJ88: 2832 | EK88: 2946 | EL88: 3090 | EM88: 2817 | EN88: 2826 | EO88: 2964 | EP88: 2430 | EQ88: 2790 | ER88: 2829 | ES88: 3141 | ET88: 3366 | EU88: 3396 | EV88: 3426 | EW88: 3426 | EX88: 3426 | EY88: 3426 | EZ88: True | FA88: HI414 | FB88: 1620 | FC88: 1620 | FD88: 1620 | FE88: 1620 | FF88: 1803 | FG88: 2094 | FH88: 2154 | FI88: 2463 | FJ88: 2592 | FK88: 2109 | FL88: 2460 | FM88: 2601 | FN88: 2796 | FO88: 2814 | FP88: 2382 | FQ88: 2559 | FR88: 2790 | FS88: 1908 | FT88: 2301 | FU88: 2643 | FV88: 2802 | FW88: 2817 | FX88: 2820 | FY88: 2865 | FZ88: 2865 | GA88: 2865 | GB88: 2865 | GD88: 744 | GE88: XX499 | GG88: HI414 | GH88: KAUAI COUNTY,HI
B89: O5 | C89: =VLOOKUP(P$84,BAHW,23) ->  | D89: =VLOOKUP(P$84,BAHWO,23) ->  | E89: 33 | F89: 286.5 | G89: =VLOOKUP(P$87,BAHW,23) ->  | H89: =VLOOKUP(P$87,BAHWO,23) ->  | I89: O5 | J89: =VLOOKUP(Q$84,BAHW,23) ->  | K89: =VLOOKUP(Q$84,BAHWO,23) ->  | L89: 33 | M89: 286.5 | N89: =VLOOKUP(Q$87,BAHW,23) ->  | O89: =VLOOKUP(Q$87,BAHWO,23) ->  | DX89: IA082 | DY89: 1281 | DZ89: 1281 | EA89: 1281 | EB89: 1281 | EC89: 1398 | ED89: 1692 | EE89: 1740 | EF89: 1791 | EG89: 1917 | EH89: 1707 | EI89: 1761 | EJ89: 1824 | EK89: 1953 | EL89: 2106 | EM89: 1749 | EN89: 1815 | EO89: 1974 | EP89: 1437 | EQ89: 1689 | ER89: 1821 | ES89: 2163 | ET89: 2406 | EU89: 2424 | EV89: 2448 | EW89: 2448 | EX89: 2448 | EY89: 2448 | EZ89: True | FA89: IA082 | FB89: 999 | FC89: 999 | FD89: 999 | FE89: 999 | FF89: 1098 | FG89: 1266 | FH89: 1305 | FI89: 1461 | FJ89: 1548 | FK89: 1281 | FL89: 1458 | FM89: 1554 | FN89: 1704 | FO89: 1755 | FP89: 1401 | FQ89: 1524 | FR89: 1686 | FS89: 1158 | FT89: 1362 | FU89: 1584 | FV89: 1740 | FW89: 1806 | FX89: 1818 | FY89: 1842 | FZ89: 1842 | GA89: 1842 | GB89: 1842 | GD89: 745 | GE89: XX499 | GG89: IA082 | GH89: DES MOINES, IA
B90: O4 | C90: =VLOOKUP(P$84,BAHW,22) ->  | D90: =VLOOKUP(P$84,BAHWO,22) ->  | E90: 26.7 | F90: 190.8 | G90: =VLOOKUP(P$87,BAHW,22) ->  | H90: =VLOOKUP(P$87,BAHWO,22) ->  | I90: O4 | J90: =VLOOKUP(Q$84,BAHW,22) ->  | K90: =VLOOKUP(Q$84,BAHWO,22) ->  | L90: 26.7 | M90: 190.8 | N90: =VLOOKUP(Q$87,BAHW,22) ->  | O90: =VLOOKUP(Q$87,BAHWO,22) ->  | DX90: ID084 | DY90: 1227 | DZ90: 1227 | EA90: 1227 | EB90: 1227 | EC90: 1236 | ED90: 1566 | EE90: 1599 | EF90: 1635 | EG90: 1719 | EH90: 1584 | EI90: 1614 | EJ90: 1659 | EK90: 1746 | EL90: 1854 | EM90: 1608 | EN90: 1650 | EO90: 1758 | EP90: 1278 | EQ90: 1563 | ER90: 1656 | ES90: 1890 | ET90: 2055 | EU90: 2070 | EV90: 2091 | EW90: 2091 | EX90: 2091 | EY90: 2091 | EZ90: True | FA90: ID084 | FB90: 1095 | FC90: 1095 | FD90: 1095 | FE90: 1095 | FF90: 1167 | FG90: 1221 | FH90: 1239 | FI90: 1305 | FJ90: 1404 | FK90: 1236 | FL90: 1302 | FM90: 1413 | FN90: 1575 | FO90: 1611 | FP90: 1245 | FQ90: 1377 | FR90: 1563 | FS90: 1218 | FT90: 1242 | FU90: 1446 | FV90: 1596 | FW90: 1614 | FX90: 1644 | FY90: 1671 | FZ90: 1671 | GA90: 1671 | GB90: 1671 | GD90: 751 | GE90: XX499 | GG90: ID084 | GH90: BOISE, ID
B91: O3 | C91: =VLOOKUP(P$84,BAHW,21) ->  | D91: =VLOOKUP(P$84,BAHWO,21) ->  | E91: 22.2 | F91: 190.5 | G91: =VLOOKUP(P$87,BAHW,21) ->  | H91: =VLOOKUP(P$87,BAHWO,21) ->  | I91: O3 | J91: =VLOOKUP(Q$84,BAHW,21) ->  | K91: =VLOOKUP(Q$84,BAHWO,21) ->  | L91: 22.2 | M91: 190.5 | N91: =VLOOKUP(Q$87,BAHW,21) ->  | O91: =VLOOKUP(Q$87,BAHWO,21) ->  | DX91: ID086 | DY91: 1173 | DZ91: 1173 | EA91: 1173 | EB91: 1173 | EC91: 1356 | ED91: 1713 | EE91: 1770 | EF91: 1833 | EG91: 1911 | EH91: 1731 | EI91: 1797 | EJ91: 1872 | EK91: 1929 | EL91: 2001 | EM91: 1785 | EN91: 1860 | EO91: 1938 | EP91: 1404 | EQ91: 1710 | ER91: 1869 | ES91: 2022 | ET91: 2130 | EU91: 2145 | EV91: 2166 | EW91: 2166 | EX91: 2166 | EY91: 2166 | EZ91: True | FA91: ID086 | FB91: 924 | FC91: 924 | FD91: 924 | FE91: 924 | FF91: 1017 | FG91: 1284 | FH91: 1329 | FI91: 1431 | FJ91: 1539 | FK91: 1299 | FL91: 1428 | FM91: 1548 | FN91: 1728 | FO91: 1788 | FP91: 1359 | FQ91: 1512 | FR91: 1710 | FS91: 1053 | FT91: 1332 | FU91: 1584 | FV91: 1770 | FW91: 1803 | FX91: 1857 | FY91: 1893 | FZ91: 1893 | GA91: 1893 | GB91: 1893 | GD91: 754 | GE91: XX499 | GG91: ID086 | GH91: MOUNTAIN HOME AFB, ID
B92: O2 | C92: =VLOOKUP(P$84,BAHW,20) ->  | D92: =VLOOKUP(P$84,BAHWO,20) ->  | E92: 17.7 | F92: 224.7 | G92: =VLOOKUP(P$87,BAHW,20) ->  | H92: =VLOOKUP(P$87,BAHWO,20) ->  | I92: O2 | J92: =VLOOKUP(Q$84,BAHW,20) ->  | K92: =VLOOKUP(Q$84,BAHWO,20) ->  | L92: 17.7 | M92: 224.7 | N92: =VLOOKUP(Q$87,BAHW,20) ->  | O92: =VLOOKUP(Q$87,BAHWO,20) ->  | DX92: IL088 | DY92: 993 | DZ92: 993 | EA92: 993 | EB92: 993 | EC92: 1020 | ED92: 1329 | EE92: 1347 | EF92: 1371 | EG92: 1464 | EH92: 1344 | EI92: 1359 | EJ92: 1386 | EK92: 1494 | EL92: 1629 | EM92: 1353 | EN92: 1380 | EO92: 1512 | EP92: 1062 | EQ92: 1326 | ER92: 1383 | ES92: 1674 | ET92: 1884 | EU92: 1896 | EV92: 1914 | EW92: 1914 | EX92: 1914 | EY92: 1914 | EZ92: True | FA92: IL088 | FB92: 765 | FC92: 765 | FD92: 765 | FE92: 765 | FF92: 885 | FG92: 996 | FH92: 1011 | FI92: 1086 | FJ92: 1179 | FK92: 1008 | FL92: 1083 | FM92: 1185 | FN92: 1332 | FO92: 1356 | FP92: 1023 | FQ92: 1152 | FR92: 1323 | FS92: 960 | FT92: 1014 | FU92: 1215 | FV92: 1344 | FW92: 1413 | FX92: 1422 | FY92: 1437 | FZ92: 1437 | GA92: 1437 | GB92: 1437 | GD92: 757 | GE92: XX499 | GG92: IL088 | GH92: CHAMPAIGN/URBANA, IL
B93: O1 | C93: =VLOOKUP(P$84,BAHW,19) ->  | D93: =VLOOKUP(P$84,BAHWO,19) ->  | E93: 13.2 | F93: 242.7 | G93: =VLOOKUP(P$87,BAHW,19) ->  | H93: =VLOOKUP(P$87,BAHWO,19) ->  | I93: O1 | J93: =VLOOKUP(Q$84,BAHW,19) ->  | K93: =VLOOKUP(Q$84,BAHWO,19) ->  | L93: 13.2 | M93: 242.7 | N93: =VLOOKUP(Q$87,BAHW,19) ->  | O93: =VLOOKUP(Q$87,BAHWO,19) ->  | DX93: IL089 | DY93: 1485 | DZ93: 1485 | EA93: 1485 | EB93: 1485 | EC93: 1617 | ED93: 1665 | EE93: 1773 | EF93: 1902 | EG93: 2088 | EH93: 1677 | EI93: 1827 | EJ93: 1983 | EK93: 2133 | EL93: 2313 | EM93: 1800 | EN93: 1959 | EO93: 2157 | EP93: 1629 | EQ93: 1662 | ER93: 1974 | ES93: 2379 | ET93: 2664 | EU93: 2685 | EV93: 2709 | EW93: 2709 | EX93: 2709 | EY93: 2709 | EZ93: True | FA93: IL089 | FB93: 1113 | FC93: 1113 | FD93: 1113 | FE93: 1113 | FF93: 1212 | FG93: 1359 | FH93: 1485 | FI93: 1632 | FJ93: 1638 | FK93: 1443 | FL93: 1629 | FM93: 1641 | FN93: 1686 | FO93: 1806 | FP93: 1620 | FQ93: 1635 | FR93: 1653 | FS93: 1347 | FT93: 1575 | FU93: 1644 | FV93: 1785 | FW93: 1998 | FX93: 2013 | FY93: 2031 | FZ93: 2031 | GA93: 2031 | GB93: 2031 | GD93: 765 | GE93: XX499 | GG93: IL089 | GH93: ROCK ISLAND, IL
B94: O3E | C94: =VLOOKUP(P$84,BAHW,18) ->  | D94: =VLOOKUP(P$84,BAHWO,18) ->  | E94: 22.2 | F94: 199.5 | G94: =VLOOKUP(P$87,BAHW,18) ->  | H94: =VLOOKUP(P$87,BAHWO,18) ->  | I94: O3E | J94: =VLOOKUP(Q$84,BAHW,18) ->  | K94: =VLOOKUP(Q$84,BAHWO,18) ->  | L94: 22.2 | M94: 199.5 | N94: =VLOOKUP(Q$87,BAHW,18) ->  | O94: =VLOOKUP(Q$87,BAHWO,18) ->  | DX94: IL090 | DY94: 1194 | DZ94: 1194 | EA94: 1194 | EB94: 1194 | EC94: 1323 | ED94: 1608 | EE94: 1692 | EF94: 1785 | EG94: 1914 | EH94: 1623 | EI94: 1731 | EJ94: 1845 | EK94: 1944 | EL94: 2064 | EM94: 1710 | EN94: 1827 | EO94: 1959 | EP94: 1362 | EQ94: 1605 | ER94: 1839 | ES94: 2106 | ET94: 2292 | EU94: 2310 | EV94: 2331 | EW94: 2331 | EX94: 2331 | EY94: 2331 | EZ94: True | FA94: IL090 | FB94: 897 | FC94: 897 | FD94: 897 | FE94: 897 | FF94: 993 | FG94: 1203 | FH94: 1269 | FI94: 1386 | FJ94: 1470 | FK94: 1218 | FL94: 1383 | FM94: 1476 | FN94: 1626 | FO94: 1716 | FP94: 1326 | FQ94: 1446 | FR94: 1602 | FS94: 1059 | FT94: 1281 | FU94: 1503 | FV94: 1695 | FW94: 1746 | FX94: 1830 | FY94: 1863 | FZ94: 1863 | GA94: 1863 | GB94: 1863 | GD94: 766 | GE94: XX499 | GG94: IL090 | GH94: PEORIA, IL
B95: O2E | C95: =VLOOKUP(P$84,BAHW,17) ->  | D95: =VLOOKUP(P$84,BAHWO,17) ->  | E95: 17.7 | F95: 238.8 | G95: =VLOOKUP(P$87,BAHW,17) ->  | H95: =VLOOKUP(P$87,BAHWO,17) ->  | I95: O2E | J95: =VLOOKUP(Q$84,BAHW,17) ->  | K95: =VLOOKUP(Q$84,BAHWO,17) ->  | L95: 17.7 | M95: 238.8 | N95: =VLOOKUP(Q$87,BAHW,17) ->  | O95: =VLOOKUP(Q$87,BAHWO,17) ->  | DX95: IL092 | DY95: 1599 | DZ95: 1599 | EA95: 1599 | EB95: 1599 | EC95: 1722 | ED95: 2400 | EE95: 2442 | EF95: 2490 | EG95: 2592 | EH95: 2418 | EI95: 2463 | EJ95: 2517 | EK95: 2622 | EL95: 2751 | EM95: 2451 | EN95: 2508 | EO95: 2640 | EP95: 1803 | EQ95: 2391 | ER95: 2514 | ES95: 2796 | ET95: 2997 | EU95: 3021 | EV95: 3051 | EW95: 3051 | EX95: 3051 | EY95: 3051 | EZ95: True | FA95: IL092 | FB95: 1290 | FC95: 1290 | FD95: 1290 | FE95: 1290 | FF95: 1404 | FG95: 1800 | FH95: 1833 | FI95: 1869 | FJ95: 2070 | FK95: 1815 | FL95: 1854 | FM95: 2088 | FN95: 2412 | FO95: 2457 | FP95: 1839 | FQ95: 2019 | FR95: 2397 | FS95: 1470 | FT95: 1836 | FU95: 2154 | FV95: 2442 | FW95: 2463 | FX95: 2502 | FY95: 2550 | FZ95: 2550 | GA95: 2550 | GB95: 2550 | GD95: 767 | GE95: XX499 | GG95: IL092 | GH95: GREAT LAKES NAVTRACEN, IL
B96: O1E | C96: =VLOOKUP(P$84,BAHW,16) ->  | D96: =VLOOKUP(P$84,BAHWO,16) ->  | E96: 13.2 | F96: 279.9 | G96: =VLOOKUP(P$87,BAHW,16) ->  | H96: =VLOOKUP(P$87,BAHWO,16) ->  | I96: O1E | J96: =VLOOKUP(Q$84,BAHW,16) ->  | K96: =VLOOKUP(Q$84,BAHWO,16) ->  | L96: 13.2 | M96: 279.9 | N96: =VLOOKUP(Q$87,BAHW,16) ->  | O96: =VLOOKUP(Q$87,BAHWO,16) ->  | DX96: IL093 | DY96: 1170 | DZ96: 1170 | EA96: 1170 | EB96: 1170 | EC96: 1173 | ED96: 1428 | EE96: 1527 | EF96: 1638 | EG96: 1779 | EH96: 1440 | EI96: 1572 | EJ96: 1710 | EK96: 1809 | EL96: 1932 | EM96: 1551 | EN96: 1689 | EO96: 1827 | EP96: 1209 | EQ96: 1425 | ER96: 1704 | ES96: 1974 | ET96: 2166 | EU96: 2184 | EV96: 2202 | EW96: 2202 | EX96: 2202 | EY96: 2202 | EZ96: True | FA96: IL093 | FB96: 933 | FC96: 933 | FD96: 933 | FE96: 933 | FF96: 1077 | FG96: 1164 | FH96: 1182 | FI96: 1230 | FJ96: 1335 | FK96: 1179 | FL96: 1227 | FM96: 1338 | FN96: 1449 | FO96: 1557 | FP96: 1188 | FQ96: 1281 | FR96: 1419 | FS96: 1161 | FT96: 1185 | FU96: 1341 | FV96: 1533 | FW96: 1626 | FX96: 1695 | FY96: 1725 | FZ96: 1725 | GA96: 1725 | GB96: 1725 | GD96: 769 | GE96: XX499 | GG96: IL093 | GH96: SCOTT AFB, IL
B97: W5 | C97: =VLOOKUP(P$84,BAHW,15) ->  | D97: =VLOOKUP(P$84,BAHWO,15) ->  | E97: 25.2 | F97: 119.1 | G97: =VLOOKUP(P$87,BAHW,15) ->  | H97: =VLOOKUP(P$87,BAHWO,15) ->  | I97: W5 | J97: =VLOOKUP(Q$84,BAHW,15) ->  | K97: =VLOOKUP(Q$84,BAHWO,15) ->  | L97: 25.2 | M97: 119.1 | N97: =VLOOKUP(Q$87,BAHW,15) ->  | O97: =VLOOKUP(Q$87,BAHWO,15) ->  | DX97: IL325 | DY97: 2052 | DZ97: 2052 | EA97: 2052 | EB97: 2052 | EC97: 2142 | ED97: 2325 | EE97: 2394 | EF97: 2475 | EG97: 2589 | EH97: 2340 | EI97: 2430 | EJ97: 2526 | EK97: 2613 | EL97: 2721 | EM97: 2412 | EN97: 2511 | EO97: 2628 | EP97: 2169 | EQ97: 2322 | ER97: 2523 | ES97: 2757 | ET97: 2925 | EU97: 2949 | EV97: 2976 | EW97: 2976 | EX97: 2976 | EY97: 2976 | EZ97: True | FA97: IL325 | FB97: 1683 | FC97: 1683 | FD97: 1683 | FE97: 1683 | FF97: 1860 | FG97: 1968 | FH97: 2052 | FI97: 2184 | FJ97: 2235 | FK97: 2031 | FL97: 2181 | FM97: 2238 | FN97: 2340 | FO97: 2418 | FP97: 2145 | FQ97: 2217 | FR97: 2319 | FS97: 1962 | FT97: 2115 | FU97: 2256 | FV97: 2397 | FW97: 2442 | FX97: 2511 | FY97: 2559 | FZ97: 2559 | GA97: 2559 | GB97: 2559 | GD97: 771 | GE97: XX499 | GG97: IL325 | GH97: CHICAGO, IL
B98: W4 | C98: =VLOOKUP(P$84,BAHW,14) ->  | D98: =VLOOKUP(P$84,BAHWO,14) ->  | E98: 25.2 | F98: 146.7 | G98: =VLOOKUP(P$87,BAHW,14) ->  | H98: =VLOOKUP(P$87,BAHWO,14) ->  | I98: W4 | J98: =VLOOKUP(Q$84,BAHW,14) ->  | K98: =VLOOKUP(Q$84,BAHWO,14) ->  | L98: 25.2 | M98: 146.7 | N98: =VLOOKUP(Q$87,BAHW,14) ->  | O98: =VLOOKUP(Q$87,BAHWO,14) ->  | DX98: IL335 | DY98: 960 | DZ98: 960 | EA98: 960 | EB98: 960 | EC98: 1059 | ED98: 1548 | EE98: 1569 | EF98: 1578 | EG98: 1602 | EH98: 1566 | EI98: 1575 | EJ98: 1587 | EK98: 1620 | EL98: 1695 | EM98: 1572 | EN98: 1581 | EO98: 1629 | EP98: 1119 | EQ98: 1542 | ER98: 1584 | ES98: 1719 | ET98: 1836 | EU98: 1848 | EV98: 1866 | EW98: 1866 | EX98: 1866 | EY98: 1866 | EZ98: True | FA98: IL335 | FB98: 729 | FC98: 729 | FD98: 729 | FE98: 729 | FF98: 804 | FG98: 1161 | FH98: 1179 | FI98: 1191 | FJ98: 1308 | FK98: 1176 | FL98: 1188 | FM98: 1320 | FN98: 1551 | FO98: 1560 | FP98: 1185 | FQ98: 1272 | FR98: 1545 | FS98: 855 | FT98: 1182 | FU98: 1371 | FV98: 1554 | FW98: 1563 | FX98: 1566 | FY98: 1572 | FZ98: 1572 | GA98: 1572 | GB98: 1572 | GD98: 772 | GE98: XX499 | GG98: IL335 | GH98: SPRINGFIELD/DECATUR,IL
B99: W3 | C99: =VLOOKUP(P$84,BAHW,13) ->  | D99: =VLOOKUP(P$84,BAHWO,13) ->  | E99: 20.7 | F99: 221.4 | G99: =VLOOKUP(P$87,BAHW,13) ->  | H99: =VLOOKUP(P$87,BAHWO,13) ->  | I99: W3 | J99: =VLOOKUP(Q$84,BAHW,13) ->  | K99: =VLOOKUP(Q$84,BAHWO,13) ->  | L99: 20.7 | M99: 221.4 | N99: =VLOOKUP(Q$87,BAHW,13) ->  | O99: =VLOOKUP(Q$87,BAHWO,13) ->  | DX99: IN094 | DY99: 1461 | DZ99: 1461 | EA99: 1461 | EB99: 1461 | EC99: 1509 | ED99: 1620 | EE99: 1635 | EF99: 1644 | EG99: 1665 | EH99: 1632 | EI99: 1641 | EJ99: 1653 | EK99: 1683 | EL99: 1752 | EM99: 1638 | EN99: 1647 | EO99: 1689 | EP99: 1527 | EQ99: 1617 | ER99: 1650 | ES99: 1773 | ET99: 1878 | EU99: 1890 | EV99: 1908 | EW99: 1908 | EX99: 1908 | EY99: 1908 | EZ99: True | FA99: IN094 | FB99: 1101 | FC99: 1101 | FD99: 1101 | FE99: 1101 | FF99: 1299 | FG99: 1410 | FH99: 1458 | FI99: 1536 | FJ99: 1563 | FK99: 1452 | FL99: 1533 | FM99: 1566 | FN99: 1614 | FO99: 1626 | FP99: 1512 | FQ99: 1554 | FR99: 1608 | FS99: 1407 | FT99: 1497 | FU99: 1575 | FV99: 1617 | FW99: 1629 | FX99: 1632 | FY99: 1641 | FZ99: 1641 | GA99: 1641 | GB99: 1641 | GD99: 773 | GE99: XX499 | GG99: IN094 | GH99: INDIANAPOLIS, IN
B100: W2 | C100: =VLOOKUP(P$84,BAHW,12) ->  | D100: =VLOOKUP(P$84,BAHWO,12) ->  | E100: 15.9 | F100: 234 | G100: =VLOOKUP(P$87,BAHW,12) ->  | H100: =VLOOKUP(P$87,BAHWO,12) ->  | I100: W2 | J100: =VLOOKUP(Q$84,BAHW,12) ->  | K100: =VLOOKUP(Q$84,BAHWO,12) ->  | L100: 15.9 | M100: 234 | N100: =VLOOKUP(Q$87,BAHW,12) ->  | O100: =VLOOKUP(Q$87,BAHWO,12) ->  | DX100: IN097 | DY100: 1185 | DZ100: 1185 | EA100: 1185 | EB100: 1185 | EC100: 1338 | ED100: 1359 | EE100: 1440 | EF100: 1539 | EG100: 1689 | EH100: 1371 | EI100: 1482 | EJ100: 1602 | EK100: 1725 | EL100: 1875 | EM100: 1461 | EN100: 1584 | EO100: 1746 | EP100: 1347 | EQ100: 1356 | ER100: 1596 | ES100: 1926 | ET100: 2163 | EU100: 2178 | EV100: 2199 | EW100: 2199 | EX100: 2199 | EY100: 2199 | EZ100: True | FA100: IN097 | FB100: 915 | FC100: 915 | FD100: 915 | FE100: 915 | FF100: 1005 | FG100: 1041 | FH100: 1188 | FI100: 1347 | FJ100: 1353 | FK100: 1137 | FL100: 1344 | FM100: 1356 | FN100: 1371 | FO100: 1467 | FP100: 1341 | FQ100: 1350 | FR100: 1362 | FS100: 1029 | FT100: 1287 | FU100: 1359 | FV100: 1446 | FW100: 1623 | FX100: 1635 | FY100: 1650 | FZ100: 1650 | GA100: 1650 | GB100: 1650 | GD100: 775 | GE100: XX499 | GG100: IN097 | GH100: FORT WAYNE, IN
B101: W1 | C101: =VLOOKUP(P$84,BAHW,11) ->  | D101: =VLOOKUP(P$84,BAHWO,11) ->  | E101: 13.8 | F101: 226.5 | G101: =VLOOKUP(P$87,BAHW,11) ->  | H101: =VLOOKUP(P$87,BAHWO,11) ->  | I101: W1 | J101: =VLOOKUP(Q$84,BAHW,11) ->  | K101: =VLOOKUP(Q$84,BAHWO,11) ->  | L101: 13.8 | M101: 226.5 | N101: =VLOOKUP(Q$87,BAHW,11) ->  | O101: =VLOOKUP(Q$87,BAHWO,11) ->  | DX101: IN338 | DY101: 981 | DZ101: 981 | EA101: 981 | EB101: 981 | EC101: 1038 | ED101: 1104 | EE101: 1122 | EF101: 1152 | EG101: 1212 | EH101: 1116 | EI101: 1134 | EJ101: 1170 | EK101: 1233 | EL101: 1314 | EM101: 1128 | EN101: 1161 | EO101: 1242 | EP101: 1050 | EQ101: 1101 | ER101: 1167 | ES101: 1338 | ET101: 1461 | EU101: 1473 | EV101: 1485 | EW101: 1485 | EX101: 1485 | EY101: 1485 | EZ101: True | FA101: IN338 | FB101: 747 | FC101: 747 | FD101: 747 | FE101: 747 | FF101: 855 | FG101: 924 | FH101: 978 | FI101: 1056 | FJ101: 1068 | FK101: 969 | FL101: 1053 | FM101: 1071 | FN101: 1101 | FO101: 1131 | FP101: 1041 | FQ101: 1059 | FR101: 1092 | FS101: 921 | FT101: 1020 | FU101: 1074 | FV101: 1119 | FW101: 1134 | FX101: 1152 | FY101: 1173 | FZ101: 1173 | GA101: 1173 | GB101: 1173 | GD101: 777 | GE101: XX499 | GG101: IN338 | GH101: TERRE HAUTE, IN
B102: E9 | C102: =VLOOKUP(P$84,BAHW,10) ->  | D102: =VLOOKUP(P$84,BAHWO,10) ->  | E102: 18.6 | F102: 298.8 | G102: =VLOOKUP(P$87,BAHW,10) ->  | H102: =VLOOKUP(P$87,BAHWO,10) ->  | I102: E9 | J102: =VLOOKUP(Q$84,BAHW,10) ->  | K102: =VLOOKUP(Q$84,BAHWO,10) ->  | L102: 18.6 | M102: 298.8 | N102: =VLOOKUP(Q$87,BAHW,10) ->  | O102: =VLOOKUP(Q$87,BAHWO,10) ->  | DX102: IN399 | DY102: 1179 | DZ102: 1179 | EA102: 1179 | EB102: 1179 | EC102: 1254 | ED102: 1278 | EE102: 1476 | EF102: 1704 | EG102: 1914 | EH102: 1290 | EI102: 1572 | EJ102: 1845 | EK102: 1944 | EL102: 2061 | EM102: 1524 | EN102: 1806 | EO102: 1959 | EP102: 1263 | EQ102: 1275 | ER102: 1833 | ES102: 2103 | ET102: 2286 | EU102: 2304 | EV102: 2328 | EW102: 2328 | EX102: 2328 | EY102: 2328 | EZ102: True | FA102: IN399 | FB102: 918 | FC102: 918 | FD102: 918 | FE102: 918 | FF102: 1029 | FG102: 1101 | FH102: 1179 | FI102: 1278 | FJ102: 1437 | FK102: 1161 | FL102: 1263 | FM102: 1440 | FN102: 1473 | FO102: 1581 | FP102: 1257 | FQ102: 1356 | FR102: 1470 | FS102: 1098 | FT102: 1233 | FU102: 1443 | FV102: 1578 | FW102: 1716 | FX102: 1830 | FY102: 1863 | FZ102: 1863 | GA102: 1863 | GB102: 1863 | GD102: 778 | GE102: XX499 | GG102: IN399 | GH102: BLOOMINGTON, IN
B103: E8 | C103: =VLOOKUP(P$84,BAHW,9) ->  | D103: =VLOOKUP(P$84,BAHWO,9) ->  | E103: 15.3 | F103: 280.2 | G103: =VLOOKUP(P$87,BAHW,9) ->  | H103: =VLOOKUP(P$87,BAHWO,9) ->  | I103: E8 | J103: =VLOOKUP(Q$84,BAHW,9) ->  | K103: =VLOOKUP(Q$84,BAHWO,9) ->  | L103: 15.3 | M103: 280.2 | N103: =VLOOKUP(Q$87,BAHW,9) ->  | O103: =VLOOKUP(Q$87,BAHWO,9) ->  | DX103: KS100 | DY103: 1029 | DZ103: 1029 | EA103: 1029 | EB103: 1029 | EC103: 1095 | ED103: 1236 | EE103: 1317 | EF103: 1416 | EG103: 1497 | EH103: 1248 | EI103: 1359 | EJ103: 1476 | EK103: 1506 | EL103: 1548 | EM103: 1338 | EN103: 1458 | EO103: 1512 | EP103: 1116 | EQ103: 1233 | ER103: 1470 | ES103: 1557 | ET103: 1617 | EU103: 1629 | EV103: 1644 | EW103: 1644 | EX103: 1644 | EY103: 1644 | EZ103: True | FA103: KS100 | FB103: 849 | FC103: 849 | FD103: 849 | FE103: 849 | FF103: 912 | FG103: 960 | FH103: 1026 | FI103: 1128 | FJ103: 1164 | FK103: 1014 | FL103: 1125 | FM103: 1167 | FN103: 1251 | FO103: 1344 | FP103: 1098 | FQ103: 1152 | FR103: 1227 | FS103: 957 | FT103: 1074 | FU103: 1179 | FV103: 1323 | FW103: 1374 | FX103: 1461 | FY103: 1488 | FZ103: 1488 | GA103: 1488 | GB103: 1488 | GD103: 780 | GE103: XX499 | GG103: KS100 | GH103: FORT RILEY, KS
B104: E7 | C104: =VLOOKUP(P$84,BAHW,8) ->  | D104: =VLOOKUP(P$84,BAHWO,8) ->  | E104: 12 | F104: 324.3 | G104: =VLOOKUP(P$87,BAHW,8) ->  | H104: =VLOOKUP(P$87,BAHWO,8) ->  | I104: E7 | J104: =VLOOKUP(Q$84,BAHW,8) ->  | K104: =VLOOKUP(Q$84,BAHWO,8) ->  | L104: 12 | M104: 324.3 | N104: =VLOOKUP(Q$87,BAHW,8) ->  | O104: =VLOOKUP(Q$87,BAHWO,8) ->  | DX104: KS101 | DY104: 1005 | DZ104: 1005 | EA104: 1005 | EB104: 1005 | EC104: 1065 | ED104: 1284 | EE104: 1311 | EF104: 1344 | EG104: 1437 | EH104: 1299 | EI104: 1326 | EJ104: 1365 | EK104: 1464 | EL104: 1587 | EM104: 1317 | EN104: 1359 | EO104: 1482 | EP104: 1095 | EQ104: 1281 | ER104: 1362 | ES104: 1629 | ET104: 1818 | EU104: 1833 | EV104: 1848 | EW104: 1848 | EX104: 1848 | EY104: 1848 | EZ104: True | FA104: KS101 | FB104: 774 | FC104: 774 | FD104: 774 | FE104: 774 | FF104: 876 | FG104: 960 | FH104: 1002 | FI104: 1113 | FJ104: 1176 | FK104: 993 | FL104: 1110 | FM104: 1179 | FN104: 1287 | FO104: 1323 | FP104: 1068 | FQ104: 1158 | FR104: 1278 | FS104: 942 | FT104: 1047 | FU104: 1203 | FV104: 1308 | FW104: 1365 | FX104: 1374 | FY104: 1386 | FZ104: 1386 | GA104: 1386 | GB104: 1386 | GD104: 782 | GE104: XX499 | GG104: KS101 | GH104: WICHITA/MCCONNELL AFB, KS
B105: E6 | C105: =VLOOKUP(P$84,BAHW,7) ->  | D105: =VLOOKUP(P$84,BAHWO,7) ->  | E105: 9.9 | F105: 313.8 | G105: =VLOOKUP(P$87,BAHW,7) ->  | H105: =VLOOKUP(P$87,BAHWO,7) ->  | I105: E6 | J105: =VLOOKUP(Q$84,BAHW,7) ->  | K105: =VLOOKUP(Q$84,BAHWO,7) ->  | L105: 9.9 | M105: 313.8 | N105: =VLOOKUP(Q$87,BAHW,7) ->  | O105: =VLOOKUP(Q$87,BAHWO,7) ->  | DX105: KS102 | DY105: 1335 | DZ105: 1335 | EA105: 1335 | EB105: 1335 | EC105: 1461 | ED105: 1476 | EE105: 1524 | EF105: 1596 | EG105: 1686 | EH105: 1479 | EI105: 1554 | EJ105: 1641 | EK105: 1704 | EL105: 1782 | EM105: 1539 | EN105: 1629 | EO105: 1713 | EP105: 1470 | EQ105: 1473 | ER105: 1638 | ES105: 1809 | ET105: 1926 | EU105: 1941 | EV105: 1959 | EW105: 1959 | EX105: 1959 | EY105: 1959 | EZ105: True | FA105: KS102 | FB105: 1002 | FC105: 1002 | FD105: 1002 | FE105: 1002 | FF105: 1125 | FG105: 1215 | FH105: 1338 | FI105: 1470 | FJ105: 1476 | FK105: 1299 | FL105: 1467 | FM105: 1479 | FN105: 1488 | FO105: 1545 | FP105: 1464 | FQ105: 1473 | FR105: 1485 | FS105: 1203 | FT105: 1422 | FU105: 1482 | FV105: 1527 | FW105: 1563 | FX105: 1626 | FY105: 1656 | FZ105: 1656 | GA105: 1656 | GB105: 1656 | GD105: 783 | GE105: XX499 | GG105: KS102 | GH105: FORT LEAVENWORTH, KS
B106: E5 | C106: =VLOOKUP(P$84,BAHW,6) ->  | D106: =VLOOKUP(P$84,BAHWO,6) ->  | E106: 8.7 | F106: 267 | G106: =VLOOKUP(P$87,BAHW,6) ->  | H106: =VLOOKUP(P$87,BAHWO,6) ->  | I106: E5 | J106: =VLOOKUP(Q$84,BAHW,6) ->  | K106: =VLOOKUP(Q$84,BAHWO,6) ->  | L106: 8.7 | M106: 267 | N106: =VLOOKUP(Q$87,BAHW,6) ->  | O106: =VLOOKUP(Q$87,BAHWO,6) ->  | DX106: KS105 | DY106: 993 | DZ106: 993 | EA106: 993 | EB106: 993 | EC106: 1098 | ED106: 1407 | EE106: 1449 | EF106: 1497 | EG106: 1569 | EH106: 1422 | EI106: 1470 | EJ106: 1524 | EK106: 1587 | EL106: 1665 | EM106: 1458 | EN106: 1515 | EO106: 1596 | EP106: 1137 | EQ106: 1404 | ER106: 1521 | ES106: 1689 | ET106: 1809 | EU106: 1821 | EV106: 1839 | EW106: 1839 | EX106: 1839 | EY106: 1839 | EZ106: True | FA106: KS105 | FB106: 750 | FC106: 750 | FD106: 750 | FE106: 750 | FF106: 831 | FG106: 1053 | FH106: 1086 | FI106: 1164 | FJ106: 1254 | FK106: 1068 | FL106: 1161 | FM106: 1263 | FN106: 1416 | FO106: 1464 | FP106: 1101 | FQ106: 1230 | FR106: 1401 | FS106: 885 | FT106: 1089 | FU106: 1293 | FV106: 1446 | FW106: 1470 | FX106: 1509 | FY106: 1536 | FZ106: 1536 | GA106: 1536 | GB106: 1536 | GD106: 784 | GE106: XX499 | GG106: KS105 | GH106: TOPEKA, KS
B107: E4 | C107: =VLOOKUP(P$84,BAHW,5) ->  | D107: =VLOOKUP(P$84,BAHWO,5) ->  | E107: 8.1 | F107: 230.4 | G107: =VLOOKUP(P$87,BAHW,5) ->  | H107: =VLOOKUP(P$87,BAHWO,5) ->  | I107: E4 | J107: =VLOOKUP(Q$84,BAHW,5) ->  | K107: =VLOOKUP(Q$84,BAHWO,5) ->  | L107: 8.1 | M107: 230.4 | N107: =VLOOKUP(Q$87,BAHW,5) ->  | O107: =VLOOKUP(Q$87,BAHWO,5) ->  | DX107: KY106 | DY107: 1362 | DZ107: 1362 | EA107: 1362 | EB107: 1362 | EC107: 1386 | ED107: 1431 | EE107: 1590 | EF107: 1773 | EG107: 1926 | EH107: 1443 | EI107: 1665 | EJ107: 1887 | EK107: 1944 | EL107: 2013 | EM107: 1629 | EN107: 1854 | EO107: 1950 | EP107: 1395 | EQ107: 1428 | ER107: 1878 | ES107: 2034 | ET107: 2142 | EU107: 2157 | EV107: 2178 | EW107: 2178 | EX107: 2178 | EY107: 2178 | EZ107: True | FA107: KY106 | FB107: 1095 | FC107: 1095 | FD107: 1095 | FE107: 1095 | FF107: 1245 | FG107: 1335 | FH107: 1365 | FI107: 1401 | FJ107: 1446 | FK107: 1362 | FL107: 1398 | FM107: 1449 | FN107: 1467 | FO107: 1635 | FP107: 1389 | FQ107: 1404 | FR107: 1464 | FS107: 1332 | FT107: 1380 | FU107: 1452 | FV107: 1605 | FW107: 1707 | FX107: 1872 | FY107: 1905 | FZ107: 1905 | GA107: 1905 | GB107: 1905 | GD107: 785 | GE107: XX499 | GG107: KY106 | GH107: FORT CAMPBELL, KY
B108: E3 | C108: =VLOOKUP(P$84,BAHW,4) ->  | D108: =VLOOKUP(P$84,BAHWO,4) ->  | E108: 7.8 | F108: 189.3 | G108: =VLOOKUP(P$87,BAHW,4) ->  | H108: =VLOOKUP(P$87,BAHWO,4) ->  | I108: E3 | J108: =VLOOKUP(Q$84,BAHW,4) ->  | K108: =VLOOKUP(Q$84,BAHWO,4) ->  | L108: 7.8 | M108: 189.3 | N108: =VLOOKUP(Q$87,BAHW,4) ->  | O108: =VLOOKUP(Q$87,BAHWO,4) ->  | DX108: KY107 | DY108: 1212 | DZ108: 1212 | EA108: 1212 | EB108: 1212 | EC108: 1308 | ED108: 1518 | EE108: 1533 | EF108: 1542 | EG108: 1608 | EH108: 1530 | EI108: 1539 | EJ108: 1551 | EK108: 1641 | EL108: 1779 | EM108: 1536 | EN108: 1545 | EO108: 1659 | EP108: 1338 | EQ108: 1515 | ER108: 1548 | ES108: 1827 | ET108: 2043 | EU108: 2058 | EV108: 2079 | EW108: 2079 | EX108: 2079 | EY108: 2079 | EZ108: True | FA108: KY107 | FB108: 912 | FC108: 912 | FD108: 912 | FE108: 912 | FF108: 1038 | FG108: 1134 | FH108: 1212 | FI108: 1356 | FJ108: 1413 | FK108: 1188 | FL108: 1353 | FM108: 1419 | FN108: 1515 | FO108: 1527 | FP108: 1311 | FQ108: 1395 | FR108: 1509 | FS108: 1113 | FT108: 1278 | FU108: 1440 | FV108: 1518 | FW108: 1533 | FX108: 1545 | FY108: 1560 | FZ108: 1560 | GA108: 1560 | GB108: 1560 | GD108: 786 | GE108: XX499 | GG108: KY107 | GH108: LEXINGTON, KY
B109: E2 | C109: =VLOOKUP(P$84,BAHW,3) ->  | D109: =VLOOKUP(P$84,BAHWO,3) ->  | E109: 7.2 | F109: 252.6 | G109: =VLOOKUP(P$87,BAHW,3) ->  | H109: =VLOOKUP(P$87,BAHWO,3) ->  | I109: E2 | J109: =VLOOKUP(Q$84,BAHW,3) ->  | K109: =VLOOKUP(Q$84,BAHWO,3) ->  | L109: 7.2 | M109: 252.6 | N109: =VLOOKUP(Q$87,BAHW,3) ->  | O109: =VLOOKUP(Q$87,BAHWO,3) ->  | DX109: KY109 | DY109: 1404 | DZ109: 1404 | EA109: 1404 | EB109: 1404 | EC109: 1530 | ED109: 1746 | EE109: 1782 | EF109: 1827 | EG109: 1914 | EH109: 1758 | EI109: 1803 | EJ109: 1857 | EK109: 1938 | EL109: 2040 | EM109: 1791 | EN109: 1845 | EO109: 1950 | EP109: 1560 | EQ109: 1743 | ER109: 1854 | ES109: 2073 | ET109: 2229 | EU109: 2247 | EV109: 2268 | EW109: 2268 | EX109: 2268 | EY109: 2268 | EZ109: True | FA109: KY109 | FB109: 1056 | FC109: 1056 | FD109: 1056 | FE109: 1056 | FF109: 1194 | FG109: 1305 | FH109: 1407 | FI109: 1578 | FJ109: 1638 | FK109: 1368 | FL109: 1575 | FM109: 1644 | FN109: 1752 | FO109: 1797 | FP109: 1533 | FQ109: 1620 | FR109: 1737 | FS109: 1278 | FT109: 1491 | FU109: 1665 | FV109: 1782 | FW109: 1803 | FX109: 1839 | FY109: 1872 | FZ109: 1872 | GA109: 1872 | GB109: 1872 | GD109: 791 | GE109: XX499 | GG109: KY109 | GH109: LOUISVILLE, KY
B110: E1 | C110: =VLOOKUP(P$84,BAHW,2) ->  | D110: =VLOOKUP(P$84,BAHWO,2) ->  | E110: 6.9 | F110: 298.8 | G110: =VLOOKUP(P$87,BAHW,2) ->  | H110: =VLOOKUP(P$87,BAHWO,2) ->  | I110: E1 | J110: =VLOOKUP(Q$84,BAHW,2) ->  | K110: =VLOOKUP(Q$84,BAHWO,2) ->  | L110: 6.9 | M110: 298.8 | N110: =VLOOKUP(Q$87,BAHW,2) ->  | O110: =VLOOKUP(Q$87,BAHWO,2) ->  | DX110: KY110 | DY110: 897 | DZ110: 897 | EA110: 897 | EB110: 897 | EC110: 966 | ED110: 1206 | EE110: 1332 | EF110: 1476 | EG110: 1626 | EH110: 1221 | EI110: 1392 | EJ110: 1563 | EK110: 1650 | EL110: 1755 | EM110: 1362 | EN110: 1539 | EO110: 1665 | EP110: 999 | EQ110: 1203 | ER110: 1557 | ES110: 1791 | ET110: 1956 | EU110: 1971 | EV110: 1989 | EW110: 1989 | EX110: 1989 | EY110: 1989 | EZ110: True | FA110: KY110 | FB110: 690 | FC110: 690 | FD110: 690 | FE110: 690 | FF110: 771 | FG110: 903 | FH110: 999 | FI110: 1107 | FJ110: 1221 | FK110: 915 | FL110: 1044 | FM110: 1224 | FN110: 1251 | FO110: 1371 | FP110: 1023 | FQ110: 1155 | FR110: 1248 | FS110: 825 | FT110: 1002 | FU110: 1227 | FV110: 1344 | FW110: 1467 | FX110: 1548 | FY110: 1578 | FZ110: 1578 | GA110: 1578 | GB110: 1578 | GD110: 792 | GE110: XX499 | GG110: KY110 | GH110: FORT KNOX, KY
DX111: KY339 | DY111: 867 | DZ111: 867 | EA111: 867 | EB111: 867 | EC111: 888 | ED111: 1104 | EE111: 1188 | EF111: 1284 | EG111: 1389 | EH111: 1119 | EI111: 1230 | EJ111: 1344 | EK111: 1407 | EL111: 1485 | EM111: 1209 | EN111: 1326 | EO111: 1416 | EP111: 918 | EQ111: 1101 | ER111: 1338 | ES111: 1509 | ET111: 1629 | EU111: 1641 | EV111: 1653 | EW111: 1653 | EX111: 1653 | EY111: 1653 | EZ111: True | FA111: KY339 | FB111: 810 | FC111: 810 | FD111: 810 | FE111: 810 | FF111: 825 | FG111: 849 | FH111: 891 | FI111: 963 | FJ111: 1041 | FK111: 873 | FL111: 933 | FM111: 1044 | FN111: 1122 | FO111: 1215 | FP111: 906 | FQ111: 996 | FR111: 1098 | FS111: 846 | FT111: 894 | FU111: 1047 | FV111: 1191 | FW111: 1245 | FX111: 1329 | FY111: 1353 | FZ111: 1353 | GA111: 1353 | GB111: 1353 | GD111: 794 | GE111: XX499 | GG111: KY339 | GH111: FRANKFORT, KY
K112: 2019 W4 | Q112: 2020 W4 wo/Box2 | W112: 2020 W4 w/Box 2 | DX112: KY430 | DY112: 882 | DZ112: 882 | EA112: 882 | EB112: 882 | EC112: 912 | ED112: 1107 | EE112: 1161 | EF112: 1227 | EG112: 1311 | EH112: 1119 | EI112: 1191 | EJ112: 1269 | EK112: 1332 | EL112: 1410 | EM112: 1176 | EN112: 1257 | EO112: 1341 | EP112: 939 | EQ112: 1104 | ER112: 1266 | ES112: 1434 | ET112: 1554 | EU112: 1566 | EV112: 1581 | EW112: 1581 | EX112: 1581 | EY112: 1581 | EZ112: True | FA112: KY430 | FB112: 726 | FC112: 726 | FD112: 726 | FE112: 726 | FF112: 798 | FG112: 849 | FH112: 882 | FI112: 954 | FJ112: 1011 | FK112: 879 | FL112: 951 | FM112: 1014 | FN112: 1119 | FO112: 1182 | FP112: 915 | FQ112: 993 | FR112: 1098 | FS112: 846 | FT112: 903 | FU112: 1032 | FV112: 1164 | FW112: 1197 | FX112: 1254 | FY112: 1275 | FZ112: 1275 | GA112: 1275 | GB112: 1275 | GD112: 795 | GE112: XX499 | GG112: KY430 | GH112: PADUCAH, KY
B113: TRICARE DENTAL | C113: 2019-04-30 | D113: 2019-05-01 | G113: Inception Date | H113: TSP Since Inception as of December 2018 | K113: Monthly Withholding Table | Q113: Monthly Withholding Table | W113: Monthly Withholding Table | DX113: LA113 | DY113: 882 | DZ113: 882 | EA113: 882 | EB113: 882 | EC113: 900 | ED113: 1194 | EE113: 1248 | EF113: 1311 | EG113: 1434 | EH113: 1209 | EI113: 1275 | EJ113: 1353 | EK113: 1467 | EL113: 1608 | EM113: 1263 | EN113: 1341 | EO113: 1485 | EP113: 939 | EQ113: 1191 | ER113: 1350 | ES113: 1656 | ET113: 1875 | EU113: 1887 | EV113: 1905 | EW113: 1905 | EX113: 1905 | EY113: 1905 | EZ113: True | FA113: LA113 | FB113: 711 | FC113: 711 | FD113: 711 | FE113: 711 | FF113: 804 | FG113: 894 | FH113: 936 | FI113: 984 | FJ113: 1077 | FK113: 906 | FL113: 960 | FM113: 1080 | FN113: 1206 | FO113: 1266 | FP113: 948 | FQ113: 1026 | FR113: 1188 | FS113: 861 | FT113: 939 | FU113: 1086 | FV113: 1248 | FW113: 1407 | FX113: 1416 | FY113: 1428 | FZ113: 1428 | GA113: 1428 | GB113: 1428 | GD113: 801 | GE113: XX499 | GG113: LA113 | GH113: ALEXANDRIA, LA
B114: 1 Dep | C114: 11.39 | D114: 11.54 | G114: 1987-04-01 | H114: G Fund | I114: 0.0503 | K114: Exemption | L114: 358 | Q114: Exemption | R114: 0 | W114: Exemption | X114: 0 | DX114: LA114 | DY114: 1392 | DZ114: 1392 | EA114: 1392 | EB114: 1392 | EC114: 1542 | ED114: 1608 | EE114: 1731 | EF114: 1869 | EG114: 1995 | EH114: 1620 | EI114: 1788 | EJ114: 1959 | EK114: 2010 | EL114: 2076 | EM114: 1758 | EN114: 1932 | EO114: 2019 | EP114: 1557 | EQ114: 1605 | ER114: 1950 | ES114: 2097 | ET114: 2196 | EU114: 2214 | EV114: 2235 | EW114: 2235 | EX114: 2235 | EY114: 2235 | EZ114: True | FA114: LA114 | FB114: 1044 | FC114: 1044 | FD114: 1044 | FE114: 1044 | FF114: 1167 | FG114: 1254 | FH114: 1398 | FI114: 1563 | FJ114: 1575 | FK114: 1347 | FL114: 1560 | FM114: 1578 | FN114: 1635 | FO114: 1767 | FP114: 1545 | FQ114: 1566 | FR114: 1599 | FS114: 1239 | FT114: 1494 | FU114: 1581 | FV114: 1737 | FW114: 1818 | FX114: 1944 | FY114: 1977 | FZ114: 1977 | GA114: 1977 | GB114: 1977 | GD114: 802 | GE114: XX499 | GG114: LA114 | GH114: BATON ROUGE, LA
B115: Fam Plan | C115: 29.62 | D115: 30 | G115: 1988-01-29 | H115: F Fund | I115: 0.0604 | K115: Single | L115: 0 | M115: 317 | Q115: Single | R115: 0 | S115: 1033 | W115: Single | X115: 0 | Y115: 517 | DX115: LA115 | DY115: 849 | DZ115: 849 | EA115: 849 | EB115: 849 | EC115: 933 | ED115: 1203 | EE115: 1233 | EF115: 1272 | EG115: 1344 | EH115: 1215 | EI115: 1251 | EJ115: 1296 | EK115: 1368 | EL115: 1458 | EM115: 1242 | EN115: 1287 | EO115: 1377 | EP115: 969 | EQ115: 1200 | ER115: 1293 | ES115: 1488 | ET115: 1626 | EU115: 1638 | EV115: 1653 | EW115: 1653 | EX115: 1653 | EY115: 1653 | EZ115: True | FA115: LA115 | FB115: 699 | FC115: 699 | FD115: 699 | FE115: 699 | FF115: 735 | FG115: 897 | FH115: 924 | FI115: 990 | FJ115: 1068 | FK115: 912 | FL115: 987 | FM115: 1074 | FN115: 1206 | FO115: 1245 | FP115: 936 | FQ115: 1047 | FR115: 1194 | FS115: 765 | FT115: 927 | FU115: 1101 | FV115: 1230 | FW115: 1248 | FX115: 1278 | FY115: 1302 | FZ115: 1302 | GA115: 1302 | GB115: 1302 | GD115: 803 | GE115: XX499 | GG115: LA115 | GH115: FORT POLK, LA
B116: None Elected | C116: 0 | G116: 1988-01-29 | H116: C Fund | I116: 0.1001 | L116: =M115+0.01 -> 317.01 | M116: 1140 | N116: 0.1 | O116: 0 | R116: =S115+0.01 -> 1033.01 | S116: 1856 | T116: 0.1 | U116: 0 | X116: =Y115+0.01 -> 517.01 | Y116: 928 | Z116: 0.1 | AA116: 0 | DX116: LA116 | DY116: 1353 | DZ116: 1353 | EA116: 1353 | EB116: 1353 | EC116: 1548 | ED116: 1824 | EE116: 1899 | EF116: 1983 | EG116: 2115 | EH116: 1839 | EI116: 1935 | EJ116: 2037 | EK116: 2148 | EL116: 2280 | EM116: 1917 | EN116: 2022 | EO116: 2166 | EP116: 1584 | EQ116: 1821 | ER116: 2031 | ES116: 2328 | ET116: 2538 | EU116: 2559 | EV116: 2583 | EW116: 2583 | EX116: 2583 | EY116: 2583 | EZ116: True | FA116: LA116 | FB116: 1014 | FC116: 1014 | FD116: 1014 | FE116: 1014 | FF116: 1161 | FG116: 1365 | FH116: 1425 | FI116: 1608 | FJ116: 1689 | FK116: 1380 | FL116: 1605 | FM116: 1695 | FN116: 1839 | FO116: 1923 | FP116: 1551 | FQ116: 1665 | FR116: 1818 | FS116: 1188 | FT116: 1485 | FU116: 1722 | FV116: 1902 | FW116: 1947 | FX116: 2022 | FY116: 2058 | FZ116: 2058 | GA116: 2058 | GB116: 2058 | GD116: 804 | GE116: XX499 | GG116: LA116 | GH116: NEW ORLEANS, LA
B117: BAS | D117: Deductible meal rate | G117: 2001-05-01 | H117: S Fund | I117: 0.0821 | L117: 1140.01 | M117: 3660 | N117: 0.12 | O117: 0 | R117: 1856.01 | S117: 4377 | T117: 0.12 | U117: 0 | X117: 928.01 | Y117: 2189 | Z117: 0.12 | AA117: 0 | DX117: LA117 | DY117: 1326 | DZ117: 1326 | EA117: 1326 | EB117: 1326 | EC117: 1428 | ED117: 1737 | EE117: 1755 | EF117: 1764 | EG117: 1809 | EH117: 1752 | EI117: 1761 | EJ117: 1773 | EK117: 1836 | EL117: 1941 | EM117: 1758 | EN117: 1767 | EO117: 1848 | EP117: 1470 | EQ117: 1734 | ER117: 1770 | ES117: 1977 | ET117: 2142 | EU117: 2160 | EV117: 2181 | EW117: 2181 | EX117: 2181 | EY117: 2181 | EZ117: True | FA117: LA117 | FB117: 1068 | FC117: 1068 | FD117: 1068 | FE117: 1068 | FF117: 1161 | FG117: 1302 | FH117: 1326 | FI117: 1494 | FJ117: 1587 | FK117: 1314 | FL117: 1491 | FM117: 1593 | FN117: 1737 | FO117: 1746 | FP117: 1431 | FQ117: 1560 | FR117: 1731 | FS117: 1221 | FT117: 1395 | FU117: 1623 | FV117: 1740 | FW117: 1749 | FX117: 1752 | FY117: 1764 | FZ117: 1764 | GA117: 1764 | GB117: 1764 | GD117: 805 | GE117: XX499 | GG117: LA117 | GH117: SHREVEPORT/BARKSDALE AFB, LA
B118: Cooking N/A | D118: 10.15 | E118: a day | G118: 2001-05-01 | H118: I Fund | I118: 0.0409 | L118: 3660.01 | M118: 7444 | N118: 0.22 | O118: 0 | R118: 4377.01 | S118: 8160 | T118: 0.22 | U118: 0 | X118: 2189.01 | Y118: 4080 | Z118: 0.22 | AA118: 0 | DX118: LA118 | DY118: 1305 | DZ118: 1305 | EA118: 1305 | EB118: 1305 | EC118: 1401 | ED118: 1563 | EE118: 1602 | EF118: 1650 | EG118: 1764 | EH118: 1575 | EI118: 1623 | EJ118: 1680 | EK118: 1797 | EL118: 1941 | EM118: 1611 | EN118: 1671 | EO118: 1818 | EP118: 1425 | EQ118: 1560 | ER118: 1677 | ES118: 1992 | ET118: 2217 | EU118: 2235 | EV118: 2256 | EW118: 2256 | EX118: 2256 | EY118: 2256 | EZ118: True | FA118: LA118 | FB118: 984 | FC118: 984 | FD118: 984 | FE118: 984 | FF118: 1122 | FG118: 1209 | FH118: 1305 | FI118: 1437 | FJ118: 1482 | FK118: 1278 | FL118: 1434 | FM118: 1485 | FN118: 1569 | FO118: 1617 | FP118: 1404 | FQ118: 1467 | FR118: 1554 | FS118: 1203 | FT118: 1371 | FU118: 1500 | FV118: 1602 | FW118: 1662 | FX118: 1677 | FY118: 1695 | FZ118: 1695 | GA118: 1695 | GB118: 1695 | GD118: 820 | GE118: XX499 | GG118: LA118 | GH118: LAFAYETTE, LA
B119: Standard | C119: 372.71 | G119: 2005-08-01 | H119: L Income | I119: 0.0389 | L119: 7444.01 | M119: 13925 | N119: 0.24 | O119: 0 | R119: 8160.01 | S119: 14642 | T119: 0.24 | U119: 0 | X119: 4080.01 | Y119: 7321 | Z119: 0.24 | AA119: 0 | DX119: LA326 | DY119: 1203 | DZ119: 1203 | EA119: 1203 | EB119: 1203 | EC119: 1299 | ED119: 1401 | EE119: 1428 | EF119: 1464 | EG119: 1515 | EH119: 1413 | EI119: 1443 | EJ119: 1488 | EK119: 1527 | EL119: 1581 | EM119: 1434 | EN119: 1479 | EO119: 1533 | EP119: 1317 | EQ119: 1398 | ER119: 1485 | ES119: 1596 | ET119: 1674 | EU119: 1686 | EV119: 1701 | EW119: 1701 | EX119: 1701 | EY119: 1701 | EZ119: True | FA119: LA326 | FB119: 903 | FC119: 903 | FD119: 903 | FE119: 903 | FF119: 1017 | FG119: 1107 | FH119: 1203 | FI119: 1326 | FJ119: 1350 | FK119: 1176 | FL119: 1323 | FM119: 1353 | FN119: 1401 | FO119: 1440 | FP119: 1302 | FQ119: 1338 | FR119: 1389 | FS119: 1101 | FT119: 1269 | FU119: 1359 | FV119: 1425 | FW119: 1443 | FX119: 1470 | FY119: 1497 | FZ119: 1497 | GA119: 1497 | GB119: 1497 | GD119: 821 | GE119: XX499 | GG119: LA326 | GH119: ST MARY AND TERREBONNE, LA
B120: Partial | G120: 2005-08-01 | H120: L 2020 | I120: 0.0511 | L120: 13925.01 | M120: 17596 | N120: 0.32 | O120: 0 | R120: 14642.01 | S120: 18313 | T120: 0.32 | U120: 0 | X120: 7321.01 | Y120: 9156 | Z120: 0.32 | AA120: 0 | DX120: LA370 | DY120: 1395 | DZ120: 1395 | EA120: 1395 | EB120: 1395 | EC120: 1503 | ED120: 1980 | EE120: 2001 | EF120: 2010 | EG120: 2022 | EH120: 1998 | EI120: 2007 | EJ120: 2019 | EK120: 2025 | EL120: 2034 | EM120: 2004 | EN120: 2013 | EO120: 2028 | EP120: 1560 | EQ120: 1974 | ER120: 2016 | ES120: 2040 | ET120: 2070 | EU120: 2085 | EV120: 2106 | EW120: 2106 | EX120: 2106 | EY120: 2106 | EZ120: True | FA120: LA370 | FB120: 1125 | FC120: 1125 | FD120: 1125 | FE120: 1125 | FF120: 1224 | FG120: 1485 | FH120: 1503 | FI120: 1599 | FJ120: 1746 | FK120: 1500 | FL120: 1596 | FM120: 1758 | FN120: 1983 | FO120: 1992 | FP120: 1509 | FQ120: 1710 | FR120: 1977 | FS120: 1284 | FT120: 1506 | FU120: 1806 | FV120: 1986 | FW120: 1995 | FX120: 1998 | FY120: 2016 | FZ120: 2016 | GA120: 2016 | GB120: 2016 | GD120: 822 | GE120: XX499 | GG120: LA370 | GH120: LAKE CHARLES, LA
B121: Rations not Avail | G121: 2005-08-01 | H121: L 2030 | I121: 0.0554 | L121: 17596.01 | N121: 0.35 | O121: 0 | R121: 18313.01 | T121: 0.35 | U121: 0 | X121: 9156.01 | Z121: 0.35 | AA121: 0 | DX121: LA371 | DY121: 903 | DZ121: 903 | EA121: 903 | EB121: 903 | EC121: 951 | ED121: 1296 | EE121: 1335 | EF121: 1377 | EG121: 1464 | EH121: 1311 | EI121: 1353 | EJ121: 1407 | EK121: 1488 | EL121: 1587 | EM121: 1344 | EN121: 1398 | EO121: 1500 | EP121: 996 | EQ121: 1293 | ER121: 1404 | ES121: 1620 | ET121: 1776 | EU121: 1791 | EV121: 1806 | EW121: 1806 | EX121: 1806 | EY121: 1806 | EZ121: True | FA121: LA371 | FB121: 726 | FC121: 726 | FD121: 726 | FE121: 726 | FF121: 801 | FG121: 969 | FH121: 1002 | FI121: 1032 | FJ121: 1128 | FK121: 984 | FL121: 1020 | FM121: 1134 | FN121: 1305 | FO121: 1347 | FP121: 1008 | FQ121: 1098 | FR121: 1290 | FS121: 855 | FT121: 1005 | FU121: 1170 | FV121: 1332 | FW121: 1353 | FX121: 1389 | FY121: 1413 | FZ121: 1413 | GA121: 1413 | GB121: 1413 | GD121: 823 | GE121: XX499 | GG121: LA371 | GH121: MONROE, LA
B122: Officer | C122: 256.68 | G122: 2005-08-01 | H122: L 2040 | I122: 0.0582 | K122: Married | L122: 0 | M122: 992 | Q122: Married | R122: 0 | S122: 3067 | W122: Married | X122: 0 | Y122: 1033 | DX122: MA119 | DY122: 2982 | DZ122: 2982 | EA122: 2982 | EB122: 2982 | EC122: 3024 | ED122: 3804 | EE122: 3891 | EF122: 3987 | EG122: 4128 | EH122: 3822 | EI122: 3933 | EJ122: 4047 | EK122: 4161 | EL122: 4302 | EM122: 3912 | EN122: 4029 | EO122: 4179 | EP122: 3117 | EQ122: 3795 | ER122: 4041 | ES122: 4350 | ET122: 4569 | EU122: 4608 | EV122: 4653 | EW122: 4653 | EX122: 4653 | EY122: 4653 | EZ122: True | FA122: MA119 | FB122: 2238 | FC122: 2238 | FD122: 2238 | FE122: 2238 | FF122: 2586 | FG122: 2940 | FH122: 2979 | FI122: 3180 | FJ122: 3423 | FK122: 2976 | FL122: 3177 | FM122: 3444 | FN122: 3828 | FO122: 3918 | FP122: 3027 | FQ122: 3366 | FR122: 3801 | FS122: 2937 | FT122: 3012 | FU122: 3525 | FV122: 3897 | FW122: 3948 | FX122: 4032 | FY122: 4110 | FZ122: 4110 | GA122: 4110 | GB122: 4110 | GD122: 824 | GE122: XX499 | GG122: MA119 | GH122: NANTUCKET, MA
B123: FSA | C123: 250 | G123: 2011-01-31 | H123: L 2050 | I123: 0.0797 | L123: =M122+0.01 -> 992.01 | M123: 2638 | N123: 0.1 | O123: 0 | R123: =S122+0.01 -> 3067.01 | S123: 3713 | T123: 0.1 | U123: 0 | X123: =Y122+0.01 -> 1033.01 | Y123: 1856 | Z123: 0.1 | AA123: 0 | DX123: MA120 | DY123: 2994 | DZ123: 2994 | EA123: 2994 | EB123: 2994 | EC123: 3024 | ED123: 3630 | EE123: 3684 | EF123: 3741 | EG123: 3996 | EH123: 3648 | EI123: 3708 | EJ123: 3777 | EK123: 4077 | EL123: 4437 | EM123: 3696 | EN123: 3768 | EO123: 4131 | EP123: 3099 | EQ123: 3624 | ER123: 3774 | ES123: 4572 | ET123: 5145 | EU123: 5190 | EV123: 5241 | EW123: 5241 | EX123: 5241 | EY123: 5241 | EZ123: True | FA123: MA120 | FB123: 2583 | FC123: 2583 | FD123: 2583 | FE123: 2583 | FF123: 2826 | FG123: 2961 | FH123: 2994 | FI123: 3147 | FJ123: 3336 | FK123: 2991 | FL123: 3144 | FM123: 3351 | FN123: 3642 | FO123: 3699 | FP123: 3027 | FQ123: 3288 | FR123: 3627 | FS123: 2958 | FT123: 3018 | FU123: 3411 | FV123: 3684 | FW123: 3858 | FX123: 3894 | FY123: 3930 | FZ123: 3930 | GA123: 3930 | GB123: 3930 | GD123: 830 | GE123: XX499 | GG123: MA120 | GH123: BOSTON, MA
B124: SGLI | H124: Flat rate | I124: 0.1 | L124: 2638.01 | M124: 7679 | N124: 0.12 | O124: 0 | R124: 3713.01 | S124: 8754 | T124: 0.12 | U124: 0 | X124: 1856.01 | Y124: 4377 | Z124: 0.12 | AA124: 0 | DX124: MA122 | DY124: 1875 | DZ124: 1875 | EA124: 1875 | EB124: 1875 | EC124: 1878 | ED124: 2502 | EE124: 2523 | EF124: 2538 | EG124: 2649 | EH124: 2520 | EI124: 2529 | EJ124: 2550 | EK124: 2688 | EL124: 2856 | EM124: 2526 | EN124: 2544 | EO124: 2712 | EP124: 1953 | EQ124: 2496 | ER124: 2547 | ES124: 2916 | ET124: 3180 | EU124: 3207 | EV124: 3237 | EW124: 3237 | EX124: 3237 | EY124: 3237 | EZ124: True | FA124: MA122 | FB124: 1815 | FC124: 1815 | FD124: 1815 | FE124: 1815 | FF124: 1845 | FG124: 1878 | FH124: 1893 | FI124: 2004 | FJ124: 2196 | FK124: 1890 | FL124: 2001 | FM124: 2214 | FN124: 2508 | FO124: 2529 | FP124: 1899 | FQ124: 2151 | FR124: 2499 | FS124: 1872 | FT124: 1896 | FU124: 2277 | FV124: 2517 | FW124: 2532 | FX124: 2535 | FY124: 2580 | FZ124: 2580 | GA124: 2580 | GB124: 2580 | GD124: 831 | GE124: XX499 | GG124: MA122 | GH124: WORCESTER, MA
B125: 50000 | C125: =B125*$C$135/1000 -> 3 | H125: Ret. Age | I125: 62.5 | L125: 7679.01 | M125: 15246 | N125: 0.22 | O125: 0 | R125: 8754.01 | S125: 16321 | T125: 0.22 | U125: 0 | X125: 4377.01 | Y125: 8160 | Z125: 0.22 | AA125: 0 | DX125: MA123 | DY125: 2028 | DZ125: 2028 | EA125: 2028 | EB125: 2028 | EC125: 2115 | ED125: 2511 | EE125: 2628 | EF125: 2754 | EG125: 2916 | EH125: 2529 | EI125: 2679 | EJ125: 2835 | EK125: 2949 | EL125: 3087 | EM125: 2655 | EN125: 2811 | EO125: 2967 | EP125: 2166 | EQ125: 2508 | ER125: 2826 | ES125: 3138 | ET125: 3354 | EU125: 3384 | EV125: 3417 | EW125: 3417 | EX125: 3417 | EY125: 3417 | EZ125: True | FA125: MA123 | FB125: 1716 | FC125: 1716 | FD125: 1716 | FE125: 1716 | FF125: 1857 | FG125: 1944 | FH125: 2028 | FI125: 2199 | FJ125: 2319 | FK125: 2007 | FL125: 2196 | FM125: 2328 | FN125: 2541 | FO125: 2661 | FP125: 2118 | FQ125: 2286 | FR125: 2508 | FS125: 1938 | FT125: 2088 | FU125: 2367 | FV125: 2634 | FW125: 2706 | FX125: 2820 | FY125: 2871 | FZ125: 2871 | GA125: 2871 | GB125: 2871 | GD125: 840 | GE125: XX499 | GG125: MA123 | GH125: FITCHBURG, MA
... 156 more rows
